﻿ObjectId,fiscal_year,invoice_date,invoice_number,invoice_amount,payee,payment_date,payment_number,agency,expenditure_type,expenditure_category,spend_category,cost_center,project,program,grant_,fund,financing_source,region,extended_amount
1,2020,2019-07-12,2067042,716.39,STANTEC CONSULTING SERVICES INC,2019-08-06,1048086,Public Works & Assets Department,Metro Government Capital,Contractual Services,Road Construction/ Paving Services,,,,,FY19 Metro GO Bond - 10 yr,,,716.39
2,2020,2019-06-30,2067172,958.33,ACTION LANDSCAPE INC,2019-07-25,1046380,Public Works & Assets Department,Metro Government Capital,Contractual Services,Payments to Contractors,,,,,MISC SPECIAL REVENUE,,,958.33
3,2020,2019-06-30,2066930,3131.39,HALL CONTRACTING OF KENTUCKY INC,2019-08-29,1051094,Public Works & Assets Department,Metro Government Capital,Contractual Services,Engineering & Architectural Services,,,,,Metro GO Bonds 17A,,,3131.39
4,2020,2019-06-30,2066932,14601.29,HALL CONTRACTING OF KENTUCKY INC,2019-08-29,1051094,Public Works & Assets Department,Metro Government Capital,Contractual Services,Engineering & Architectural Services,,,,,Metro GO Bonds 17A,,,14601.29
5,2020,2019-06-30,2066937,29363.74,HALL CONTRACTING OF KENTUCKY INC,2019-08-29,1051094,Public Works & Assets Department,Metro Government Capital,Contractual Services,Engineering & Architectural Services,,,,,Metro GO Bonds 17A,,,29363.74
6,2020,2019-06-30,2066939,67037.97,HALL CONTRACTING OF KENTUCKY INC,2019-08-29,1051094,Public Works & Assets Department,Metro Government Capital,Contractual Services,Engineering & Architectural Services,,,,,Metro GO Bonds 17A,,,67037.97
7,2020,2019-06-06,2063262,456.45,QK4 INC,2019-07-12,1044445,Parks & Recreation,Metro Government Capital,Contractual Services,Engineering & Architectural Services,,,,,Federally Funded,,,456.45
8,2020,2019-02-28,2064197,16505,CLR DESIGN INC,2019-07-11,1044083,Louisville Zoo,Metro Government Capital,Contractual Services,Payments to Contractors,,,,,Capital Project Fund,,,16505
9,2020,2019-03-31,2064200,9666,CLR DESIGN INC,2019-07-11,1044083,Louisville Zoo,Metro Government Capital,Contractual Services,Payments to Contractors,,,,,Capital Project Fund,,,9666
10,2020,2019-04-30,2064202,3646.19,CLR DESIGN INC,2019-07-11,1044083,Louisville Zoo,Metro Government Capital,Contractual Services,Payments to Contractors,,,,,Capital Project Fund,,,3646.19
11,2020,2019-02-28,2064205,8503.5,CLR DESIGN INC,2019-07-12,1044366,Louisville Zoo,Metro Government Capital,Contractual Services,Payments to Contractors,,,,,Capital Project Fund,,,8503.5
12,2020,2019-02-28,2064205,8503.5,CLR DESIGN INC,2019-07-12,1044366,Louisville Zoo,Metro Government Capital,Contractual Services,Payments to Contractors,,,,,Capital Project Fund,,,8503.05
13,2020,2019-02-28,2064205,8503.5,CLR DESIGN INC,2019-07-12,1044366,Louisville Zoo,Metro Government Capital,Contractual Services,Payments to Contractors,,,,,Capital Project Fund,,,-8503.05
14,2020,2019-04-30,2064213,6830.26,CLR DESIGN INC,2019-07-18,1045073,Louisville Zoo,Metro Government Capital,Contractual Services,Payments to Contractors,,,,,Capital Project Fund,,,-4251.71
15,2020,2019-04-30,2064213,6830.26,CLR DESIGN INC,2019-07-18,1045073,Louisville Zoo,Metro Government Capital,Contractual Services,Payments to Contractors,,,,,Capital Project Fund,,,4251.26
16,2020,2019-04-30,2064213,6830.26,CLR DESIGN INC,2019-07-18,1045073,Louisville Zoo,Metro Government Capital,Contractual Services,Payments to Contractors,,,,,Capital Project Fund,,,2579
17,2020,2019-04-30,2064213,6830.26,CLR DESIGN INC,2019-07-18,1045073,Louisville Zoo,Metro Government Capital,Contractual Services,Payments to Contractors,,,,,Capital Project Fund,,,4251.26
18,2020,2019-04-30,2064213,6830.26,CLR DESIGN INC,2019-07-18,1045073,Louisville Zoo,Metro Government Capital,Contractual Services,Payments to Contractors,,,,,Capital Project Fund,,,4251.71
19,2020,2019-04-30,2064213,6830.26,CLR DESIGN INC,2019-07-18,1045073,Louisville Zoo,Metro Government Capital,Contractual Services,Payments to Contractors,,,,,Capital Project Fund,,,-4251.26
20,2020,2019-06-10,2067607,22912.46,KORFHAGE LANDSCAPE & DESIGNS INC,2019-07-25,1046120,Louisville Zoo,Metro Government Capital,Contractual Services,Payments to Contractors,,,,,Capital Project Fund,,,6472
21,2020,2019-04-30,2046360,5400,PBSC URBAN SOLUTIONS,2019-09-19,1053398,Develop Louisville,Metro Government Capital,Contractual Services,Payments to Contractors,,,,,Capital Project Fund,,,-0.01
22,2020,2019-04-30,2046360,5400,PBSC URBAN SOLUTIONS,2019-09-19,1053398,Develop Louisville,Metro Government Capital,Contractual Services,Payments to Contractors,,,,,Capital Project Fund,,,0.01
23,2020,2019-04-30,2046360,5400,PBSC URBAN SOLUTIONS,2019-09-19,1053398,Develop Louisville,Metro Government Capital,Contractual Services,Payments to Contractors,,,,,Capital Project Fund,,,0.01
24,2020,2019-04-11,2040384,2675,PBSC URBAN SOLUTIONS,2019-09-19,1053399,Develop Louisville,Metro Government Capital,Contractual Services,Payments to Contractors,,,,,Capital Project Fund,,,1738.19
25,2020,2019-06-21,2062450,9000,RUNDELL ERNSTBERGER ASSOCIATES INC,2019-07-23,1046040,Develop Louisville,Metro Government Capital,Contractual Services,Professional Services,,,,,MISC SPECIAL REVENUE,,,3450
26,2020,2019-07-15,2066605,1800,RUNDELL ERNSTBERGER ASSOCIATES INC,2019-08-09,1048567,Develop Louisville,Metro Government Capital,Contractual Services,Professional Services,,,,,MISC SPECIAL REVENUE,,,690
27,2020,2019-03-26,2029803,5000,THE HOUSING PARTNERSHIP INC,2019-08-23,1050055,Public Works & Assets Department,Metro Government Capital,Equipment/Capital Outlay,Right of Way Land,,,,,State Funding,,,5000
28,2020,2019-07-15,2065234,278745,BUTCHERTOWN DEVELOPMENT DISTRICT LLC,2019-07-16,1044592,Economic Development,Metro Government Capital,Contractual Services,Payments to Contractors,,,,,Metro GO Bonds 17 BAN,,,278745
29,2020,2019-07-12,2069800,26000,STANTEC CONSULTING SERVICES INC,2019-09-24,1054004,Public Works & Assets Department,Metro Government Capital,Contractual Services,Engineering & Architectural Services,,,,,Federally Funded,,,21666.67
30,2020,2019-07-12,2069800,26000,STANTEC CONSULTING SERVICES INC,2019-09-24,1054004,Public Works & Assets Department,Metro Government Capital,Contractual Services,Engineering & Architectural Services,,,,,Metro GO Bonds 17A,,,4333.33
31,2020,2019-06-17,2060595,1167.04,CONSOLIDATED ELECTRICAL DISTRIBUTORS,2019-07-26,1046650,Develop Louisville,Metro Government Capital,Contractual Services,Sidewalk Construction/ Repair Services,,,,,Metro GO Bonds 16A,,,680.42
32,2020,2019-06-17,2060595,1167.04,CONSOLIDATED ELECTRICAL DISTRIBUTORS,2019-07-26,1046650,Develop Louisville,Metro Government Capital,Contractual Services,Sidewalk Construction/ Repair Services,,,,,Metro GO Bonds 16A,,,71.76
33,2020,2019-06-17,2060595,1167.04,CONSOLIDATED ELECTRICAL DISTRIBUTORS,2019-07-26,1046650,Develop Louisville,Metro Government Capital,Contractual Services,Sidewalk Construction/ Repair Services,,,,,Metro GO Bonds 16A,,,414.86
34,2020,2019-06-18,2061057,1800,S WALK INC,2019-07-16,1044855,Develop Louisville,Metro Government Capital,Contractual Services,Sidewalk Construction/ Repair Services,,,,,Metro GO Bonds 16A,,,1800
35,2020,2019-06-14,2058989,10062.36,STRAND ASSOCIATES INC,2019-07-09,1043889,Develop Louisville,Metro Government Capital,Contractual Services,Sidewalk Construction/ Repair Services,,,,,Metro GO Bonds 16A,,,10062.36
36,2020,2019-06-12,2062392,25250,RIVERSIDE PAVING & CONTRACTING CO INC,2019-07-09,1043869,Parks & Recreation,Metro Government Capital,Contractual Services,Payments to Contractors,,,,,Metro GO Bonds 14D,,,25250
37,2020,2019-06-17,2062390,39000,RIVERSIDE PAVING & CONTRACTING CO INC,2019-07-12,1044449,Parks & Recreation,Metro Government Capital,Contractual Services,Payments to Contractors,,,,,Metro GO Bonds 16A,,,11829.96
38,2020,2019-07-10,2064785,755.25,AARON J MCCAULEY,2019-07-16,1044720,Develop Louisville,Metro Government Capital,Contractual Services,Landscaping Services,,,,,Capital Project Fund,,,755.25
39,2020,2019-06-10,2057260,2020,BOB RAY CO INC,2019-07-05,1043486,Develop Louisville,Metro Government Capital,Contractual Services,Landscaping Services,,,,,Capital Project Fund,,,2020
40,2020,2019-07-05,2065162,2250,BOB RAY CO INC,2019-07-30,1046968,Develop Louisville,Metro Government Capital,Contractual Services,Landscaping Services,,,,,Capital Project Fund,,,2250
41,2020,2019-05-31,2063454,5265,QK4 INC,2019-07-11,1044141,Public Works & Assets Department,Metro Government Capital,Contractual Services,Road Construction/ Paving Services,,,,,Capital-Council Infrastructure Funds,,,5265
42,2020,2019-06-30,2067199,3762,QK4 INC,2019-07-25,1046532,Public Works & Assets Department,Metro Government Capital,Contractual Services,Road Construction/ Paving Services,,,,,Capital-Council Infrastructure Funds,,,3762
43,2020,2019-04-30,2055607,1473,QK4 INC,2019-08-01,1047494,Public Works & Assets Department,Metro Government Capital,Contractual Services,Road Construction/ Paving Services,,,,,Capital-Council Infrastructure Funds,,,1473
44,2020,2019-03-27,2063413,4186,WOOD ENVIRONMENTAL & INFRASTRUCTURE SOLUTION INC,2019-07-23,1046086,Parks & Recreation,Metro Government Capital,Contractual Services,Sidewalk Construction/ Repair Services,,,,,Capital Project Fund,,,884
45,2020,2019-03-27,2063413,4186,WOOD ENVIRONMENTAL & INFRASTRUCTURE SOLUTION INC,2019-07-23,1046086,Parks & Recreation,Metro Government Capital,Contractual Services,Sidewalk Construction/ Repair Services,,,,,Capital Project Fund,,,3302
46,2020,2019-06-21,2062396,3435,QK4 INC,2019-07-05,1043565,Develop Louisville,Metro Government Capital,Supplies,Horticultural/Landscaping Supplies,,,,,Capital-Council Infrastructure Funds,,,3435
47,2020,2019-06-05,2065164,6130,BOB RAY CO INC,2019-07-26,1046712,Develop Louisville,Metro Government Capital,Contractual Services,Landscaping Services,,,,,FY19 Metro GO Bond - 20 yr,,,6130
48,2020,2019-06-30,2066913,4100,HALL CONTRACTING OF KENTUCKY INC,2019-07-25,1046455,Public Works & Assets Department,Metro Government Capital,Contractual Services,Payments to Contractors,,,,,Capital Project Fund,,,2250
49,2020,2019-06-18,2060568,5933.4,WHEATLEY ROOFING COMPANY INC,2019-07-16,1044906,Parks & Recreation,Metro Government Capital,Contractual Services,Other Project Expenditure,,,,,Capital-Council Infrastructure Funds,,,5933.4
50,2020,2019-06-25,2062534,4900,RIVERSIDE PAVING & CONTRACTING CO INC,2019-07-23,1046038,Parks & Recreation,Metro Government Capital,Contractual Services,Payments to Contractors,,,,,Metro GO Bonds 17A,,,4900
51,2020,2018-12-18,2018747,100,SAMANTHA PLAPPERT,2019-07-16,1044856,Develop Louisville,Metro Government Capital,Contractual Services,Other Project Expenditure,,,,,Capital Project Fund,,,100
52,2020,2019-07-22,2068484,700000,CITY OF ST MATTHEWS,2019-07-26,1046662,Library,Metro Government Capital,Contractual Services,Payments to Contractors,,,,,Capital Project Fund,,,700000
53,2020,2019-06-01,2056340,381.48,PBSC URBAN SOLUTIONS,2019-09-19,1053398,Public Works & Assets Department,Metro Government Capital,Contractual Services,Road Construction/ Paving Services,,,,,Metro GO Bonds 16A,,,371.13
54,2020,2019-04-30,2046360,5400,PBSC URBAN SOLUTIONS,2019-09-19,1053398,Public Works & Assets Department,Metro Government Capital,Contractual Services,Road Construction/ Paving Services,,,,,Metro GO Bonds 16A,,,985.31
55,2020,2019-04-30,2046360,5400,PBSC URBAN SOLUTIONS,2019-09-19,1053398,Public Works & Assets Department,Metro Government Capital,Contractual Services,Road Construction/ Paving Services,,,,,Metro GO Bonds 16A,,,-985.31
56,2020,2019-04-30,2046360,5400,PBSC URBAN SOLUTIONS,2019-09-19,1053398,Public Works & Assets Department,Metro Government Capital,Contractual Services,Road Construction/ Paving Services,,,,,Metro GO Bonds 16A,,,985.31
57,2020,2019-05-17,2067742,82.89,PBSC URBAN SOLUTIONS,2019-09-19,1053398,Public Works & Assets Department,Metro Government Capital,Contractual Services,Road Construction/ Paving Services,,,,,Metro GO Bonds 16A,,,82.89
58,2020,2019-06-30,2066886,3050,REYNOLDS SEALING & STRIPING INC,2019-07-25,1046540,Public Works & Assets Department,Metro Government Capital,Contractual Services,Road Construction/ Paving Services,,,,,Metro GO Bonds 16A,,,3050
59,2020,2019-04-11,2040384,2675,PBSC URBAN SOLUTIONS,2019-09-19,1053399,Develop Louisville,Metro Government Capital,Equipment/Capital Outlay,Outdoor Recreation Equipment,,,,,Capital Project Fund,,,936.81
60,2020,2019-04-30,2046360,5400,PBSC URBAN SOLUTIONS,2019-09-19,1053398,Develop Louisville,Metro Government Capital,Equipment/Capital Outlay,Outdoor Recreation Equipment,,,,,Capital Project Fund,,,4414.68
61,2020,2019-04-30,2046360,5400,PBSC URBAN SOLUTIONS,2019-09-19,1053398,Develop Louisville,Metro Government Capital,Equipment/Capital Outlay,Outdoor Recreation Equipment,,,,,Capital Project Fund,,,-4414.68
62,2020,2019-04-30,2046360,5400,PBSC URBAN SOLUTIONS,2019-09-19,1053398,Develop Louisville,Metro Government Capital,Equipment/Capital Outlay,Outdoor Recreation Equipment,,,,,Capital Project Fund,,,4414.68
63,2020,2019-06-01,2056340,381.48,PBSC URBAN SOLUTIONS,2019-09-19,1053398,Develop Louisville,Metro Government Capital,Equipment/Capital Outlay,Outdoor Recreation Equipment,,,,,Capital Project Fund,,,10.35
64,2020,2019-03-06,2050019,17212.34,S&J LIGHTING AND LENSE SUPPLY INC,2019-07-11,1044146,Public Works & Assets Department,Metro Government Capital,Contractual Services,Sidewalk Construction/ Repair Services,,,,,Metro GO Bonds 16A,,,17212.34
65,2020,2019-06-30,2066658,1175.84,QK4 INC,2019-07-26,1046796,Develop Louisville,Metro Government Capital,Contractual Services,Sidewalk Construction/ Repair Services,,,,,Capital Project Fund,,,1175.84
66,2020,2019-06-24,2061834,1408.42,L & W EMERGENCY EQUIPMENT,2019-07-25,1046486,Metro Police,Metro Government Capital,Equipment/Capital Outlay,Law Enforcement Equipment,,,,,Federally Funded,,,1408.42
67,2020,2019-06-12,2065319,20446.44,RIVERSIDE PAVING & CONTRACTING CO INC,2019-07-18,1045143,Public Works & Assets Department,Metro Government Capital,Contractual Services,Sidewalk Construction/ Repair Services,,,,,Capital Project Fund,,,11068.58
68,2020,2019-06-20,2062303,671.2,CDW LLC,2019-09-12,1052705,Office of Management & Budget,Metro Government Capital,Contractual Services,Building Construction Services,,,,,Metro GO Bonds 16A,,,671.2
69,2020,2019-06-19,2061036,2162.47,CDW LLC,2019-09-19,1053451,Office of Management & Budget,Metro Government Capital,Contractual Services,Building Construction Services,,,,,Metro GO Bonds 16A,,,2162.47
70,2020,2019-06-26,2065033,3997.5,CDW LLC,2019-09-19,1053451,Office of Management & Budget,Metro Government Capital,Contractual Services,Building Construction Services,,,,,Metro GO Bonds 16A,,,3997.5
71,2020,2019-06-19,2061279,8903,CHENOWETH FURN & APPLIANCES INC,2019-07-16,1044756,Office of Management & Budget,Metro Government Capital,Contractual Services,Building Construction Services,,,,,Metro GO Bonds 16A,,,8903
72,2020,2019-03-29,2033749,69263.71,DUR-A-FLEX INC,2019-07-23,1045928,Office of Management & Budget,Metro Government Capital,Contractual Services,Building Construction Services,,,,,Metro GO Bonds 16A,,,13736.91
73,2020,2019-03-29,2033749,69263.71,DUR-A-FLEX INC,2019-07-23,1045928,Office of Management & Budget,Metro Government Capital,Contractual Services,Building Construction Services,,,,,Metro GO Bonds 16A,,,55526.8
74,2020,2019-06-25,2061937,3179,FERGUSON ENTERPRISES INC,2019-07-02,1043084,Office of Management & Budget,Metro Government Capital,Contractual Services,Building Construction Services,,,,,Metro GO Bonds 16A,,,3179
75,2020,2018-11-20,2062100,352.35,FERGUSON ENTERPRISES INC,2019-07-02,1043084,Office of Management & Budget,Metro Government Capital,Contractual Services,Building Construction Services,,,,,Metro GO Bonds 16A,,,352.35
76,2020,2018-11-08,2062103,376.8,FERGUSON ENTERPRISES INC,2019-07-02,1043084,Office of Management & Budget,Metro Government Capital,Contractual Services,Building Construction Services,,,,,Metro GO Bonds 16A,,,376.8
77,2020,2018-10-23,2062104,1527,FERGUSON ENTERPRISES INC,2019-07-02,1043084,Office of Management & Budget,Metro Government Capital,Contractual Services,Building Construction Services,,,,,Metro GO Bonds 16A,,,1527
78,2020,2018-11-13,2062109,-61.2,FERGUSON ENTERPRISES INC,2019-07-02,1043084,Office of Management & Budget,Metro Government Capital,Contractual Services,Building Construction Services,,,,,Metro GO Bonds 16A,,,-61.2
79,2020,2019-01-02,2067559,3057,FERGUSON ENTERPRISES INC,2019-07-25,1046439,Office of Management & Budget,Metro Government Capital,Contractual Services,Building Construction Services,,,,,Metro GO Bonds 16A,,,3057
80,2020,2019-06-20,2061935,143.96,FOUNDATION BUILDING MATERIALS LLC,2019-07-02,1043089,Office of Management & Budget,Metro Government Capital,Contractual Services,Building Construction Services,,,,,Metro GO Bonds 16A,,,143.96
81,2020,2019-06-11,2067641,45408.11,SUBURBAN SURGICAL CO INC,2019-07-30,1047080,Office of Management & Budget,Metro Government Capital,Contractual Services,Building Construction Services,,,,,Metro GO Bonds 16A,,,0.11
82,2020,2019-06-11,2067641,45408.11,SUBURBAN SURGICAL CO INC,2019-07-30,1047080,Office of Management & Budget,Metro Government Capital,Contractual Services,Building Construction Services,,,,,Metro GO Bonds 16A,,,45408
83,2020,2019-05-30,2067639,293014.38,THE MASON COMPANY LLC,2019-07-25,1046571,Office of Management & Budget,Metro Government Capital,Contractual Services,Building Construction Services,,,,,Metro GO Bonds 16A,,,293014.38
84,2020,2019-03-29,2061871,209.9,THE SHERWIN WILLIAMS CO,2019-07-02,1042660,Office of Management & Budget,Metro Government Capital,Contractual Services,Building Construction Services,,,,,Metro GO Bonds 16A,,,209.9
85,2020,2019-02-15,2021322,-692.39,THE SHERWIN WILLIAMS CO,2019-07-16,1044871,Office of Management & Budget,Metro Government Capital,Contractual Services,Building Construction Services,,,,,Metro GO Bonds 16A,,,-692.39
86,2020,2019-04-10,2056177,92.44,THE SHERWIN WILLIAMS CO,2019-07-16,1044871,Office of Management & Budget,Metro Government Capital,Contractual Services,Building Construction Services,,,,,Metro GO Bonds 16A,,,92.44
87,2020,2019-03-06,2056180,209.9,THE SHERWIN WILLIAMS CO,2019-07-16,1044871,Office of Management & Budget,Metro Government Capital,Contractual Services,Building Construction Services,,,,,Metro GO Bonds 16A,,,209.9
88,2020,2019-03-04,2056214,352.3,THE SHERWIN WILLIAMS CO,2019-07-16,1044871,Office of Management & Budget,Metro Government Capital,Contractual Services,Building Construction Services,,,,,Metro GO Bonds 16A,,,102.95
89,2020,2019-03-04,2056214,352.3,THE SHERWIN WILLIAMS CO,2019-07-16,1044871,Office of Management & Budget,Metro Government Capital,Contractual Services,Building Construction Services,,,,,Metro GO Bonds 16A,,,51.93
90,2020,2019-03-04,2056214,352.3,THE SHERWIN WILLIAMS CO,2019-07-16,1044871,Office of Management & Budget,Metro Government Capital,Contractual Services,Building Construction Services,,,,,Metro GO Bonds 16A,,,12.98
91,2020,2019-03-04,2056214,352.3,THE SHERWIN WILLIAMS CO,2019-07-16,1044871,Office of Management & Budget,Metro Government Capital,Contractual Services,Building Construction Services,,,,,Metro GO Bonds 16A,,,184.44
92,2020,2019-05-30,2059709,454.31,TRULITE GLASS & ALUMINUM SOLUTIONS LLC,2019-07-19,1045450,Office of Management & Budget,Metro Government Capital,Contractual Services,Building Construction Services,,,,,Metro GO Bonds 16A,,,454.31
93,2020,2019-05-02,2049720,1513,WILLIS KLEIN COMMERCIAL SALES INC,2019-07-19,1045468,Office of Management & Budget,Metro Government Capital,Contractual Services,Building Construction Services,,,,,Metro GO Bonds 16A,,,1513
94,2020,2019-05-30,2065247,2500,LUCKETT & FARLEY ARCHITECTS ENGINEERS,2019-07-19,1045379,Develop Louisville,Metro Government Capital,Contractual Services,Other Project Expenditure,,,,,Capital Project Fund,,,2500
95,2020,2019-07-02,2066639,14201,PODGES ENT LLC,2019-07-23,1046025,Develop Louisville,Metro Government Capital,Contractual Services,Landscaping Services,,,,,Capital Project Fund,,,264.14
96,2020,2019-07-09,2067018,19240,A THRU Z CONSULTING & DISTRIBUTING,2019-07-25,1046379,Louisville Zoo,Metro Government Capital,Contractual Services,Payments to Contractors,,,,,MISC SPECIAL REVENUE,,,4947
97,2020,2019-05-13,2060010,6394,WEBER GROUP INC,2019-07-09,1043927,Louisville Zoo,Metro Government Capital,Contractual Services,Payments to Contractors,,,,,MISC SPECIAL REVENUE,,,6394
98,2020,2019-05-14,2057563,159.06,CDW LLC,2019-07-05,1043490,Emergency Management Agency/MetroSafe,Metro Government Capital,Contractual Services,Data Communication Services,,,,,Capital Project Fund,,,159.06
99,2020,2019-05-31,2063170,23225.87,CHURCHILL MCGEE LLC,2019-07-09,1043764,Emergency Management Agency/MetroSafe,Metro Government Capital,Contractual Services,Engineering & Architectural Services,,,,,Capital Project Fund,,,23225.87
100,2020,2019-07-16,2067486,3750,LUCKETT & FARLEY ARCHITECTS ENGINEERS,2019-07-26,1046778,Emergency Management Agency/MetroSafe,Metro Government Capital,Contractual Services,Engineering & Architectural Services,,,,,Capital Project Fund,,,2175
101,2020,2019-06-30,2066913,4100,HALL CONTRACTING OF KENTUCKY INC,2019-07-25,1046455,Public Works & Assets Department,Metro Government Capital,Supplies,Traffic/Street Signs Hardware Supplies,,,,,Capital-Council Infrastructure Funds,,,1250
102,2020,2019-06-17,2059802,1219.26,NEILL LAVIELLE SUPPLY COMPANY,2019-07-12,1044435,Parks & Recreation,Metro Government Capital,Supplies,Construction Materials and Supplies,,,,,Metro GO Bonds 17A,,,1219.26
103,2020,2019-06-30,2066913,4100,HALL CONTRACTING OF KENTUCKY INC,2019-07-25,1046455,Public Works & Assets Department,Metro Government Capital,Contractual Services,Payments to Contractors,,,,,Capital-Council Infrastructure Funds,,,600
104,2020,2019-06-26,2063193,3090.86,RECONYX INC,2019-08-02,1047746,Public Works & Assets Department,Metro Government Capital,Equipment/Capital Outlay,Safety and Security Equipment,,,,,Capital-Council Infrastructure Funds,,,1545.43
105,2020,2019-05-16,2060918,53276.8,HALL CONTRACTING OF KENTUCKY INC,2019-07-23,1045954,Public Works & Assets Department,Metro Government Capital,Contractual Services,Road Construction/ Paving Services,,,,,Capital-Council Infrastructure Funds,,,31901.51
106,2020,2019-07-01,2062789,550,LEGACY TITLE COMPANY LLC,2019-07-05,1043538,Public Works & Assets Department,Metro Government Capital,Equipment/Capital Outlay,Right of Way Land,,,,,FY19 Metro GO Bond - 20 yr,,,550
107,2020,2019-06-26,2063004,12233.34,ALL PAINTING PLUS LLC,2019-07-23,1045864,Parks & Recreation,Metro Government Capital,Contractual Services,Building/Office Renovation,,,,,Capital-Council Infrastructure Funds,,,12233.34
108,2020,2019-06-02,2062067,10000,ALL PAINTING PLUS LLC,2019-07-02,1043020,Parks & Recreation,Metro Government Capital,Contractual Services,Building/Office Renovation,,,,,Capital-Council Infrastructure Funds,,,10000
109,2020,2019-06-20,2068543,500,BROMORA LLC,2019-07-26,1046713,Parks & Recreation,Metro Government Capital,Contractual Services,Building/Office Renovation,,,,,FY19 Metro GO Bond - 10 yr,,,500
110,2020,2019-05-16,2060917,91528.61,HALL CONTRACTING OF KENTUCKY INC,2019-07-23,1045954,Public Works & Assets Department,Metro Government Capital,Contractual Services,Road Construction/ Paving Services,,,,,Municipal Aid,,,21266.01
111,2020,2019-05-16,2060917,91528.61,HALL CONTRACTING OF KENTUCKY INC,2019-07-23,1045954,Public Works & Assets Department,Metro Government Capital,Contractual Services,Road Construction/ Paving Services,,,,,Capital Project Fund,,,3175.44
112,2020,2019-05-16,2060917,91528.61,HALL CONTRACTING OF KENTUCKY INC,2019-07-23,1045954,Public Works & Assets Department,Metro Government Capital,Contractual Services,Road Construction/ Paving Services,,,,,Capital Project Fund,,,15254.3
113,2020,2019-05-16,2060917,91528.61,HALL CONTRACTING OF KENTUCKY INC,2019-07-23,1045954,Public Works & Assets Department,Metro Government Capital,Contractual Services,Road Construction/ Paving Services,,,,,Capital-Council Infrastructure Funds,,,29786.42
114,2020,2019-05-16,2060917,91528.61,HALL CONTRACTING OF KENTUCKY INC,2019-07-23,1045954,Public Works & Assets Department,Metro Government Capital,Contractual Services,Road Construction/ Paving Services,,,,,Municipal Aid,,,1796.57
115,2020,2019-05-16,2060917,91528.61,HALL CONTRACTING OF KENTUCKY INC,2019-07-23,1045954,Public Works & Assets Department,Metro Government Capital,Contractual Services,Road Construction/ Paving Services,,,,,Municipal Aid,,,11821.7
116,2020,2019-06-25,2067884,1122.96,HANKA CONSULTING,2019-07-25,1046456,Public Works & Assets Department,Metro Government Capital,Contractual Services,Sidewalk Construction/ Repair Services,,,,,Metro GO Bonds 17A,,,590.29
117,2020,2019-06-25,2067884,1122.96,HANKA CONSULTING,2019-07-25,1046456,Public Works & Assets Department,Metro Government Capital,Contractual Services,Sidewalk Construction/ Repair Services,,,,,Metro GO Bonds 17A,,,237.53
118,2020,2018-11-26,2067887,1297.65,HANKA CONSULTING,2019-07-25,1046456,Public Works & Assets Department,Metro Government Capital,Contractual Services,Sidewalk Construction/ Repair Services,,,,,Metro GO Bonds 17A,,,628.11
119,2020,2018-11-26,2067887,1297.65,HANKA CONSULTING,2019-07-25,1046456,Public Works & Assets Department,Metro Government Capital,Contractual Services,Sidewalk Construction/ Repair Services,,,,,Metro GO Bonds 17A,,,328.48
120,2020,2018-11-26,2067893,7770.98,HANKA CONSULTING,2019-07-25,1046456,Public Works & Assets Department,Metro Government Capital,Contractual Services,Sidewalk Construction/ Repair Services,,,,,Metro GO Bonds 17A,,,1643.72
121,2020,2018-11-26,2067893,7770.98,HANKA CONSULTING,2019-07-25,1046456,Public Works & Assets Department,Metro Government Capital,Contractual Services,Sidewalk Construction/ Repair Services,,,,,Metro GO Bonds 17A,,,4084.84
122,2020,2019-06-30,2066918,6150,HALL CONTRACTING OF KENTUCKY INC,2019-07-25,1046455,Public Works & Assets Department,Metro Government Capital,Contractual Services,Road Construction/ Paving Services,,,,,FY19 Metro GO Bond - 20 yr,,,6150
123,2020,2019-06-26,2063193,3090.86,RECONYX INC,2019-08-02,1047746,Public Works & Assets Department,Metro Government Capital,Equipment/Capital Outlay,Safety and Security Equipment,,,,,Capital-Council Infrastructure Funds,,,1545.43
124,2020,2019-06-30,2066925,7531,HALL CONTRACTING OF KENTUCKY INC,2019-08-29,1051094,Public Works & Assets Department,Metro Government Capital,Contractual Services,Road Construction/ Paving Services,,,,,Council-directed MAP,,,7531
125,2020,2019-06-17,2062390,39000,RIVERSIDE PAVING & CONTRACTING CO INC,2019-07-12,1044449,Parks & Recreation,Metro Government Capital,Contractual Services,Sidewalk Construction/ Repair Services,,,,,FY19 Metro GO Bond - 20 yr,,,27170.04
126,2020,2019-03-11,2067750,13944.55,RIVERSIDE PAVING & CONTRACTING CO INC,2019-09-17,1053297,Public Works & Assets Department,Metro Government Capital,Contractual Services,Sidewalk Construction/ Repair Services,,,,,Municipal Aid,,,3509.15
127,2020,2019-03-11,2067750,13944.55,RIVERSIDE PAVING & CONTRACTING CO INC,2019-09-17,1053297,Public Works & Assets Department,Metro Government Capital,Contractual Services,Sidewalk Construction/ Repair Services,,,,,FY19 Metro GO Bond - 10 yr,,,10435.4
128,2020,2019-06-24,2061875,43525.55,STANTEC CONSULTING SERVICES INC,2019-07-02,1043217,Parks & Recreation,Metro Government Capital,Contractual Services,Professional Services,,,,,Capital-Council Infrastructure Funds,,,8705.12
129,2020,2019-06-24,2061875,43525.55,STANTEC CONSULTING SERVICES INC,2019-07-02,1043217,Parks & Recreation,Metro Government Capital,Contractual Services,Professional Services,,,,,Capital-Council Infrastructure Funds,,,-8705.12
130,2020,2019-06-24,2061875,43525.55,STANTEC CONSULTING SERVICES INC,2019-07-02,1043217,Parks & Recreation,Metro Government Capital,Contractual Services,Professional Services,,,,,Capital-Council Infrastructure Funds,,,8705.11
131,2020,2019-06-11,2061219,1123.84,STANTEC CONSULTING SERVICES INC,2019-07-09,1043886,Parks & Recreation,Metro Government Capital,Contractual Services,Professional Services,,,,,Capital-Council Infrastructure Funds,,,224.77
132,2020,2019-03-31,2069115,20000,INTERFACE STUDIO ARCHITECTS LLC,2019-08-01,1047428,Develop Louisville,Metro Government Capital,Contractual Services,Payments to Contractors,,,,,Metro GO Bonds 14D,,,20000
133,2020,2019-06-10,2065140,92000,HDR ENGINEERING INC,2019-07-18,1045098,Develop Louisville,Metro Government Capital,Contractual Services,Engineering & Architectural Services,,,,,Federally Funded,,,92000
134,2020,2019-07-02,2064932,3684.28,AECOM TECHNICAL SERVICES INC,2019-07-30,1046947,Develop Louisville,Metro Government Capital,Contractual Services,Payments to Contractors,,,,,Capital Project Fund,,,3684.28
135,2020,2019-07-15,2067882,31167.9,HDR ENGINEERING INC,2019-07-26,1046751,Public Works & Assets Department,Metro Government Capital,Contractual Services,Consulting Services,,,,,Federally Funded,,,24934.32
136,2020,2019-07-15,2067882,31167.9,HDR ENGINEERING INC,2019-07-26,1046751,Public Works & Assets Department,Metro Government Capital,Contractual Services,Consulting Services,,,,,Municipal Aid,,,6233.58
137,2020,2019-06-07,2058973,14899,BERRY DUNN MCNEIL & PARKER LLC,2019-07-02,1042627,Office of Management & Budget,Metro Government Capital,Contractual Services,Payments to Contractors,,,,,Metro GO Bonds 17A,,,14899
138,2020,2019-07-18,2067925,26789,BERRY DUNN MCNEIL & PARKER LLC,2019-08-13,1048604,Office of Management & Budget,Metro Government Capital,Contractual Services,Payments to Contractors,,,,,Metro GO Bonds 17A,,,26789
139,2020,2019-05-31,2062690,900,QK4 INC,2019-07-05,1043565,Public Works & Assets Department,Metro Government Capital,Contractual Services,Engineering & Architectural Services,,,,,General Obligation Bonds 2009,,,900
140,2020,2019-06-30,2068688,371.15,QK4 INC,2019-07-30,1047063,Public Works & Assets Department,Metro Government Capital,Contractual Services,Engineering & Architectural Services,,,,,General Obligation Bonds 2009,,,371.15
141,2020,2019-06-24,2060821,900,WHEATLEY ROOFING COMPANY INC,2019-07-19,1045465,Develop Louisville,Metro Government Capital,Contractual Services,Payments to Contractors,,,,,Pass Thru Federal,,,900
142,2020,2019-04-25,2059880,47810.51,EZ CONSTRUCTION COMPANY INC,2019-07-16,1044778,Office of Management & Budget,Metro Government Capital,Contractual Services,Other Building Maintenance/Repair Services,,,,,Metro GO Bonds 14D,,,1704.2
143,2020,2019-04-25,2059880,47810.51,EZ CONSTRUCTION COMPANY INC,2019-07-16,1044778,Office of Management & Budget,Metro Government Capital,Contractual Services,Other Building Maintenance/Repair Services,,,,,Metro GO Bonds 14D,,,20507.53
144,2020,2019-06-18,2063954,1900,THP LIMITED INC,2019-07-11,1044160,Office of Management & Budget,Metro Government Capital,Contractual Services,Other Building Maintenance/Repair Services,,,,,Metro GO Bonds 14D,,,1900
145,2020,2019-06-25,2061734,71.92,UNIFIRST CORPORATION,2019-07-23,1045806,Library,Metro Government Capital,Contractual Services,Payments to Contractors,,,,,MISC SPECIAL REVENUE,,,38.08
146,2020,2019-06-17,2060640,1359.47,CDW LLC,2019-07-12,1044363,Metro Animal Services,Metro Government Capital,Contractual Services,Building Construction Services,,,,,General Obligation Bonds 2009,,,1203
147,2020,2019-06-17,2060640,1359.47,CDW LLC,2019-07-12,1044363,Metro Animal Services,Metro Government Capital,Contractual Services,Building Construction Services,,,,,General Obligation Bonds 2009,,,-1203
148,2020,2019-06-17,2060640,1359.47,CDW LLC,2019-07-12,1044363,Metro Animal Services,Metro Government Capital,Contractual Services,Building Construction Services,,,,,General Obligation Bonds 2009,,,1203
149,2020,2019-06-28,2065034,7475,CDW LLC,2019-09-12,1052705,Metro Animal Services,Metro Government Capital,Contractual Services,Building Construction Services,,,,,General Obligation Bonds 2009,,,7475
150,2020,2019-06-21,2066418,198476.85,F W OWENS COMPANY INC,2019-08-13,1048634,Metro Animal Services,Metro Government Capital,Contractual Services,Building Construction Services,,,,,MISC SPECIAL REVENUE,,,25249.16
151,2020,2018-10-29,2068245,-221.85,3M COMPANY,2019-07-26,1046698,Public Works & Assets Department,Metro Government Capital,Supplies,Traffic/Street Signs Hardware Supplies,,,,,Municipal Aid,,,-221.85
152,2020,2018-10-29,2068248,-443.7,3M COMPANY,2019-07-26,1046698,Public Works & Assets Department,Metro Government Capital,Supplies,Traffic/Street Signs Hardware Supplies,,,,,Municipal Aid,,,-443.7
153,2020,2019-06-30,2066882,3181.5,REYNOLDS SEALING & STRIPING INC,2019-07-25,1046540,Public Works & Assets Department,Metro Government Capital,Supplies,Traffic/Street Signs Hardware Supplies,,,,,Municipal Aid,,,682.3
154,2020,2019-03-25,2066287,7192.5,SAF TI CO INC,2019-07-19,1045424,Public Works & Assets Department,Metro Government Capital,Supplies,Traffic/Street Signs Hardware Supplies,,,,,Municipal Aid,,,7192.5
155,2020,2019-06-05,2059079,5328,PODGES ENT LLC,2019-07-02,1043184,Develop Louisville,Metro Government Capital,Contractual Services,Landscaping Services,,,,,Capital Project Fund,,,5328
156,2020,2019-06-05,2059090,3913,PODGES ENT LLC,2019-07-02,1043184,Develop Louisville,Metro Government Capital,Supplies,Horticultural/Landscaping Supplies,,,,,Capital Project Fund,,,3913
157,2020,2019-06-05,2058220,8145,PODGES ENT LLC,2019-07-02,1043184,Develop Louisville,Metro Government Capital,Supplies,Horticultural/Landscaping Supplies,,,,,Capital Project Fund,,,8145
158,2020,2019-06-28,2065158,65288.41,BORNSTEIN GENERAL CONTRACTING 1890,2019-07-18,1045065,Louisville Zoo,Metro Government Capital,Contractual Services,Rehab Renovation/Improvements,,,,,FY19 Metro GO Bond - 20 yr,,,11004.37
159,2020,2019-06-25,2061872,29107.66,AVANT GARDE SYSTEMS INC,2019-07-25,1046397,Louisville Zoo,Metro Government Capital,Contractual Services,Rehab Renovation/Improvements,,,,,FY19 Metro GO Note,,,29107.66
160,2020,2019-06-25,2062433,6690.15,AQUATIC EQUIPMENT AND DESIGN INC,2019-07-12,1044355,Louisville Zoo,Metro Government Capital,Contractual Services,Rehab Renovation/Improvements,,,,,MISC SPECIAL REVENUE,,,5923.09
161,2020,2019-06-25,2062433,6690.15,AQUATIC EQUIPMENT AND DESIGN INC,2019-07-12,1044355,Louisville Zoo,Metro Government Capital,Contractual Services,Rehab Renovation/Improvements,,,,,MISC SPECIAL REVENUE,,,-767.06
162,2020,2019-06-25,2062433,6690.15,AQUATIC EQUIPMENT AND DESIGN INC,2019-07-12,1044355,Louisville Zoo,Metro Government Capital,Contractual Services,Rehab Renovation/Improvements,,,,,MISC SPECIAL REVENUE,,,767.06
163,2020,2019-06-25,2062433,6690.15,AQUATIC EQUIPMENT AND DESIGN INC,2019-07-12,1044355,Louisville Zoo,Metro Government Capital,Contractual Services,Rehab Renovation/Improvements,,,,,MISC SPECIAL REVENUE,,,767.06
164,2020,2019-06-28,2065158,65288.41,BORNSTEIN GENERAL CONTRACTING 1890,2019-07-18,1045065,Louisville Zoo,Metro Government Capital,Contractual Services,Rehab Renovation/Improvements,,,,,MISC SPECIAL REVENUE,,,54284.04
165,2020,2019-06-30,2062977,1143.99,DEBRA KUEMPEL INC,2019-07-09,1043773,Louisville Zoo,Metro Government Capital,Contractual Services,Rehab Renovation/Improvements,,,,,MISC SPECIAL REVENUE,,,1143.99
166,2020,2019-06-27,2062442,7754,COMMERCIAL WORKS,2019-07-30,1046980,Library,Metro Government Capital,Contractual Services,Payments to Contractors,,,,,Capital Project Fund,,,7754
167,2020,2019-07-15,2066401,4277.36,ALTA PLANNING + DESIGN INC,2019-08-09,1048511,Parks & Recreation,Metro Government Capital,Contractual Services,Payments to Contractors,,,,,Metro GO Bonds 16A,,,506.86
168,2020,2019-06-10,2057488,16102.74,ALTA PLANNING + DESIGN INC,2019-07-05,1043477,Parks & Recreation,Metro Government Capital,Contractual Services,Payments to Contractors,,,,,Metro GO Bonds 16A,,,1908.16
169,2020,2019-06-30,2067121,1160,QK4 INC,2019-07-25,1046532,Public Works & Assets Department,Metro Government Capital,Contractual Services,Payments to Contractors,,,,,Federally Funded,,,1160
170,2020,2019-05-23,2066498,2700,MATT CHAPMAN APPRAISALS LLC,2019-07-19,1045387,Public Works & Assets Department,Metro Government Capital,Equipment/Capital Outlay,Right of Way Land,,,,,Capital Project Fund,,,540
171,2020,2019-07-02,2066301,4465.06,QK4 INC,2019-07-19,1045408,Public Works & Assets Department,Metro Government Capital,Equipment/Capital Outlay,Right of Way Land,,,,,Capital Project Fund,,,893.01
172,2020,2019-05-23,2066498,2700,MATT CHAPMAN APPRAISALS LLC,2019-07-19,1045387,Public Works & Assets Department,Metro Government Capital,Equipment/Capital Outlay,Right of Way Land,,,,,Federally Funded,,,2160
173,2020,2019-07-02,2066301,4465.06,QK4 INC,2019-07-19,1045408,Public Works & Assets Department,Metro Government Capital,Equipment/Capital Outlay,Right of Way Land,,,,,Federally Funded,,,3572.05
174,2020,2019-06-27,2062171,1575,ANDREA R LOVELESS,2019-07-02,1042945,Public Works & Assets Department,Metro Government Capital,Equipment/Capital Outlay,Right of Way Land,,,,,Capital Project Fund,,,315
175,2020,2019-06-27,2062165,500,JENNIFER D & WILLIAM GILL,2019-07-02,1042959,Public Works & Assets Department,Metro Government Capital,Equipment/Capital Outlay,Right of Way Land,,,,,Capital Project Fund,,,100
176,2020,2019-07-02,2066302,11158.49,QK4 INC,2019-07-19,1045408,Public Works & Assets Department,Metro Government Capital,Equipment/Capital Outlay,Right of Way Land,,,,,Capital Project Fund,,,2231.7
177,2020,2019-06-27,2062171,1575,ANDREA R LOVELESS,2019-07-02,1042945,Public Works & Assets Department,Metro Government Capital,Equipment/Capital Outlay,Right of Way Land,,,,,Federally Funded,,,1260
178,2020,2019-06-27,2062165,500,JENNIFER D & WILLIAM GILL,2019-07-02,1042959,Public Works & Assets Department,Metro Government Capital,Equipment/Capital Outlay,Right of Way Land,,,,,Federally Funded,,,400
179,2020,2019-07-02,2066302,11158.49,QK4 INC,2019-07-19,1045408,Public Works & Assets Department,Metro Government Capital,Equipment/Capital Outlay,Right of Way Land,,,,,Federally Funded,,,8926.79
180,2020,2019-05-07,2059066,1200,COOPER PROPERTY MAINTENANCE AND DEVELOPMENT,2019-07-05,1043496,Develop Louisville,Metro Government Capital,Contractual Services,Payments to Contractors,,,,,CDBG 2014,,,609.44
181,2020,2019-05-07,2059066,1200,COOPER PROPERTY MAINTENANCE AND DEVELOPMENT,2019-07-05,1043496,Develop Louisville,Metro Government Capital,Contractual Services,Payments to Contractors,,,,,CDBG 2014,,,-609.44
182,2020,2019-05-07,2059066,1200,COOPER PROPERTY MAINTENANCE AND DEVELOPMENT,2019-07-05,1043496,Develop Louisville,Metro Government Capital,Contractual Services,Payments to Contractors,,,,,CDBG 2014,,,609.44
183,2020,2019-06-10,2065150,800,COOPER PROPERTY MAINTENANCE AND DEVELOPMENT,2019-07-16,1044768,Develop Louisville,Metro Government Capital,Contractual Services,Payments to Contractors,,,,,CDBG 2014,,,800
184,2020,2019-07-08,2065563,800,COOPER PROPERTY MAINTENANCE AND DEVELOPMENT,2019-07-19,1045318,Develop Louisville,Metro Government Capital,Contractual Services,Payments to Contractors,,,,,CDBG 2014,,,800
185,2020,2019-07-09,2067018,19240,A THRU Z CONSULTING & DISTRIBUTING,2019-07-25,1046379,Louisville Zoo,Metro Government Capital,Contractual Services,Payments to Contractors,,,,,Capital Project Fund,,,14293
186,2020,2019-07-12,2066670,877.68,WEBER GROUP INC,2019-07-25,1046611,Louisville Zoo,Metro Government Capital,Contractual Services,Payments to Contractors,,,,,Capital Project Fund,,,877.68
187,2020,2019-06-12,2060199,16897.23,FISHEL COMPANY,2019-07-09,1043784,Metro Police,Metro Government Capital,Equipment/Capital Outlay,Law Enforcement Camera Equiment,,,,,Federal Forfeitures,,,6236.32
188,2020,2019-05-20,2063560,430.78,JEFFERSON COUNTY ATTORNEY OFFICE,2019-07-18,1045105,Metro Police,Metro Government Capital,Contractual Services,Miscellaneous Expense,,,,,State Forfeitures,,,430.78
189,2020,2019-05-21,2062472,164.75,JEFFERSON COUNTY ATTORNEY OFFICE,2019-07-09,1043801,Metro Police,Metro Government Capital,Contractual Services,Miscellaneous Expense,,,,,State Forfeitures,,,164.75
190,2020,2019-05-09,2062474,324,JEFFERSON COUNTY ATTORNEY OFFICE,2019-07-09,1043801,Metro Police,Metro Government Capital,Contractual Services,Miscellaneous Expense,,,,,State Forfeitures,,,324
191,2020,2019-06-21,2063275,314.89,JEFFERSON COUNTY ATTORNEY OFFICE,2019-07-12,1044397,Metro Police,Metro Government Capital,Contractual Services,Miscellaneous Expense,,,,,State Forfeitures,,,314.89
192,2020,2019-05-16,2067000,9082.56,REGUPOL ZEBRA ATHLETICS LLC,2019-07-23,1046035,Metro Police,Metro Government Capital,Equipment/Capital Outlay,Law Enforcement Equipment,,,,,State Forfeitures,,,9082.56
193,2020,2019-06-17,2060200,7002.35,FISHEL COMPANY,2019-07-09,1043784,Metro Police,Metro Government Capital,Equipment/Capital Outlay,Law Enforcement Camera Equiment,,,,,Federal Forfeitures,,,7002.35
194,2020,2019-06-12,2060199,16897.23,FISHEL COMPANY,2019-07-09,1043784,Metro Police,Metro Government Capital,Equipment/Capital Outlay,Law Enforcement Camera Equiment,,,,,Federal Forfeitures,,,10660.91
195,2020,2019-06-06,2063046,15657.6,QK4 INC,2019-07-09,1043863,Parks & Recreation,Metro Government Capital,Contractual Services,Professional Services,,,,,Capital Project Fund,,,3131.52
196,2020,2019-06-06,2063046,15657.6,QK4 INC,2019-07-09,1043863,Parks & Recreation,Metro Government Capital,Contractual Services,Professional Services,,,,,Pass Thru Federal,,,12526.08
197,2020,2019-06-26,2063070,24270.8,URS CORPORATION,2019-07-12,1044494,Parks & Recreation,Metro Government Capital,Contractual Services,Professional Services,,,,,Federally Funded,,,19416.64
198,2020,2019-06-08,2063043,396,GRESHAM SMITH,2019-07-09,1043794,Parks & Recreation,Metro Government Capital,Contractual Services,Payments to Contractors,,,,,State Funding,,,396
199,2020,2019-07-24,2069248,13770,CARAHSOFT TECHNOLOGY CORPORATION,2019-08-02,1047678,Technology Services Department,Metro Government Capital,Contractual Services,Consulting Services,,,,,Capital Project Fund,,,13770
200,2020,2019-07-29,2069250,17820,CARAHSOFT TECHNOLOGY CORPORATION,2019-08-02,1047678,Technology Services Department,Metro Government Capital,Contractual Services,Consulting Services,,,,,Capital Project Fund,,,17820
201,2020,2019-03-13,2028090,10140,LUCKETT & FARLEY ARCHITECTS ENGINEERS,2019-07-16,1044820,Emergency Management Agency/MetroSafe,Metro Government Capital,Contractual Services,Engineering & Architectural Services,,,,,Capital Project Fund,,,5881.2
202,2020,2019-03-13,2028090,10140,LUCKETT & FARLEY ARCHITECTS ENGINEERS,2019-07-16,1044820,Emergency Management Agency/MetroSafe,Metro Government Capital,Contractual Services,Engineering & Architectural Services,,,,,Metro GO Bonds 17A,,,4258.8
203,2020,2019-07-16,2067486,3750,LUCKETT & FARLEY ARCHITECTS ENGINEERS,2019-07-26,1046778,Emergency Management Agency/MetroSafe,Metro Government Capital,Contractual Services,Engineering & Architectural Services,,,,,Metro GO Bonds 17A,,,1575
204,2020,2019-03-28,2033441,99,LYNN BLUE PRINT & SUPPLY CO INC,2019-07-05,1043415,Emergency Management Agency/MetroSafe,Metro Government Capital,Contractual Services,Payments to Contractors,,,,,Capital Project Fund,,,99
205,2020,2019-07-01,2063301,90,HIGHWAY SAFETY SERVICES,2019-07-26,1046754,Public Works & Assets Department,Metro Government Capital,Contractual Services,Bridge Construction/ Repair Services,,,,,Metro GO Bonds 17A,,,45
206,2020,2019-07-01,2063301,90,HIGHWAY SAFETY SERVICES,2019-07-26,1046754,Public Works & Assets Department,Metro Government Capital,Contractual Services,Bridge Construction/ Repair Services,,,,,Metro GO Bonds 17A,,,45
207,2020,2019-06-12,2061044,1260,STRAND ASSOCIATES INC,2019-07-09,1043889,Public Works & Assets Department,Metro Government Capital,Contractual Services,Bridge Construction/ Repair Services,,,,,Metro GO Bonds 17A,,,1260
208,2020,2019-06-14,2061046,3200,STRAND ASSOCIATES INC,2019-07-09,1043889,Public Works & Assets Department,Metro Government Capital,Contractual Services,Bridge Construction/ Repair Services,,,,,Metro GO Bonds 17A,,,3200
209,2020,2019-06-14,2061047,2492.44,STRAND ASSOCIATES INC,2019-07-09,1043889,Public Works & Assets Department,Metro Government Capital,Contractual Services,Bridge Construction/ Repair Services,,,,,Metro GO Bonds 17A,,,2492.44
210,2020,2019-07-15,2066253,2620,STRAND ASSOCIATES INC,2019-08-09,1048572,Public Works & Assets Department,Metro Government Capital,Contractual Services,Bridge Construction/ Repair Services,,,,,Metro GO Bonds 17A,,,2620
211,2020,2019-07-15,2066601,10918.5,STRAND ASSOCIATES INC,2019-08-09,1048572,Public Works & Assets Department,Metro Government Capital,Contractual Services,Bridge Construction/ Repair Services,,,,,Metro GO Bonds 17A,,,10918.5
212,2020,2019-05-31,2062457,9482.42,QK4 INC,2019-07-16,1044845,Public Works & Assets Department,Metro Government Capital,Contractual Services,Engineering & Architectural Services,,,,,Metro GO Bonds 17A,,,9482.42
213,2020,2018-09-03,2026272,150,SUBURBAN TOWING INC,2019-07-30,1047081,Parks & Recreation,Metro Government Capital,Contractual Services,Demolition Services,,,,,Capital Project Fund,,,-150
214,2020,2018-09-03,2026272,150,SUBURBAN TOWING INC,2019-07-30,1047081,Parks & Recreation,Metro Government Capital,Contractual Services,Demolition Services,,,,,Capital Project Fund,,,150
215,2020,2019-03-29,2068855,5222.64,ACCELA INC,2019-08-20,1049542,Technology Services Department,Metro Government Capital,Contractual Services,Consulting Services,,,,,Metro GO Bonds 16A,,,5222.64
216,2020,2019-06-07,2058209,7897.5,ACCELA INC,2019-07-05,1043402,Technology Services Department,Metro Government Capital,Contractual Services,Consulting Services,,,,,Metro GO Bonds 16A,,,6466.78
217,2020,2019-06-07,2058209,7897.5,ACCELA INC,2019-07-05,1043402,Technology Services Department,Metro Government Capital,Contractual Services,Consulting Services,,,,,Metro GO Bonds 16A,,,1430.72
218,2020,2019-03-28,2061391,5747.43,ACCELA INC,2019-07-02,1042622,Technology Services Department,Metro Government Capital,Contractual Services,Consulting Services,,,,,Metro GO Bonds 16A,,,5747.43
219,2020,2019-06-14,2059767,7818.47,LUSK MECHANICALCONTRACTORS INC,2019-07-02,1043145,Public Works & Assets Department,Metro Government Capital,Contractual Services,HVAC Mechanical,,,,,Metro GO Notes 17A,,,7818.47
220,2020,2019-06-18,2060783,3612.5,GRAINGER INDUSTRIAL SUPPLY,2019-07-16,1044793,Public Works & Assets Department,Metro Government Capital,Contractual Services,Other Building Maintenance/Repair Services,,,,,Metro GO Notes 17A,,,3612.5
221,2020,2019-07-01,2064062,13006.37,BRAVURA CORPORATION,2019-07-18,1045066,Louisville Fire Department,Metro Government Capital,Contractual Services,Building/Office Renovation,,,,,Metro GO Bonds 17A,,,1447.12
222,2020,2019-06-11,2063783,18166.04,KOFI CONSULTING SERVICES INC,2019-07-18,1045115,Louisville Fire Department,Metro Government Capital,Contractual Services,Building/Office Renovation,,,,,Metro GO Bonds 17A,,,8242.7
223,2020,2019-06-11,2063783,18166.04,KOFI CONSULTING SERVICES INC,2019-07-18,1045115,Louisville Fire Department,Metro Government Capital,Contractual Services,Building/Office Renovation,,,,,Metro GO Bonds 17A,,,5897.89
224,2020,2019-06-14,2061389,24936.85,EDEN FENCE INC,2019-07-09,1043779,Public Works & Assets Department,Metro Government Capital,Equipment/Capital Outlay,Guardrail,,,,,County Road Aid,,,2438.35
225,2020,2019-06-14,2061389,24936.85,EDEN FENCE INC,2019-07-09,1043779,Public Works & Assets Department,Metro Government Capital,Equipment/Capital Outlay,Guardrail,,,,,County Road Aid,,,22498.5
226,2020,2019-07-02,2063203,15365.5,EDEN FENCE INC,2019-07-30,1046990,Public Works & Assets Department,Metro Government Capital,Equipment/Capital Outlay,Guardrail,,,,,County Road Aid,,,15365.5
227,2020,2019-07-02,2062870,16824.34,EDEN FENCE INC,2019-07-30,1046990,Public Works & Assets Department,Metro Government Capital,Equipment/Capital Outlay,Guardrail,,,,,County Road Aid,,,16824.34
228,2020,2019-07-02,2062873,22144.94,EDEN FENCE INC,2019-07-30,1046990,Public Works & Assets Department,Metro Government Capital,Equipment/Capital Outlay,Guardrail,,,,,County Road Aid,,,22144.94
229,2020,2019-07-01,2065639,3165,YATES ENGINEERING SERVICES LLC,2019-07-30,1047108,Technology Services Department,Metro Government Capital,Contractual Services,Consulting Services,,,,,Metro GO Bonds 17A,,,3165
230,2020,2019-07-01,2065642,6410,YATES ENGINEERING SERVICES LLC,2019-07-30,1047108,Technology Services Department,Metro Government Capital,Contractual Services,Consulting Services,,,,,Metro GO Bonds 17A,,,6410
231,2020,2019-07-01,2065644,356.25,YATES ENGINEERING SERVICES LLC,2019-07-30,1047108,Technology Services Department,Metro Government Capital,Contractual Services,Consulting Services,,,,,Metro GO Bonds 17A,,,356.25
232,2020,2019-06-03,2057864,5791.25,YATES ENGINEERING SERVICES LLC,2019-07-05,1043607,Technology Services Department,Metro Government Capital,Contractual Services,Consulting Services,,,,,Metro GO Bonds 17A,,,5791.25
233,2020,2019-06-03,2058123,150,YATES ENGINEERING SERVICES LLC,2019-07-05,1043607,Technology Services Department,Metro Government Capital,Contractual Services,Consulting Services,,,,,Metro GO Bonds 17A,,,150
234,2020,2019-06-03,2058129,4385,YATES ENGINEERING SERVICES LLC,2019-07-05,1043607,Technology Services Department,Metro Government Capital,Contractual Services,Consulting Services,,,,,Metro GO Bonds 17A,,,4385
235,2020,2019-05-20,2058156,51191,CDW LLC,2019-07-09,1043760,Technology Services Department,Metro Government Capital,Contractual Services,Payments to Contractors,,,,,Metro GO Bonds 17A,,,51191
236,2020,2019-05-23,2055243,1782.12,S WALK INC,2019-07-18,1045144,Public Works & Assets Department,Metro Government Capital,Contractual Services,Sidewalk Construction/ Repair Services,,,,,Metro GO Bonds 17A,,,1782.12
237,2020,2019-05-23,2055243,1782.12,S WALK INC,2019-07-18,1045144,Public Works & Assets Department,Metro Government Capital,Contractual Services,Sidewalk Construction/ Repair Services,,,,,Metro GO Bonds 17A,,,-1782.12
238,2020,2019-05-31,2062468,4996,QK4 INC,2019-07-16,1044845,Public Works & Assets Department,Metro Government Capital,Contractual Services,Engineering & Architectural Services,,,,,Metro GO Bonds 17A,,,2222.49
239,2020,2019-05-31,2062468,4996,QK4 INC,2019-07-16,1044845,Public Works & Assets Department,Metro Government Capital,Contractual Services,Engineering & Architectural Services,,,,,Metro GO Bonds 17A,,,2773.51
240,2020,2019-06-30,2068585,36730.86,LOUISVILLE PAVING COMPANY INC,2019-07-30,1047033,Public Works & Assets Department,Metro Government Capital,Contractual Services,Road Construction/ Paving Services,,,,,Metro GO Bonds 17A,,,36730.86
241,2020,2019-05-31,2056830,8522.31,DEBRA KUEMPEL INC,2019-07-02,1043066,Parks & Recreation,Metro Government Capital,Contractual Services,Other Building Maintenance/Repair Services,,,,,Metro GO Bonds 17A,,,8522.31
242,2020,2019-04-12,2062072,6108.5,RIVERSIDE PAVING & CONTRACTING CO INC,2019-07-02,1043196,Parks & Recreation,Metro Government Capital,Contractual Services,Other Building Maintenance/Repair Services,,,,,Metro GO Bonds 17A,,,6108.5
243,2020,2018-10-29,2062404,3829.6,RIVERSIDE PAVING & CONTRACTING CO INC,2019-07-02,1043196,Parks & Recreation,Metro Government Capital,Contractual Services,Other Building Maintenance/Repair Services,,,,,Metro GO Bonds 17A,,,3829.6
244,2020,2019-05-13,2069713,18,QUANTEM LABORATORIES LLC,2019-08-30,1051257,Parks & Recreation,Metro Government Capital,Contractual Services,Other Building Maintenance/Repair Services,,,,,Metro GO Notes 17A,,,18
245,2020,2019-05-21,2068679,5135,TRAFFIC AND PARKING CONTROL CO INC,2019-07-30,1047089,Public Works & Assets Department,Metro Government Capital,Supplies,Traffic/Street Signs Hardware Supplies,,,,,County Road Aid,,,5135
246,2020,2019-06-30,2066882,3181.5,REYNOLDS SEALING & STRIPING INC,2019-07-25,1046540,Public Works & Assets Department,Metro Government Capital,Supplies,Traffic/Street Signs Hardware Supplies,,,,,Municipal Aid,,,2499.2
247,2020,2019-06-19,2062467,420,ERNST ENTERPRISES INC,2019-07-12,1044376,Develop Louisville,Metro Government Capital,Contractual Services,Landscaping Services,,,,,Capital Project Fund,,,420
248,2020,2019-06-20,2062166,156.7,LOWES COMPANIES INC,2019-07-02,1043144,Develop Louisville,Metro Government Capital,Contractual Services,Landscaping Services,,,,,Capital Project Fund,,,156.7
249,2020,2019-07-02,2066639,14201,PODGES ENT LLC,2019-07-23,1046025,Develop Louisville,Metro Government Capital,Contractual Services,Landscaping Services,,,,,Capital Project Fund,,,13936.86
250,2020,2019-07-02,2065553,1000,PODGES ENT LLC,2019-07-30,1047062,Develop Louisville,Metro Government Capital,Contractual Services,Landscaping Services,,,,,Capital Project Fund,,,1000
251,2020,2019-06-05,2058222,5812,PODGES ENT LLC,2019-07-02,1043184,Develop Louisville,Metro Government Capital,Contractual Services,Landscaping Services,,,,,Capital Project Fund,,,5812
252,2020,2019-07-22,2068483,7560,CARAHSOFT TECHNOLOGY CORPORATION,2019-08-02,1047678,Technology Services Department,Metro Government Capital,Contractual Services,Consulting Services,,,,,Capital Project Fund,,,7560
253,2020,2019-06-05,2058520,7992,PODGES ENT LLC,2019-07-02,1043184,Develop Louisville,Metro Government Capital,Contractual Services,Landscaping Services,,,,,Capital Project Fund,,,7992
254,2020,2019-06-30,2063465,5490,TRANSMAP CORPORATION,2019-07-18,1045165,Public Works & Assets Department,Metro Government Capital,Contractual Services,Engineering & Architectural Services,,,,,FY19 Metro GO Note,,,5490
255,2020,2019-06-26,2063070,24270.8,URS CORPORATION,2019-07-12,1044494,Parks & Recreation,Metro Government Capital,Contractual Services,Professional Services,,,,,General Obligation Bonds 2009,,,4854.16
256,2020,2019-06-30,2066335,4160,REYNOLDS SEALING & STRIPING INC,2019-07-19,1045414,Public Works & Assets Department,Metro Government Capital,Contractual Services,Engineering & Architectural Services,,,,,FY19 Metro GO Bond - 10 yr,,,4160
257,2020,2019-04-01,2054994,18625.35,CDW LLC,2019-07-11,1044080,Technology Services Department,Metro Government Capital,Contractual Services,Computer Software Licenses,,,,,FY19 Metro GO Bond - 10 yr,,,8500.14
258,2020,2019-04-04,2041127,58536.2,FISHER SCIENTIFIC COMPANY LLC,2019-07-02,1043087,Metro Police,Metro Government Capital,Equipment/Capital Outlay,Law Enforcement Equipment,,,,,Federal Forfeitures,,,58536.2
259,2020,2019-07-11,2068238,4464,DEAN DORTON ALLEN FORD PLLC,2019-07-30,1046984,Technology Services Department,Metro Government Capital,Contractual Services,Consulting Services,,,,,FY19 Metro GO Bond - 10 yr,,,4464
260,2020,2019-07-03,2063361,174.94,BRENDA HYATT,2019-07-09,1043657,Economic Development,Metro Government Capital,Contractual Services,Other Project Expenditure,,,,,New Market Tax Credit,,,174.94
261,2020,2019-06-26,2065622,22908.05,CDW LLC,2019-08-01,1047380,Technology Services Department,Metro Government Capital,Equipment/Capital Outlay,Computer Software,,,,,FY19 Metro GO Bond - 10 yr,,,22908.05
262,2020,2019-06-13,2058747,675.16,CDW LLC,2019-07-09,1043760,Library,Metro Government Capital,Contractual Services,Payments to Contractors,,,,,Capital Project Fund,,,675.16
263,2020,2019-04-25,2059880,47810.51,EZ CONSTRUCTION COMPANY INC,2019-07-16,1044778,Public Works & Assets Department,Metro Government Capital,Contractual Services,Building Construction Services,,,,,FY19 Metro GO Note,,,25598.78
264,2020,2019-06-12,2058750,4898.5,CDW LLC,2019-07-09,1043760,Library,Metro Government Capital,Contractual Services,Payments to Contractors,,,,,Capital Project Fund,,,4898.5
265,2020,2019-06-10,2058644,17284.13,MADDEN ELEVATOR COMPANY,2019-07-30,1047035,Public Works & Assets Department,Metro Government Capital,Contractual Services,Elevators,,,,,FY19 Metro GO Note,,,17284.13
266,2020,2019-06-21,2063841,68.5,CDW LLC,2019-07-16,1044755,Library,Metro Government Capital,Contractual Services,Payments to Contractors,,,,,Capital Project Fund,,,68.5
267,2020,2019-05-08,2049516,10333.5,MADDEN ELEVATOR COMPANY,2019-07-30,1047035,Public Works & Assets Department,Metro Government Capital,Contractual Services,Elevators,,,,,FY19 Metro GO Note,,,10333.5
268,2020,2019-06-08,2060445,943.5,CDW LLC,2019-07-05,1043490,Library,Metro Government Capital,Contractual Services,Payments to Contractors,,,,,Capital Project Fund,,,943.5
269,2020,2019-05-31,2058332,1739.32,ALPHA MECHANICAL SERVICE INC,2019-07-02,1043022,Public Works & Assets Department,Metro Government Capital,Contractual Services,HVAC Mechanical,,,,,FY19 Metro GO Note,,,1739.32
270,2020,2019-06-11,2060123,193.26,DEMCO INC,2019-07-09,1043774,Library,Metro Government Capital,Contractual Services,Payments to Contractors,,,,,Capital Project Fund,,,193.26
271,2020,2019-05-23,2067714,55933.01,EZ BLIND SERVICE,2019-07-30,1046992,Library,Metro Government Capital,Contractual Services,Payments to Contractors,,,,,Capital Project Fund,,,-56933.01
272,2020,2019-05-23,2067714,55933.01,EZ BLIND SERVICE,2019-07-30,1046992,Library,Metro Government Capital,Contractual Services,Payments to Contractors,,,,,Capital Project Fund,,,55933.01
273,2020,2019-05-23,2067714,55933.01,EZ BLIND SERVICE,2019-07-30,1046992,Library,Metro Government Capital,Contractual Services,Payments to Contractors,,,,,Capital Project Fund,,,56933.01
274,2020,2019-05-01,2062533,743.58,MINDS ON EDUCATION INC,2019-07-05,1043555,Library,Metro Government Capital,Contractual Services,Payments to Contractors,,,,,Capital Project Fund,,,743.58
275,2020,2019-06-24,2067405,5960.56,MUNSON BUSINESS INTERIORS INC,2019-07-30,1047046,Library,Metro Government Capital,Contractual Services,Payments to Contractors,,,,,Capital Project Fund,,,5960.56
276,2020,2019-06-19,2067745,74138.16,MUNSON BUSINESS INTERIORS INC,2019-07-30,1047046,Library,Metro Government Capital,Contractual Services,Payments to Contractors,,,,,Capital Project Fund,,,74138.16
277,2020,2019-06-25,2064965,68602.23,MUNSON BUSINESS INTERIORS INC,2019-07-18,1045129,Library,Metro Government Capital,Contractual Services,Payments to Contractors,,,,,Capital Project Fund,,,68602.23
278,2020,2019-06-24,2068761,1920.7,MUNSON BUSINESS INTERIORS INC,2019-07-30,1047046,Library,Metro Government Capital,Contractual Services,Payments to Contractors,,,,,Capital Project Fund,,,1920.7
279,2020,2019-06-28,2064433,1463.69,SCHOOL SPECIALTY INC,2019-07-12,1044456,Library,Metro Government Capital,Contractual Services,Payments to Contractors,,,,,Capital Project Fund,,,83.47
280,2020,2019-06-28,2064433,1463.69,SCHOOL SPECIALTY INC,2019-07-12,1044456,Library,Metro Government Capital,Contractual Services,Payments to Contractors,,,,,Capital Project Fund,,,1257.65
281,2020,2019-05-31,2063817,544089.97,SULLIVAN & COZART INC,2019-07-18,1045152,Library,Metro Government Capital,Contractual Services,Payments to Contractors,,,,,Capital Project Fund,,,10799.38
282,2020,2019-05-31,2063817,544089.97,SULLIVAN & COZART INC,2019-07-18,1045152,Library,Metro Government Capital,Contractual Services,Payments to Contractors,,,,,Capital Project Fund,,,42558.78
283,2020,2019-06-20,2062119,3333.75,TIMS CUSTOM WOODWORKS LLC,2019-07-18,1045159,Library,Metro Government Capital,Contractual Services,Payments to Contractors,,,,,Capital Project Fund,,,1300
284,2020,2019-06-20,2062119,3333.75,TIMS CUSTOM WOODWORKS LLC,2019-07-18,1045159,Library,Metro Government Capital,Contractual Services,Payments to Contractors,,,,,Capital Project Fund,,,2033.75
285,2020,2019-06-10,2065267,1011.48,TLF CREATIONS,2019-07-18,1045161,Library,Metro Government Capital,Contractual Services,Payments to Contractors,,,,,Capital Project Fund,,,1011.48
286,2020,2019-07-18,2067780,266.24,BAKER AND TAYLOR INC,2019-07-25,1046399,Library,Metro Government Capital,Supplies,Books,,,,,Capital Project Fund,,,266.24
287,2020,2019-07-11,2065270,7.68,BAKER AND TAYLOR INC,2019-07-25,1046399,Library,Metro Government Capital,Supplies,Books,,,,,Capital Project Fund,,,7.68
288,2020,2019-07-11,2065270,7.68,BAKER AND TAYLOR INC,2019-07-25,1046399,Library,Metro Government Capital,Supplies,Books,,,,,Capital Project Fund,,,-7.68
289,2020,2019-07-11,2065270,7.68,BAKER AND TAYLOR INC,2019-07-25,1046399,Library,Metro Government Capital,Supplies,Books,,,,,Capital Project Fund,,,7.68
290,2020,2019-07-16,2067214,14.74,BAKER AND TAYLOR INC,2019-07-25,1046399,Library,Metro Government Capital,Supplies,Books,,,,,Capital Project Fund,,,14.74
291,2020,2019-07-18,2067276,17.44,BAKER AND TAYLOR INC,2019-07-25,1046399,Library,Metro Government Capital,Supplies,Books,,,,,Capital Project Fund,,,17.44
292,2020,2019-06-28,2062676,69.22,BAKER AND TAYLOR INC,2019-07-09,1043748,Library,Metro Government Capital,Supplies,Books,,,,,Capital Project Fund,,,69.22
293,2020,2019-06-27,2063731,23.52,BAKER AND TAYLOR INC,2019-07-11,1044073,Library,Metro Government Capital,Supplies,Books,,,,,Capital Project Fund,,,23.52
294,2020,2019-07-05,2064244,31.41,BAKER AND TAYLOR INC,2019-07-12,1044357,Library,Metro Government Capital,Supplies,Books,,,,,Capital Project Fund,,,31.41
295,2020,2019-07-05,2064246,425.98,BAKER AND TAYLOR INC,2019-07-12,1044357,Library,Metro Government Capital,Supplies,Books,,,,,Capital Project Fund,,,425.98
296,2020,2019-07-11,2065182,15.94,BAKER AND TAYLOR INC,2019-07-16,1044743,Library,Metro Government Capital,Supplies,Books,,,,,Capital Project Fund,,,15.94
297,2020,2019-07-03,2064567,212.76,BAKER AND TAYLOR INC,2019-07-16,1044743,Library,Metro Government Capital,Supplies,Books,,,,,Capital Project Fund,,,212.76
298,2020,2019-07-11,2066213,17.18,BAKER AND TAYLOR INC,2019-07-18,1045062,Library,Metro Government Capital,Supplies,Books,,,,,Capital Project Fund,,,17.18
299,2020,2019-07-24,2069152,93.17,BAKER AND TAYLOR INC,2019-08-01,1047367,Library,Metro Government Capital,Supplies,Books,,,,,Capital Project Fund,,,93.17
300,2020,2019-07-19,2069001,13.27,BAKER AND TAYLOR INC,2019-08-01,1047367,Library,Metro Government Capital,Supplies,Books,,,,,Capital Project Fund,,,13.27
301,2020,2019-07-22,2069240,48.24,BAKER AND TAYLOR INC,2019-08-01,1047367,Library,Metro Government Capital,Supplies,Books,,,,,Capital Project Fund,,,48.24
302,2020,2019-07-19,2069255,56.5,BAKER AND TAYLOR INC,2019-08-01,1047367,Library,Metro Government Capital,Supplies,Books,,,,,Capital Project Fund,,,56.5
303,2020,2019-06-24,2062416,389.48,BAKER AND TAYLOR INC,2019-07-05,1043484,Library,Metro Government Capital,Supplies,Books,,,,,Capital Project Fund,,,389.48
304,2020,2019-06-28,2062417,92.58,BAKER AND TAYLOR INC,2019-07-05,1043484,Library,Metro Government Capital,Supplies,Books,,,,,Capital Project Fund,,,92.58
305,2020,2019-06-20,2062535,165.27,BAKER AND TAYLOR INC,2019-07-05,1043484,Library,Metro Government Capital,Supplies,Books,,,,,Capital Project Fund,,,165.27
306,2020,2019-06-24,2062536,253.53,BAKER AND TAYLOR INC,2019-07-05,1043484,Library,Metro Government Capital,Supplies,Books,,,,,Capital Project Fund,,,253.53
307,2020,2019-06-24,2062537,64.26,BAKER AND TAYLOR INC,2019-07-05,1043484,Library,Metro Government Capital,Supplies,Books,,,,,Capital Project Fund,,,64.26
308,2020,2018-12-18,2062653,8.39,BAKER AND TAYLOR INC,2019-07-05,1043484,Library,Metro Government Capital,Supplies,Books,,,,,Capital Project Fund,,,8.39
309,2020,2019-06-24,2062661,5.93,BAKER AND TAYLOR INC,2019-07-05,1043484,Library,Metro Government Capital,Supplies,Books,,,,,Capital Project Fund,,,5.93
310,2020,2019-06-26,2062675,25.14,BAKER AND TAYLOR INC,2019-07-05,1043484,Library,Metro Government Capital,Supplies,Books,,,,,Capital Project Fund,,,25.14
311,2020,2019-06-27,2062864,13.29,MIDWEST TAPE LLC,2019-07-09,1043842,Library,Metro Government Capital,Supplies,Books,,,,,Capital Project Fund,,,13.29
312,2020,2019-06-30,2064517,19068.22,ALPHA MECHANICAL SERVICE INC,2019-07-23,1045868,Public Works & Assets Department,Metro Government Capital,Contractual Services,HVAC Mechanical,,,,,FY19 Metro GO Note,,,19068.22
313,2020,2019-06-30,2064055,41210.54,ALPHA MECHANICAL SERVICE INC,2019-08-01,1047357,Public Works & Assets Department,Metro Government Capital,Contractual Services,HVAC Mechanical,,,,,FY19 Metro GO Note,,,41210.54
314,2020,2019-05-21,2055104,9896.68,JOHNSON CONTROLS INC,2019-07-02,1043123,Public Works & Assets Department,Metro Government Capital,Contractual Services,HVAC Mechanical,,,,,FY19 Metro GO Note,,,9896.68
315,2020,2019-06-24,2061799,12379.49,JOHNSON CONTROLS INC,2019-07-09,1043807,Public Works & Assets Department,Metro Government Capital,Contractual Services,HVAC Mechanical,,,,,FY19 Metro GO Note,,,12379.49
316,2020,2019-06-24,2062114,26718.37,JOHNSON CONTROLS INC,2019-07-09,1043807,Public Works & Assets Department,Metro Government Capital,Contractual Services,HVAC Mechanical,,,,,FY19 Metro GO Note,,,26718.37
317,2020,2019-05-10,2050951,2909.32,DEBRA KUEMPEL INC,2019-08-27,1050730,Public Works & Assets Department,Metro Government Capital,Contractual Services,Other Building Maintenance/Repair Services,,,,,FY19 Metro GO Note,,,2909.32
318,2020,2019-05-31,2062127,19356.43,MADDEN ELEVATOR COMPANY,2019-07-23,1045999,Public Works & Assets Department,Metro Government Capital,Contractual Services,Other Building Maintenance/Repair Services,,,,,FY19 Metro GO Note,,,19356.43
319,2020,2019-06-19,2058926,20312.25,HIGHLAND ROOFING COMPANY INC,2019-07-16,1044797,Public Works & Assets Department,Metro Government Capital,Contractual Services,Roofing Project Services,,,,,FY19 Metro GO Note,,,16044.75
320,2020,2019-06-19,2058926,20312.25,HIGHLAND ROOFING COMPANY INC,2019-07-16,1044797,Public Works & Assets Department,Metro Government Capital,Contractual Services,Roofing Project Services,,,,,FY19 Metro GO Note,,,4267.5
321,2020,2019-05-23,2066305,16077.75,WPC COMPANY INC,2019-07-19,1045470,Public Works & Assets Department,Metro Government Capital,Contractual Services,Roofing Project Services,,,,,FY19 Metro GO Note,,,1998.75
322,2020,2019-05-23,2066305,16077.75,WPC COMPANY INC,2019-07-19,1045470,Public Works & Assets Department,Metro Government Capital,Contractual Services,Roofing Project Services,,,,,FY19 Metro GO Note,,,14079
323,2020,2019-06-27,2065399,15199,ABN RESTORATION INC,2019-07-18,1044992,Develop Louisville,Metro Government Capital,Contractual Services,Grant Community Assistance,,,,,CDBG 2018,,,15199
324,2020,2019-06-27,2065455,15995,ABN RESTORATION INC,2019-07-18,1044991,Develop Louisville,Metro Government Capital,Contractual Services,Grant Community Assistance,,,,,CDBG 2018,,,15995
325,2020,2019-06-23,2064410,18195,CIU LLC,2019-07-12,1044301,Develop Louisville,Metro Government Capital,Contractual Services,Grant Community Assistance,,,,,CDBG 2018,,,18195
326,2020,2019-05-16,2065254,6800,SABER KHOSHROSHAHI,2019-07-18,1045013,Develop Louisville,Metro Government Capital,Contractual Services,Grant Community Assistance,,,,,CDBG 2018,,,6800
327,2020,2019-05-13,2065403,9800,SABER KHOSHROSHAHI,2019-07-19,1045266,Develop Louisville,Metro Government Capital,Contractual Services,Grant Community Assistance,,,,,CDBG 2018,,,9800
328,2020,2019-05-19,2055325,125,TITLE AGENCY SUPPORT LLC,2019-07-02,1043232,Develop Louisville,Metro Government Capital,Contractual Services,Grant Community Assistance,,,,,CDBG 2018,,,125
329,2020,2019-06-28,2064156,125,TITLE AGENCY SUPPORT LLC,2019-07-25,1046575,Develop Louisville,Metro Government Capital,Contractual Services,Grant Community Assistance,,,,,CDBG 2018,,,125
330,2020,2019-06-28,2064146,125,TITLE AGENCY SUPPORT LLC,2019-07-12,1044469,Develop Louisville,Metro Government Capital,Contractual Services,Grant Community Assistance,,,,,CDBG 2018,,,125
331,2020,2019-06-28,2064171,125,TITLE AGENCY SUPPORT LLC,2019-07-12,1044469,Develop Louisville,Metro Government Capital,Contractual Services,Grant Community Assistance,,,,,CDBG 2018,,,125
332,2020,2019-06-28,2064083,125,TITLE AGENCY SUPPORT LLC,2019-07-12,1044469,Develop Louisville,Metro Government Capital,Contractual Services,Grant Community Assistance,,,,,CDBG 2018,,,125
333,2020,2019-06-29,2064118,125,TITLE AGENCY SUPPORT LLC,2019-07-12,1044469,Develop Louisville,Metro Government Capital,Contractual Services,Grant Community Assistance,,,,,CDBG 2018,,,125
334,2020,2019-04-16,2061827,21182.25,COMSTOCK BROTHERS ELECTRIC CO LLC,2019-07-18,1045076,Library,Metro Government Capital,Contractual Services,Rehab Renovation/Improvements,,,,,FY19 Metro GO Note,,,21182.25
335,2020,2019-06-25,2067884,1122.96,HANKA CONSULTING,2019-07-25,1046456,Public Works & Assets Department,Metro Government Capital,Contractual Services,Sidewalk Construction/ Repair Services,,,,,FY19 Metro GO Bond - 10 yr,,,295.14
336,2020,2018-11-26,2067887,1297.65,HANKA CONSULTING,2019-07-25,1046456,Public Works & Assets Department,Metro Government Capital,Contractual Services,Sidewalk Construction/ Repair Services,,,,,FY19 Metro GO Bond - 10 yr,,,341.06
337,2020,2019-05-16,2067897,8098.73,HANKA CONSULTING,2019-07-25,1046456,Public Works & Assets Department,Metro Government Capital,Contractual Services,Sidewalk Construction/ Repair Services,,,,,FY19 Metro GO Bond - 10 yr,,,8098.73
338,2020,2018-11-26,2067893,7770.98,HANKA CONSULTING,2019-07-25,1046456,Public Works & Assets Department,Metro Government Capital,Contractual Services,Sidewalk Construction/ Repair Services,,,,,FY19 Metro GO Bond - 10 yr,,,2042.42
339,2020,2019-06-03,2056574,31,HIGHWAY SAFETY SERVICES,2019-08-01,1047425,Public Works & Assets Department,Metro Government Capital,Contractual Services,Sidewalk Construction/ Repair Services,,,,,FY19 Metro GO Bond - 10 yr,,,31
340,2020,2019-07-01,2063325,120,HIGHWAY SAFETY SERVICES,2019-08-01,1047425,Public Works & Assets Department,Metro Government Capital,Contractual Services,Sidewalk Construction/ Repair Services,,,,,FY19 Metro GO Bond - 10 yr,,,16.5
341,2020,2019-07-01,2063325,120,HIGHWAY SAFETY SERVICES,2019-08-01,1047425,Public Works & Assets Department,Metro Government Capital,Contractual Services,Sidewalk Construction/ Repair Services,,,,,FY19 Metro GO Bond - 10 yr,,,103.5
342,2020,2019-03-21,2062679,37824.1,RIVERSIDE PAVING & CONTRACTING CO INC,2019-07-05,1043570,Public Works & Assets Department,Metro Government Capital,Contractual Services,Sidewalk Construction/ Repair Services,,,,,FY19 Metro GO Bond - 10 yr,,,37824.1
343,2020,2019-06-12,2065319,20446.44,RIVERSIDE PAVING & CONTRACTING CO INC,2019-07-18,1045143,Public Works & Assets Department,Metro Government Capital,Contractual Services,Sidewalk Construction/ Repair Services,,,,,FY19 Metro GO Bond - 10 yr,,,9377.86
344,2020,2019-07-02,2065303,5534,RIVERSIDE PAVING & CONTRACTING CO INC,2019-07-23,1046038,Public Works & Assets Department,Metro Government Capital,Contractual Services,Sidewalk Construction/ Repair Services,,,,,FY19 Metro GO Bond - 10 yr,,,5534
345,2020,2019-07-08,2066896,7042,RIVERSIDE PAVING & CONTRACTING CO INC,2019-07-23,1046038,Public Works & Assets Department,Metro Government Capital,Contractual Services,Sidewalk Construction/ Repair Services,,,,,FY19 Metro GO Bond - 10 yr,,,7042
346,2020,2019-05-23,2055243,1782.12,S WALK INC,2019-07-18,1045144,Public Works & Assets Department,Metro Government Capital,Contractual Services,Sidewalk Construction/ Repair Services,,,,,FY19 Metro GO Bond - 10 yr,,,1782.12
347,2020,2019-02-27,2062460,3627.61,S WALK INC,2019-07-02,1043203,Public Works & Assets Department,Metro Government Capital,Contractual Services,Sidewalk Construction/ Repair Services,,,,,FY19 Metro GO Bond - 10 yr,,,3627.61
348,2020,2019-05-06,2068719,1018.8,S WALK INC,2019-08-02,1047752,Public Works & Assets Department,Metro Government Capital,Contractual Services,Sidewalk Construction/ Repair Services,,,,,FY19 Metro GO Bond - 10 yr,,,1018.8
349,2020,2019-06-19,2069173,38253.72,S WALK INC,2019-08-02,1047752,Public Works & Assets Department,Metro Government Capital,Contractual Services,Sidewalk Construction/ Repair Services,,,,,FY19 Metro GO Bond - 10 yr,,,64.5
350,2020,2019-06-19,2069173,38253.72,S WALK INC,2019-08-02,1047752,Public Works & Assets Department,Metro Government Capital,Contractual Services,Sidewalk Construction/ Repair Services,,,,,FY19 Metro GO Bond - 10 yr,,,13247.84
351,2020,2019-06-19,2069173,38253.72,S WALK INC,2019-08-02,1047752,Public Works & Assets Department,Metro Government Capital,Contractual Services,Sidewalk Construction/ Repair Services,,,,,FY19 Metro GO Bond - 10 yr,,,24941.38
352,2020,2019-06-18,2061856,5127.8,S WALK INC,2019-07-16,1044855,Public Works & Assets Department,Metro Government Capital,Contractual Services,Sidewalk Construction/ Repair Services,,,,,FY19 Metro GO Bond - 10 yr,,,5127.8
353,2020,2019-06-18,2061858,8671.97,S WALK INC,2019-07-16,1044855,Public Works & Assets Department,Metro Government Capital,Contractual Services,Sidewalk Construction/ Repair Services,,,,,FY19 Metro GO Bond - 10 yr,,,8671.97
354,2020,2019-06-18,2061859,2108.09,S WALK INC,2019-07-16,1044855,Public Works & Assets Department,Metro Government Capital,Contractual Services,Sidewalk Construction/ Repair Services,,,,,FY19 Metro GO Bond - 10 yr,,,2108.09
355,2020,2019-06-18,2061058,10955.88,S WALK INC,2019-07-16,1044855,Public Works & Assets Department,Metro Government Capital,Contractual Services,Sidewalk Construction/ Repair Services,,,,,FY19 Metro GO Bond - 10 yr,,,10955.88
356,2020,2019-07-05,2064318,648,BOB RAY CO INC,2019-07-30,1046968,Public Works & Assets Department,Metro Government Capital,Contractual Services,Landscaping Services,,,,,FY19 Metro GO Bond - 10 yr,,,648
357,2020,2019-07-05,2064320,1632,BOB RAY CO INC,2019-07-26,1046712,Public Works & Assets Department,Metro Government Capital,Contractual Services,Landscaping Services,,,,,FY19 Metro GO Bond - 10 yr,,,1632
358,2020,2019-07-12,2066421,1858.02,CSX TRANSPORTATION INC,2019-07-19,1045260,Public Works & Assets Department,Metro Government Capital,Contractual Services,Road Construction/ Paving Services,,,,,FY19 Metro GO Bond - 10 yr,,,1858.02
359,2020,2019-06-30,2066942,96217.18,HALL CONTRACTING OF KENTUCKY INC,2019-08-02,1047700,Public Works & Assets Department,Metro Government Capital,Contractual Services,Road Construction/ Paving Services,,,,,FY19 Metro GO Bond - 10 yr,,,96217.18
360,2020,2019-06-30,2066942,96217.18,HALL CONTRACTING OF KENTUCKY INC,2019-08-02,1047700,Public Works & Assets Department,Metro Government Capital,Contractual Services,Road Construction/ Paving Services,,,,,FY19 Metro GO Bond - 10 yr,,,96217.18
361,2020,2019-06-30,2066942,96217.18,HALL CONTRACTING OF KENTUCKY INC,2019-08-02,1047700,Public Works & Assets Department,Metro Government Capital,Contractual Services,Road Construction/ Paving Services,,,,,FY19 Metro GO Bond - 10 yr,,,-96217.18
362,2020,2019-05-31,2068684,45462.64,MAC CONSTRUCTION & EXCAVATING INC,2019-08-23,1050166,Public Works & Assets Department,Metro Government Capital,Contractual Services,Road Construction/ Paving Services,,,,,FY19 Metro GO Bond - 10 yr,,,3954.94
363,2020,2019-05-31,2068684,45462.64,MAC CONSTRUCTION & EXCAVATING INC,2019-08-23,1050166,Public Works & Assets Department,Metro Government Capital,Contractual Services,Road Construction/ Paving Services,,,,,FY19 Metro GO Bond - 10 yr,,,41507.7
364,2020,2018-08-06,2067575,790.4,3M COMPANY,2019-07-26,1046698,Public Works & Assets Department,Metro Government Capital,Contractual Services,Road Construction/ Paving Services,,,,,Municipal Aid,,,790.4
365,2020,2018-08-02,2067565,14533.1,3M COMPANY,2019-07-26,1046698,Public Works & Assets Department,Metro Government Capital,Contractual Services,Road Construction/ Paving Services,,,,,Municipal Aid,,,8645.01
366,2020,2019-06-24,2062464,102.72,CONSOLIDATED ELECTRICAL DISTRIBUTORS,2019-07-11,1043967,Public Works & Assets Department,Metro Government Capital,Contractual Services,Road Construction/ Paving Services,,,,,Municipal Aid,,,102.72
367,2020,2019-06-21,2061862,88.6,CONSOLIDATED ELECTRICAL DISTRIBUTORS,2019-07-02,1042633,Public Works & Assets Department,Metro Government Capital,Contractual Services,Road Construction/ Paving Services,,,,,Municipal Aid,,,88.6
368,2020,2019-06-21,2061863,201.94,CONSOLIDATED ELECTRICAL DISTRIBUTORS,2019-07-02,1042633,Public Works & Assets Department,Metro Government Capital,Contractual Services,Road Construction/ Paving Services,,,,,Municipal Aid,,,201.94
369,2020,2019-06-30,2066928,7988.03,HALL CONTRACTING OF KENTUCKY INC,2019-07-25,1046455,Public Works & Assets Department,Metro Government Capital,Contractual Services,Road Construction/ Paving Services,,,,,Municipal Aid,,,7988.03
370,2020,2019-05-21,2060919,8200,HALL CONTRACTING OF KENTUCKY INC,2019-07-23,1045954,Public Works & Assets Department,Metro Government Capital,Contractual Services,Road Construction/ Paving Services,,,,,Municipal Aid,,,8200
371,2020,2019-06-25,2066891,2625.43,HALL CONTRACTING OF KENTUCKY INC,2019-07-23,1045954,Public Works & Assets Department,Metro Government Capital,Contractual Services,Road Construction/ Paving Services,,,,,Municipal Aid,,,2625.43
372,2020,2019-06-25,2066902,1689.53,HALL CONTRACTING OF KENTUCKY INC,2019-07-23,1045954,Public Works & Assets Department,Metro Government Capital,Contractual Services,Road Construction/ Paving Services,,,,,Municipal Aid,,,1689.53
373,2020,2019-06-25,2066903,8514.72,HALL CONTRACTING OF KENTUCKY INC,2019-07-23,1045954,Public Works & Assets Department,Metro Government Capital,Contractual Services,Road Construction/ Paving Services,,,,,Municipal Aid,,,8514.72
374,2020,2019-05-16,2060917,91528.61,HALL CONTRACTING OF KENTUCKY INC,2019-07-23,1045954,Public Works & Assets Department,Metro Government Capital,Contractual Services,Road Construction/ Paving Services,,,,,Municipal Aid,,,1585.99
375,2020,2019-05-16,2060918,53276.8,HALL CONTRACTING OF KENTUCKY INC,2019-07-23,1045954,Public Works & Assets Department,Metro Government Capital,Contractual Services,Road Construction/ Paving Services,,,,,Municipal Aid,,,21375.29
376,2020,2019-06-30,2066934,93898.38,HALL CONTRACTING OF KENTUCKY INC,2019-08-29,1051094,Public Works & Assets Department,Metro Government Capital,Contractual Services,Road Construction/ Paving Services,,,,,Municipal Aid,,,93898.38
377,2020,2019-07-01,2063329,17.5,HIGHWAY SAFETY SERVICES,2019-07-26,1046754,Public Works & Assets Department,Metro Government Capital,Contractual Services,Road Construction/ Paving Services,,,,,Municipal Aid,,,17.5
378,2020,2019-05-30,2056218,8926.53,STANTEC CONSULTING SERVICES INC,2019-07-05,1043583,Public Works & Assets Department,Metro Government Capital,Contractual Services,Road Construction/ Paving Services,,,,,Municipal Aid,,,8926.53
379,2020,2019-07-12,2067039,1986.81,STANTEC CONSULTING SERVICES INC,2019-08-06,1048086,Public Works & Assets Department,Metro Government Capital,Contractual Services,Road Construction/ Paving Services,,,,,Municipal Aid,,,1986.81
380,2020,2019-06-21,2061371,3165.68,STANTEC CONSULTING SERVICES INC,2019-07-16,1044865,Public Works & Assets Department,Metro Government Capital,Contractual Services,Road Construction/ Paving Services,,,,,Municipal Aid,,,3165.68
381,2020,2019-06-17,2060640,1359.47,CDW LLC,2019-07-12,1044363,Public Works & Assets Department,Metro Government Capital,Contractual Services,Building Construction Services,,,,,FY19 Metro GO Bond - 20 yr,,,156.47
382,2020,2019-06-21,2066418,198476.85,F W OWENS COMPANY INC,2019-08-13,1048634,Public Works & Assets Department,Metro Government Capital,Contractual Services,Building Construction Services,,,,,FY19 Metro GO Bond - 20 yr,,,173227.69
383,2020,2019-06-10,2057488,16102.74,ALTA PLANNING + DESIGN INC,2019-07-05,1043477,Parks & Recreation,Metro Government Capital,Contractual Services,Sidewalk Construction/ Repair Services,,,,,FY19 Metro GO Note,,,14194.58
384,2020,2019-07-15,2066401,4277.36,ALTA PLANNING + DESIGN INC,2019-08-09,1048511,Parks & Recreation,Metro Government Capital,Contractual Services,Sidewalk Construction/ Repair Services,,,,,FY19 Metro GO Note,,,3770.5
385,2020,2019-07-30,2069485,50000,COMSTOCK BROTHERS ELECTRIC CO LLC,2019-08-02,1047683,Parks & Recreation,Metro Government Capital,Contractual Services,Utility Relocation Services,,,,,FY19 Metro GO Note,,,50000
386,2020,2019-06-21,2060684,20320,AZTEC FLOORING INC,2019-07-16,1044742,Parks & Recreation,Metro Government Capital,Contractual Services,Other Building Maintenance/Repair Services,,,,,FY19 Metro GO Note,,,20320
387,2020,2019-06-12,2059033,2234,AZTEC FLOORING INC,2019-07-09,1043747,Parks & Recreation,Metro Government Capital,Contractual Services,Other Building Maintenance/Repair Services,,,,,FY19 Metro GO Note,,,2234
388,2020,2019-06-19,2060558,10365.57,DEBRA KUEMPEL INC,2019-07-02,1043066,Parks & Recreation,Metro Government Capital,Contractual Services,Other Building Maintenance/Repair Services,,,,,FY19 Metro GO Note,,,10365.57
389,2020,2019-05-21,2057575,8226.16,DEBRA KUEMPEL INC,2019-07-02,1043066,Parks & Recreation,Metro Government Capital,Contractual Services,Other Building Maintenance/Repair Services,,,,,FY19 Metro GO Note,,,8226.16
390,2020,2019-06-10,2057490,15649.8,DEBRA KUEMPEL INC,2019-07-02,1043066,Parks & Recreation,Metro Government Capital,Contractual Services,Other Building Maintenance/Repair Services,,,,,FY19 Metro GO Note,,,15649.8
391,2020,2019-05-27,2056807,6952.96,DEBRA KUEMPEL INC,2019-07-02,1043066,Parks & Recreation,Metro Government Capital,Contractual Services,Other Building Maintenance/Repair Services,,,,,FY19 Metro GO Note,,,6952.96
392,2020,2019-01-11,2062395,2172,RIVERSIDE PAVING & CONTRACTING CO INC,2019-07-02,1043196,Parks & Recreation,Metro Government Capital,Contractual Services,Other Building Maintenance/Repair Services,,,,,FY19 Metro GO Note,,,2172
393,2020,2019-05-20,2065116,768.3,TENNIS TECHNOLOGY INC,2019-07-16,1044867,Parks & Recreation,Metro Government Capital,Contractual Services,Other Building Maintenance/Repair Services,,,,,FY19 Metro GO Note,,,768.3
394,2020,2019-06-04,2057613,2670.11,WALKER MECHANICAL CONTRACTORS INC,2019-07-02,1043258,Parks & Recreation,Metro Government Capital,Contractual Services,Other Building Maintenance/Repair Services,,,,,FY19 Metro GO Note,,,2670.11
395,2020,2019-06-18,2060566,422.4,WHEATLEY ROOFING COMPANY INC,2019-07-16,1044906,Parks & Recreation,Metro Government Capital,Contractual Services,Other Building Maintenance/Repair Services,,,,,FY19 Metro GO Note,,,422.4
396,2020,2019-07-03,2065205,4620,RIVERSIDE PAVING & CONTRACTING CO INC,2019-07-30,1047069,Parks & Recreation,Metro Government Capital,Contractual Services,Roadway Striping/Traffic Lane Marking Services,,,,,FY19 Metro GO Note,,,4620
397,2020,2019-06-30,2065617,5422.41,JUMP START REALTY AND DEVELOPMENT LLC,2019-07-19,1045261,Develop Louisville,Metro Government Capital,Contractual Services,Grant Community Assistance,,,,,CDBG 2018,,,5422.41
398,2020,2019-06-30,2065634,5422.41,JUMP START REALTY AND DEVELOPMENT LLC,2019-08-02,1047619,Develop Louisville,Metro Government Capital,Contractual Services,Grant Community Assistance,,,,,CDBG 2018,,,5422.41
399,2020,2018-08-02,2067565,14533.1,3M COMPANY,2019-07-26,1046698,Public Works & Assets Department,Metro Government Capital,Supplies,Traffic/Street Signs Hardware Supplies,,,,,Municipal Aid,,,5888.09
400,2020,2018-10-29,2068243,-1148.53,3M COMPANY,2019-07-26,1046698,Public Works & Assets Department,Metro Government Capital,Supplies,Traffic/Street Signs Hardware Supplies,,,,,Municipal Aid,,,-1148.53
401,2020,2019-06-10,2059848,8.74,OFFICE DEPOT INC,2019-07-05,1043562,Louisville Metro Police Department,Metro Government Operations,Supplies,Office Supplies,,,,,General Fund,,,8.74
402,2020,2019-05-31,2063248,8.84,AT&T CORP,2019-07-12,1044356,Louisville Metro Police Department,Metro Government Operations,Contractual Services,Air Cards,,,,,General Fund,,,8.84
403,2020,2019-06-23,2065678,18075.54,VERIZON WIRELESS,2019-07-18,1045176,Louisville Metro Police Department,Metro Government Operations,Contractual Services,Cellular Telephone Services,,,,,General Fund,,,18075.54
404,2020,2019-05-23,2062153,17459.59,VERIZON WIRELESS,2019-07-05,1043602,Louisville Metro Police Department,Metro Government Operations,Contractual Services,Cellular Telephone Services,,,,,General Fund,,,17459.59
405,2020,2019-06-25,2067427,14208,CDW LLC,2019-07-25,1046411,Louisville Metro Police Department,Metro Government Operations,Contractual Services,Computer Software Licenses,,,,,General Fund,,,14208
406,2020,2019-06-28,2067425,21052.8,HYLAND SOFTWARE INC,2019-07-25,1046462,Louisville Metro Police Department,Metro Government Operations,Contractual Services,Computer Software Rental,,,,,General Fund,,,21052.8
407,2020,2019-06-26,2062337,13114,IMAGESOFT INC,2019-07-23,1045963,Louisville Metro Police Department,Metro Government Operations,Contractual Services,Computer Software Rental,,,,,General Fund,,,13114
408,2020,2019-06-04,2056518,11933.57,INSIGHT PUBLIC SECTOR,2019-07-02,1043114,Louisville Metro Police Department,Metro Government Operations,Contractual Services,Computer Software Rental,,,,,General Fund,,,11933.57
409,2020,2019-05-07,2049532,579.05,GAMBER-JOHNSON LLC,2019-07-02,1043093,Louisville Metro Police Department,Metro Government Operations,Contractual Services,Equipment Maintenance/Repair Services,,,,,General Fund,,,579.05
410,2020,2019-07-15,2068796,16331.3,KONICA MINOLTA BUSINESS SOLUTIONS,2019-08-01,1047195,Louisville Metro Police Department,Metro Government Operations,Contractual Services,Equipment Rental,,,,,General Fund,,,49.47
411,2020,2019-06-25,2061240,910,COVERT TRACK GROUP INC,2019-07-23,1045915,Louisville Metro Police Department,Metro Government Operations,Contractual Services,Professional Services,,,,,General Fund,,,910
412,2020,2019-06-22,2063884,-0.3,UNITED PARCEL SERVICE,2019-08-08,1048398,Louisville Metro Police Department,Metro Government Operations,Contractual Services,Professional Services,,,,,General Fund,,,-0.3
413,2020,2019-06-25,2063364,1475,AT&T SERVICES INC,2019-07-09,1043745,Louisville Metro Police Department,Metro Government Operations,Contractual Services,Telephone Services,,,,,General Fund,,,1475
414,2020,2019-06-15,2057101,695.56,HLP INC,2019-07-11,1044103,Metro Animal Services,Metro Government Operations,Contractual Services,Computer Software Licenses,,,,,General Fund,,,695.56
415,2020,2019-06-29,2063354,1115,AT&T SERVICES INC,2019-07-09,1043745,Louisville Metro Police Department,Metro Government Operations,Contractual Services,Telephone Services,,,,,General Fund,,,1115
416,2020,2019-06-25,2063355,1450,AT&T SERVICES INC,2019-07-09,1043745,Louisville Metro Police Department,Metro Government Operations,Contractual Services,Telephone Services,,,,,General Fund,,,1450
417,2020,2019-06-25,2063359,625,AT&T SERVICES INC,2019-07-09,1043745,Louisville Metro Police Department,Metro Government Operations,Contractual Services,Telephone Services,,,,,General Fund,,,625
418,2020,2019-07-08,2068709,1450,AT&T SERVICES INC,2019-07-30,1046957,Louisville Metro Police Department,Metro Government Operations,Contractual Services,Telephone Services,,,,,General Fund,,,1450
419,2020,2019-06-13,2063363,792,SPRINT SOLUTIONS INC,2019-07-09,1043884,Louisville Metro Police Department,Metro Government Operations,Contractual Services,Telephone Services,,,,,General Fund,,,792
420,2020,2019-06-20,2063357,792,SPRINT SOLUTIONS INC,2019-07-09,1043884,Louisville Metro Police Department,Metro Government Operations,Contractual Services,Telephone Services,,,,,General Fund,,,792
421,2020,2019-06-21,2063367,792,SPRINT SOLUTIONS INC,2019-07-09,1043884,Louisville Metro Police Department,Metro Government Operations,Contractual Services,Telephone Services,,,,,General Fund,,,792
422,2020,2019-06-16,2063369,792,SPRINT SOLUTIONS INC,2019-07-09,1043884,Louisville Metro Police Department,Metro Government Operations,Contractual Services,Telephone Services,,,,,General Fund,,,792
423,2020,2019-06-16,2063371,792,SPRINT SOLUTIONS INC,2019-07-09,1043884,Louisville Metro Police Department,Metro Government Operations,Contractual Services,Telephone Services,,,,,General Fund,,,792
424,2020,2019-06-27,2066316,792,SPRINT SOLUTIONS INC,2019-07-19,1045430,Louisville Metro Police Department,Metro Government Operations,Contractual Services,Telephone Services,,,,,General Fund,,,792
425,2020,2019-07-01,2066320,792,SPRINT SOLUTIONS INC,2019-07-19,1045430,Louisville Metro Police Department,Metro Government Operations,Contractual Services,Telephone Services,,,,,General Fund,,,792
426,2020,2019-07-01,2066291,792,SPRINT SOLUTIONS INC,2019-07-25,1046558,Louisville Metro Police Department,Metro Government Operations,Contractual Services,Telephone Services,,,,,General Fund,,,792
427,2020,2019-07-10,2068692,792,SPRINT SOLUTIONS INC,2019-07-30,1047077,Louisville Metro Police Department,Metro Government Operations,Contractual Services,Telephone Services,,,,,General Fund,,,792
428,2020,2019-07-10,2068694,792,SPRINT SOLUTIONS INC,2019-07-30,1047077,Louisville Metro Police Department,Metro Government Operations,Contractual Services,Telephone Services,,,,,General Fund,,,792
429,2020,2019-07-11,2068758,100,SPRINT SOLUTIONS INC,2019-07-30,1047077,Louisville Metro Police Department,Metro Government Operations,Contractual Services,Telephone Services,,,,,General Fund,,,100
430,2020,2019-03-04,2066304,1122,T-MOBILE USA INC,2019-07-18,1045155,Louisville Metro Police Department,Metro Government Operations,Contractual Services,Telephone Services,,,,,General Fund,,,1122
431,2020,2019-07-12,2068749,2330,T-MOBILE USA INC,2019-07-30,1047082,Louisville Metro Police Department,Metro Government Operations,Contractual Services,Telephone Services,,,,,General Fund,,,2330
432,2020,2017-03-28,2068712,51,T-MOBILE USA INC,2019-07-30,1047082,Louisville Metro Police Department,Metro Government Operations,Contractual Services,Telephone Services,,,,,General Fund,,,51
433,2020,2019-06-28,2063837,1479,T-MOBILE USA INC,2019-07-11,1044159,Louisville Metro Police Department,Metro Government Operations,Contractual Services,Telephone Services,,,,,General Fund,,,1479
434,2020,2019-06-30,2066313,225,VERIZON WIRELESS,2019-07-19,1045457,Louisville Metro Police Department,Metro Government Operations,Contractual Services,Telephone Services,,,,,General Fund,,,225
435,2020,2019-06-13,2060924,3434,CDW LLC,2019-07-09,1043760,Louisville Metro Police Department,Metro Government Operations,Equipment/Capital Outlay,Computer Hardware,,,,,General Fund,,,3434
436,2020,2019-06-14,2060925,2626,CDW LLC,2019-07-09,1043760,Louisville Metro Police Department,Metro Government Operations,Equipment/Capital Outlay,Computer Hardware,,,,,General Fund,,,2626
437,2020,2019-06-21,2061829,11995.89,TRINITY DYNAMICS INC,2019-07-16,1044877,Louisville Metro Police Department,Metro Government Operations,Equipment/Capital Outlay,Computer Hardware,,,,,General Fund,,,11995.89
438,2020,2019-06-25,2061903,12825,ALL TRAFFIC SOLUTIONS INC,2019-07-02,1042624,Louisville Metro Police Department,Metro Government Operations,Equipment/Capital Outlay,Computer Software,,,,,General Fund,,,12825
439,2020,2019-06-27,2065676,5490,AXON ENTERPRISE INC,2019-07-23,1045884,Louisville Metro Police Department,Metro Government Operations,Supplies,Tools/Implements,,,,,General Fund,,,5490
440,2020,2019-06-25,2061830,7055,COVERT TRACK GROUP INC,2019-07-23,1045915,Louisville Metro Police Department,Metro Government Operations,Supplies,Tools/Implements,,,,,General Fund,,,7055
441,2020,2019-07-02,2064151,301.5,LOUISVILLE GAS & ELECTRIC COMPANY,2019-07-11,1044118,Louisville Metro Police Department,Metro Government Operations,Utility Services,Gas/Electric Utility Services,,,,,General Fund,,,301.5
442,2020,2019-07-23,2068793,1158.46,LOUISVILLE GAS & ELECTRIC COMPANY,2019-08-01,1047456,Louisville Metro Police Department,Metro Government Operations,Utility Services,Gas/Electric Utility Services,,,,,General Fund,,,1158.46
443,2020,2019-06-30,2068422,1831.66,LOUISVILLE GAS & ELECTRIC COMPANY,2019-07-30,1047030,Louisville Metro Police Department,Metro Government Operations,Utility Services,Gas/Electric Utility Services,,,,,General Fund,,,1831.66
444,2020,2019-07-15,2068796,16331.3,KONICA MINOLTA BUSINESS SOLUTIONS,2019-08-01,1047195,Louisville Metro Police Department,Metro Government Operations,Contractual Services,Equipment Rental,,,,,General Fund,,,1787.71
445,2020,2019-03-14,2025943,8352.1,ADAM SEARS,2019-09-04,1051576,Louisville Metro Police Department,Metro Government Operations,Contractual Services,Hotel Charges,,,,,General Fund,,,5521.6
446,2020,2018-12-17,1995640,1050.82,JILL HUME,2019-09-04,1051577,Louisville Metro Police Department,Metro Government Operations,Contractual Services,Hotel Charges,,,,,General Fund,,,721.32
447,2020,2018-12-17,1995640,1050.82,JILL HUME,2019-09-04,1051577,Louisville Metro Police Department,Metro Government Operations,Contractual Services,Local Transportation (Taxi, Uber, Lyft, Bus,, etc.),,,
448,2020,2019-05-07,2067672,292.55,ACTION TARGET INC,2019-07-25,1046381,Louisville Metro Police Department,Metro Government Operations,Contractual Services,Mail & Shipping,,,,,General Fund,,,28.8
449,2020,2019-06-18,2063119,86.5,EDWARD A WAGNER,2019-07-09,1043670,Louisville Metro Police Department,Metro Government Operations,Contractual Services,Misc Employee Reimb & Personal Mileage,,,,,General Fund,,,86.5
450,2020,2019-03-14,2025943,8352.1,ADAM SEARS,2019-09-04,1051576,Louisville Metro Police Department,Metro Government Operations,Contractual Services,Per Diem (Travel),,,,,General Fund,,,2830.5
451,2020,2018-12-17,1995640,1050.82,JILL HUME,2019-09-04,1051577,Louisville Metro Police Department,Metro Government Operations,Contractual Services,Per Diem (Travel),,,,,General Fund,,,319.5
452,2020,2019-04-15,2059048,1299.99,MICROGENICS CORPORATION,2019-08-01,1047471,Public Health & Wellness,Metro Government Operations,Supplies,Lab Supplies,,,,,General Fund,,,38.73
453,2020,2019-05-17,2060444,-669.36,MICROGENICS CORPORATION,2019-07-19,1045391,Public Health & Wellness,Metro Government Operations,Supplies,Lab Supplies,,,,,General Fund,,,-669.36
454,2020,2019-05-31,2063867,729.29,PAX HOLDINGS LLC,2019-07-11,1043980,Public Health & Wellness,Metro Government Operations,Supplies,Lab Supplies,,,,,General Fund,,,729.29
455,2020,2019-06-27,2062677,1318.21,UNITED MAIL LLC,2019-07-11,1044165,Metro Animal Services,Metro Government Operations,Contractual Services,Mail & Shipping,,,,,General Fund,,,1191.28
456,2020,2019-03-18,2056733,364.75,DAIGGER SCIENTIFIC INC,2019-07-02,1043063,Public Health & Wellness,Metro Government Operations,Supplies,Lab Supplies,,,,,Pass Thru Federal Other,,,364.75
457,2020,2019-07-15,2068667,2397.05,KONICA MINOLTA BUSINESS SOLUTIONS,2019-08-06,1047816,Develop Louisville,Metro Government Operations,Contractual Services,Equipment Rental,,,,,General Fund,,,551.4
458,2020,2019-06-27,2062677,1318.21,UNITED MAIL LLC,2019-07-11,1044165,Metro Animal Services,Metro Government Operations,Contractual Services,Mail & Shipping,,,,,General Fund,,,126.93
459,2020,2019-06-10,2062078,2824.7,KONICA MINOLTA BUSINESS SOLUTIONS,2019-07-02,1042642,Develop Louisville,Metro Government Operations,Contractual Services,Equipment Rental,,,,,General Fund,,,591.77
460,2020,2019-07-03,2063834,630,PARKWAY SOUTHERN CO,2019-07-11,1044136,Metro Animal Services,Metro Government Operations,Contractual Services,Printing/Copying,,,,,General Fund,,,18
461,2020,2019-06-30,2067181,840,GEOS INSTITUTE,2019-07-26,1046746,Develop Louisville,Metro Government Operations,Contractual Services,Professional Services,,,,,General Fund,,,83.72
462,2020,2019-07-03,2063834,630,PARKWAY SOUTHERN CO,2019-07-11,1044136,Metro Animal Services,Metro Government Operations,Contractual Services,Printing/Copying,,,,,General Fund,,,612
463,2020,2019-06-28,2067178,42922.38,GEOS INSTITUTE,2019-07-26,1046746,Develop Louisville,Metro Government Operations,Contractual Services,Professional Services,,,,,General Fund,,,4278.12
464,2020,2019-06-20,2062644,824.9,XEROX CORPORATION,2019-07-11,1044185,Metro Animal Services,Metro Government Operations,Contractual Services,Printing/Copying,,,,,General Fund,,,824.9
465,2020,2019-07-15,2067226,229.31,KONICA MINOLTA BUSINESS SOLUTIONS,2019-08-06,1047816,Develop Louisville,Metro Government Operations,Contractual Services,Professional Services,,,,,General Fund,,,76.43
466,2020,2019-06-18,2060530,265.58,2 HOUNDS DESIGN,2019-07-16,1044718,Metro Animal Services,Metro Government Operations,Supplies,Animal Care Supplies,,,,,Misc Agreements,,,1.42
467,2020,2019-06-25,2063584,21564.26,ACADEMY OF MUSIC PRODUCTION EDUCATION AND DEVELOPMENT,2019-07-11,1044063,Criminal Justice Commission,Metro Government Operations,Contractual Services,Professional Services,,,,,State Fund,,,21564.26
468,2020,2019-06-29,2062647,744.75,DELL MARKETING LP,2019-07-11,1044090,Metro Animal Services,Metro Government Operations,Supplies,Office Supplies,,,,,General Fund,,,744.75
469,2020,2019-07-10,2065048,4289.94,RESTORATIVE JUSTICE LOUISVILLE INC,2019-07-16,1044852,Criminal Justice Commission,Metro Government Operations,Contractual Services,Professional Services,,,,,State Fund,,,4289.94
470,2020,2019-06-27,2062941,715,C L MCBRIDE COMPANY INC,2019-07-09,1043758,Louisville Fire,Metro Government Operations,Contractual Services,Automotive Outside Vendor,,,,,General Fund,,,715
471,2020,2019-07-03,2063588,7200,SPALDING UNIVERSITY,2019-07-11,1044155,Criminal Justice Commission,Metro Government Operations,Contractual Services,Professional Services,,,,,State Fund,,,7200
472,2020,2019-06-30,2068469,1588.34,REPUBLIC SERVICES OF KENTUCKY LLC,2019-07-30,1047066,Louisville Fire,Metro Government Operations,Contractual Services,Containerized Waste Collection Services,,,,,General Fund,,,1588.34
473,2020,2019-05-02,2049683,8000,SPALDING UNIVERSITY,2019-07-02,1043213,Criminal Justice Commission,Metro Government Operations,Contractual Services,Professional Services,,,,,State Fund,,,8000
474,2020,2019-06-24,2068479,130,JOHNSON CONTROLS INC,2019-07-30,1047020,Louisville Fire,Metro Government Operations,Contractual Services,Equipment Maintenance/Repair Services,,,,,General Fund,,,130
475,2020,2019-07-15,2067890,6646.77,KONICA MINOLTA BUSINESS SOLUTIONS,2019-08-01,1047195,Department of Corrections,Metro Government Operations,Contractual Services,Equipment Rental,,,,,General Fund,,,841.32
476,2020,2019-06-24,2068479,130,JOHNSON CONTROLS INC,2019-07-30,1047020,Louisville Fire,Metro Government Operations,Contractual Services,Equipment Maintenance/Repair Services,,,,,General Fund,,,130
477,2020,2019-07-15,2067890,6646.77,KONICA MINOLTA BUSINESS SOLUTIONS,2019-08-01,1047195,Department of Corrections,Metro Government Operations,Contractual Services,Equipment Rental,,,,,General Fund,,,564.11
478,2020,2019-06-24,2068479,130,JOHNSON CONTROLS INC,2019-07-30,1047020,Louisville Fire,Metro Government Operations,Contractual Services,Equipment Maintenance/Repair Services,,,,,General Fund,,,-130
479,2020,2019-07-15,2066208,1884.53,KONICA MINOLTA BUSINESS SOLUTIONS,2019-07-23,1045777,Louisville Fire,Metro Government Operations,Contractual Services,Equipment Rental,,,,,General Fund,,,1884.53
480,2020,2019-06-10,2058393,2119.8,KONICA MINOLTA BUSINESS SOLUTIONS,2019-07-02,1042642,Louisville Fire,Metro Government Operations,Contractual Services,Equipment Rental,,,,,General Fund,,,2119.8
481,2020,2019-06-03,2055360,124.82,UNIFIRST CORPORATION,2019-07-02,1042663,Louisville Fire,Metro Government Operations,Contractual Services,Laundry and Towel Services,,,,,General Fund,,,124.82
482,2020,2019-06-10,2057482,124.82,UNIFIRST CORPORATION,2019-07-05,1043421,Louisville Fire,Metro Government Operations,Contractual Services,Laundry and Towel Services,,,,,General Fund,,,124.82
483,2020,2019-07-01,2062886,124.82,UNIFIRST CORPORATION,2019-07-26,1046661,Louisville Fire,Metro Government Operations,Contractual Services,Laundry and Towel Services,,,,,General Fund,,,124.82
484,2020,2019-06-18,2061927,35,UNIVERSAL LINEN SERVICE,2019-07-02,1043238,Louisville Fire,Metro Government Operations,Contractual Services,Laundry and Towel Services,,,,,General Fund,,,35
485,2020,2019-06-10,2058065,56.64,UNIVERSAL LINEN SERVICE,2019-07-05,1043591,Louisville Fire,Metro Government Operations,Contractual Services,Laundry and Towel Services,,,,,General Fund,,,56.64
486,2020,2019-06-21,2061821,17.16,UNIVERSAL LINEN SERVICE,2019-07-02,1043238,Louisville Fire,Metro Government Operations,Contractual Services,Laundry and Towel Services,,,,,General Fund,,,17.16
487,2020,2019-06-21,2061822,10.14,UNIVERSAL LINEN SERVICE,2019-07-02,1043238,Louisville Fire,Metro Government Operations,Contractual Services,Laundry and Towel Services,,,,,General Fund,,,10.14
488,2020,2019-06-21,2061728,4.68,UNIVERSAL LINEN SERVICE,2019-07-02,1043238,Louisville Fire,Metro Government Operations,Contractual Services,Laundry and Towel Services,,,,,General Fund,,,4.68
489,2020,2019-06-24,2061816,59.21,UNIVERSAL LINEN SERVICE,2019-07-12,1044474,Louisville Fire,Metro Government Operations,Contractual Services,Laundry and Towel Services,,,,,General Fund,,,59.21
490,2020,2019-06-17,2060414,34.84,UNIVERSAL LINEN SERVICE,2019-07-12,1044474,Louisville Fire,Metro Government Operations,Contractual Services,Laundry and Towel Services,,,,,General Fund,,,34.84
491,2020,2019-06-14,2058753,41.28,UNIVERSAL LINEN SERVICE,2019-07-09,1043905,Louisville Fire,Metro Government Operations,Contractual Services,Laundry and Towel Services,,,,,General Fund,,,41.28
492,2020,2019-06-13,2058353,36.99,UNIVERSAL LINEN SERVICE,2019-07-09,1043905,Louisville Fire,Metro Government Operations,Contractual Services,Laundry and Towel Services,,,,,General Fund,,,36.99
493,2020,2019-06-13,2058355,30.86,UNIVERSAL LINEN SERVICE,2019-07-09,1043905,Louisville Fire,Metro Government Operations,Contractual Services,Laundry and Towel Services,,,,,General Fund,,,30.86
494,2020,2019-06-13,2058357,26.11,UNIVERSAL LINEN SERVICE,2019-07-09,1043905,Louisville Fire,Metro Government Operations,Contractual Services,Laundry and Towel Services,,,,,General Fund,,,26.11
495,2020,2019-06-14,2058359,53.62,UNIVERSAL LINEN SERVICE,2019-07-09,1043905,Louisville Fire,Metro Government Operations,Contractual Services,Laundry and Towel Services,,,,,General Fund,,,53.67
496,2020,2019-06-14,2058359,53.62,UNIVERSAL LINEN SERVICE,2019-07-09,1043905,Louisville Fire,Metro Government Operations,Contractual Services,Laundry and Towel Services,,,,,General Fund,,,-0.05
497,2020,2019-06-28,2063847,41.28,UNIVERSAL LINEN SERVICE,2019-07-11,1044167,Louisville Fire,Metro Government Operations,Contractual Services,Laundry and Towel Services,,,,,General Fund,,,41.28
498,2020,2019-06-06,2057796,44.01,UNIVERSAL LINEN SERVICE,2019-07-02,1043238,Louisville Fire,Metro Government Operations,Contractual Services,Laundry and Towel Services,,,,,General Fund,,,44.01
499,2020,2019-05-21,2066265,35,UNIVERSAL LINEN SERVICE,2019-07-23,1046061,Louisville Fire,Metro Government Operations,Contractual Services,Laundry and Towel Services,,,,,General Fund,,,35
500,2020,2019-06-20,2060656,16.62,UNIVERSAL LINEN SERVICE,2019-07-16,1044880,Louisville Fire,Metro Government Operations,Contractual Services,Laundry and Towel Services,,,,,General Fund,,,16.62
501,2020,2019-06-21,2060700,66.61,UNIVERSAL LINEN SERVICE,2019-07-16,1044880,Louisville Fire,Metro Government Operations,Contractual Services,Laundry and Towel Services,,,,,General Fund,,,66.61
502,2020,2019-06-18,2060342,37.64,UNIVERSAL LINEN SERVICE,2019-07-16,1044880,Louisville Fire,Metro Government Operations,Contractual Services,Laundry and Towel Services,,,,,General Fund,,,37.64
503,2020,2019-06-28,2063858,53.62,UNIVERSAL LINEN SERVICE,2019-07-11,1044167,Louisville Fire,Metro Government Operations,Contractual Services,Laundry and Towel Services,,,,,General Fund,,,53.62
504,2020,2019-06-27,2063903,22.79,UNIVERSAL LINEN SERVICE,2019-07-11,1044167,Louisville Fire,Metro Government Operations,Contractual Services,Laundry and Towel Services,,,,,General Fund,,,22.79
505,2020,2019-06-27,2063904,21.24,UNIVERSAL LINEN SERVICE,2019-07-11,1044167,Louisville Fire,Metro Government Operations,Contractual Services,Laundry and Towel Services,,,,,General Fund,,,21.24
506,2020,2019-06-27,2063905,26.9,UNIVERSAL LINEN SERVICE,2019-07-11,1044167,Louisville Fire,Metro Government Operations,Contractual Services,Laundry and Towel Services,,,,,General Fund,,,26.9
507,2020,2019-07-01,2064062,13006.37,BRAVURA CORPORATION,2019-07-18,1045066,Louisville Fire,Metro Government Operations,Contractual Services,Miscellaneous Services,,,,,General Fund,,,7835
508,2020,2019-07-01,2064062,13006.37,BRAVURA CORPORATION,2019-07-18,1045066,Louisville Fire,Metro Government Operations,Contractual Services,Miscellaneous Services,,,,,General Fund,,,3724.25
509,2020,2019-06-28,2064163,108,ALPHA MECHANICAL SERVICE INC,2019-07-23,1045868,Louisville Fire,Metro Government Operations,Contractual Services,Other Building Maintenance/Repair Services,,,,,General Fund,,,108
510,2020,2019-06-27,2064198,784.5,ALPHA MECHANICAL SERVICE INC,2019-07-18,1045054,Louisville Fire,Metro Government Operations,Contractual Services,Other Building Maintenance/Repair Services,,,,,General Fund,,,673.65
511,2020,2019-06-27,2064198,784.5,ALPHA MECHANICAL SERVICE INC,2019-07-18,1045054,Louisville Fire,Metro Government Operations,Contractual Services,Other Building Maintenance/Repair Services,,,,,General Fund,,,110.85
512,2020,2019-06-27,2064198,784.5,ALPHA MECHANICAL SERVICE INC,2019-07-18,1045054,Louisville Fire,Metro Government Operations,Contractual Services,Other Building Maintenance/Repair Services,,,,,General Fund,,,673.65
513,2020,2019-06-27,2064198,784.5,ALPHA MECHANICAL SERVICE INC,2019-07-18,1045054,Louisville Fire,Metro Government Operations,Contractual Services,Other Building Maintenance/Repair Services,,,,,General Fund,,,-110.85
514,2020,2019-06-27,2064198,784.5,ALPHA MECHANICAL SERVICE INC,2019-07-18,1045054,Louisville Fire,Metro Government Operations,Contractual Services,Other Building Maintenance/Repair Services,,,,,General Fund,,,110.85
515,2020,2019-06-27,2064198,784.5,ALPHA MECHANICAL SERVICE INC,2019-07-18,1045054,Louisville Fire,Metro Government Operations,Contractual Services,Other Building Maintenance/Repair Services,,,,,General Fund,,,110.85
516,2020,2019-06-27,2064198,784.5,ALPHA MECHANICAL SERVICE INC,2019-07-18,1045054,Louisville Fire,Metro Government Operations,Contractual Services,Other Building Maintenance/Repair Services,,,,,General Fund,,,-673.65
517,2020,2019-07-02,2063051,12.99,MIDWEST TAPE LLC,2019-07-09,1043842,Library,Metro Government Capital,Supplies,Books,,,,,Capital Project Fund,,,12.99
518,2020,2019-06-10,2058849,6805.03,KONICA MINOLTA BUSINESS SOLUTIONS,2019-07-02,1042642,Department of Corrections,Metro Government Operations,Contractual Services,Equipment Rental,,,,,General Fund,,,987.72
519,2020,2019-06-27,2064198,784.5,ALPHA MECHANICAL SERVICE INC,2019-07-18,1045054,Louisville Fire,Metro Government Operations,Contractual Services,Other Building Maintenance/Repair Services,,,,,General Fund,,,-673.65
520,2020,2019-06-21,2061019,9.74,MIDWEST TAPE LLC,2019-07-02,1043161,Library,Metro Government Capital,Supplies,Books,,,,,Capital Project Fund,,,9.74
521,2020,2019-06-10,2058849,6805.03,KONICA MINOLTA BUSINESS SOLUTIONS,2019-07-02,1042642,Department of Corrections,Metro Government Operations,Contractual Services,Equipment Rental,,,,,General Fund,,,598.95
522,2020,2019-06-27,2064198,784.5,ALPHA MECHANICAL SERVICE INC,2019-07-18,1045054,Louisville Fire,Metro Government Operations,Contractual Services,Other Building Maintenance/Repair Services,,,,,General Fund,,,673.65
523,2020,2019-06-27,2064198,784.5,ALPHA MECHANICAL SERVICE INC,2019-07-18,1045054,Louisville Fire,Metro Government Operations,Contractual Services,Other Building Maintenance/Repair Services,,,,,General Fund,,,-110.85
524,2020,2019-06-13,2062444,397.23,ALPHA MECHANICAL SERVICE INC,2019-07-18,1045054,Louisville Fire,Metro Government Operations,Contractual Services,Other Building Maintenance/Repair Services,,,,,General Fund,,,164.67
525,2020,2019-06-13,2062444,397.23,ALPHA MECHANICAL SERVICE INC,2019-07-18,1045054,Louisville Fire,Metro Government Operations,Contractual Services,Other Building Maintenance/Repair Services,,,,,General Fund,,,-124.56
526,2020,2019-06-13,2062444,397.23,ALPHA MECHANICAL SERVICE INC,2019-07-18,1045054,Louisville Fire,Metro Government Operations,Contractual Services,Other Building Maintenance/Repair Services,,,,,General Fund,,,-164.67
527,2020,2019-06-13,2062444,397.23,ALPHA MECHANICAL SERVICE INC,2019-07-18,1045054,Louisville Fire,Metro Government Operations,Contractual Services,Other Building Maintenance/Repair Services,,,,,General Fund,,,124.56
528,2020,2019-06-13,2062444,397.23,ALPHA MECHANICAL SERVICE INC,2019-07-18,1045054,Louisville Fire,Metro Government Operations,Contractual Services,Other Building Maintenance/Repair Services,,,,,General Fund,,,124.56
529,2020,2019-06-13,2062444,397.23,ALPHA MECHANICAL SERVICE INC,2019-07-18,1045054,Louisville Fire,Metro Government Operations,Contractual Services,Other Building Maintenance/Repair Services,,,,,General Fund,,,108
530,2020,2019-06-13,2062444,397.23,ALPHA MECHANICAL SERVICE INC,2019-07-18,1045054,Louisville Fire,Metro Government Operations,Contractual Services,Other Building Maintenance/Repair Services,,,,,General Fund,,,164.67
531,2020,2019-03-15,2062891,248.53,ALPHA MECHANICAL SERVICE INC,2019-07-09,1043732,Louisville Fire,Metro Government Operations,Contractual Services,Other Building Maintenance/Repair Services,,,,,General Fund,,,248.53
532,2020,2019-06-30,2062892,37236.94,ALPHA MECHANICAL SERVICE INC,2019-07-09,1043732,Louisville Fire,Metro Government Operations,Contractual Services,Other Building Maintenance/Repair Services,,,,,General Fund,,,37236.94
533,2020,2019-06-24,2061790,627.03,ALPHA MECHANICAL SERVICE INC,2019-07-02,1043022,Louisville Fire,Metro Government Operations,Contractual Services,Other Building Maintenance/Repair Services,,,,,General Fund,,,627.03
534,2020,2019-04-30,2062463,108,ALPHA MECHANICAL SERVICE INC,2019-07-05,1043476,Louisville Fire,Metro Government Operations,Contractual Services,Other Building Maintenance/Repair Services,,,,,General Fund,,,108
535,2020,2019-02-13,2062896,252,ALPHA MECHANICAL SERVICE INC,2019-07-09,1043732,Louisville Fire,Metro Government Operations,Contractual Services,Other Building Maintenance/Repair Services,,,,,General Fund,,,252
536,2020,2019-06-27,2062898,375.91,ALPHA MECHANICAL SERVICE INC,2019-07-09,1043732,Louisville Fire,Metro Government Operations,Contractual Services,Other Building Maintenance/Repair Services,,,,,General Fund,,,375.91
537,2020,2019-06-27,2062900,144,ALPHA MECHANICAL SERVICE INC,2019-07-09,1043732,Louisville Fire,Metro Government Operations,Contractual Services,Other Building Maintenance/Repair Services,,,,,General Fund,,,144
538,2020,2019-06-28,2062901,126,ALPHA MECHANICAL SERVICE INC,2019-07-09,1043732,Louisville Fire,Metro Government Operations,Contractual Services,Other Building Maintenance/Repair Services,,,,,General Fund,,,126
539,2020,2019-06-13,2068173,284.29,ALPHA MECHANICAL SERVICE INC,2019-07-30,1046952,Louisville Fire,Metro Government Operations,Contractual Services,Other Building Maintenance/Repair Services,,,,,General Fund,,,284.29
540,2020,2019-07-17,2067435,330.75,ALPHA MECHANICAL SERVICE INC,2019-08-02,1047664,Louisville Fire,Metro Government Operations,Contractual Services,Other Building Maintenance/Repair Services,,,,,General Fund,,,330.75
541,2020,2019-07-17,2067435,330.75,ALPHA MECHANICAL SERVICE INC,2019-08-02,1047664,Louisville Fire,Metro Government Operations,Contractual Services,Other Building Maintenance/Repair Services,,,,,General Fund,,,-330.75
542,2020,2019-07-17,2067435,330.75,ALPHA MECHANICAL SERVICE INC,2019-08-02,1047664,Louisville Fire,Metro Government Operations,Contractual Services,Other Building Maintenance/Repair Services,,,,,General Fund,,,330.75
543,2020,2019-06-30,2062427,105,COMSTOCK BROTHERS ELECTRIC CO LLC,2019-07-18,1045076,Louisville Fire,Metro Government Operations,Contractual Services,Other Building Maintenance/Repair Services,,,,,General Fund,,,105
544,2020,2019-06-30,2063704,103.5,COMSTOCK BROTHERS ELECTRIC CO LLC,2019-07-18,1045076,Louisville Fire,Metro Government Operations,Contractual Services,Other Building Maintenance/Repair Services,,,,,General Fund,,,103.5
545,2020,2019-06-30,2063714,8400,COMSTOCK BROTHERS ELECTRIC CO LLC,2019-07-18,1045076,Louisville Fire,Metro Government Operations,Contractual Services,Other Building Maintenance/Repair Services,,,,,General Fund,,,5254.5
546,2020,2019-06-30,2063714,8400,COMSTOCK BROTHERS ELECTRIC CO LLC,2019-07-18,1045076,Louisville Fire,Metro Government Operations,Contractual Services,Other Building Maintenance/Repair Services,,,,,General Fund,,,3145.5
547,2020,2019-06-30,2064518,105,COMSTOCK BROTHERS ELECTRIC CO LLC,2019-07-18,1045076,Louisville Fire,Metro Government Operations,Contractual Services,Other Building Maintenance/Repair Services,,,,,General Fund,,,105
548,2020,2019-06-30,2063706,977,COMSTOCK BROTHERS ELECTRIC CO LLC,2019-07-23,1045910,Louisville Fire,Metro Government Operations,Contractual Services,Other Building Maintenance/Repair Services,,,,,General Fund,,,977
549,2020,2019-06-30,2062915,560,COMSTOCK BROTHERS ELECTRIC CO LLC,2019-07-09,1043769,Louisville Fire,Metro Government Operations,Contractual Services,Other Building Maintenance/Repair Services,,,,,General Fund,,,560
550,2020,2019-06-19,2060357,370.62,DEBRA KUEMPEL INC,2019-07-09,1043773,Louisville Fire,Metro Government Operations,Contractual Services,Other Building Maintenance/Repair Services,,,,,General Fund,,,370.62
551,2020,2019-06-10,2057197,3220.29,DEBRA KUEMPEL INC,2019-07-05,1043500,Louisville Fire,Metro Government Operations,Contractual Services,Other Building Maintenance/Repair Services,,,,,General Fund,,,612.67
552,2020,2019-06-10,2057197,3220.29,DEBRA KUEMPEL INC,2019-07-05,1043500,Louisville Fire,Metro Government Operations,Contractual Services,Other Building Maintenance/Repair Services,,,,,General Fund,,,2607.62
553,2020,2019-06-10,2057200,3036.13,DEBRA KUEMPEL INC,2019-07-05,1043500,Louisville Fire,Metro Government Operations,Contractual Services,Other Building Maintenance/Repair Services,,,,,General Fund,,,3036.13
554,2020,2019-06-19,2060372,400.37,DEBRA KUEMPEL INC,2019-07-16,1044772,Louisville Fire,Metro Government Operations,Contractual Services,Other Building Maintenance/Repair Services,,,,,General Fund,,,400.37
555,2020,2019-06-26,2062180,214.62,DEBRA KUEMPEL INC,2019-07-23,1045923,Louisville Fire,Metro Government Operations,Contractual Services,Other Building Maintenance/Repair Services,,,,,General Fund,,,214.62
556,2020,2019-06-30,2063877,294.62,DEBRA KUEMPEL INC,2019-07-25,1046430,Louisville Fire,Metro Government Operations,Contractual Services,Other Building Maintenance/Repair Services,,,,,General Fund,,,294.62
557,2020,2019-06-30,2063885,128,DEBRA KUEMPEL INC,2019-07-18,1045078,Louisville Fire,Metro Government Operations,Contractual Services,Other Building Maintenance/Repair Services,,,,,General Fund,,,128
558,2020,2019-06-30,2063888,166.86,DEBRA KUEMPEL INC,2019-07-18,1045078,Louisville Fire,Metro Government Operations,Contractual Services,Other Building Maintenance/Repair Services,,,,,General Fund,,,166.86
559,2020,2019-06-30,2063889,522.27,DEBRA KUEMPEL INC,2019-07-18,1045078,Louisville Fire,Metro Government Operations,Contractual Services,Other Building Maintenance/Repair Services,,,,,General Fund,,,522.27
560,2020,2019-06-30,2063891,287.3,DEBRA KUEMPEL INC,2019-07-18,1045078,Louisville Fire,Metro Government Operations,Contractual Services,Other Building Maintenance/Repair Services,,,,,General Fund,,,78.46
561,2020,2019-06-30,2063891,287.3,DEBRA KUEMPEL INC,2019-07-18,1045078,Louisville Fire,Metro Government Operations,Contractual Services,Other Building Maintenance/Repair Services,,,,,General Fund,,,208.84
562,2020,2019-06-17,2060963,275,DOOR SERVICE COMPANY,2019-07-30,1046870,Louisville Fire,Metro Government Operations,Contractual Services,Other Building Maintenance/Repair Services,,,,,General Fund,,,275
563,2020,2019-06-17,2060963,275,DOOR SERVICE COMPANY,2019-07-30,1046870,Louisville Fire,Metro Government Operations,Contractual Services,Other Building Maintenance/Repair Services,,,,,General Fund,,,275
564,2020,2019-06-17,2060963,275,DOOR SERVICE COMPANY,2019-07-30,1046870,Louisville Fire,Metro Government Operations,Contractual Services,Other Building Maintenance/Repair Services,,,,,General Fund,,,-275
565,2020,2019-06-04,2057178,402.55,DOOR SERVICE COMPANY,2019-07-02,1042634,Louisville Fire,Metro Government Operations,Contractual Services,Other Building Maintenance/Repair Services,,,,,General Fund,,,402.55
566,2020,2019-06-27,2064474,625,INTEGRATED PEST MANAGEMENT SERVICES LLC,2019-07-23,1045964,Louisville Fire,Metro Government Operations,Contractual Services,Other Building Maintenance/Repair Services,,,,,General Fund,,,625
567,2020,2019-06-05,2057158,2162.05,KLEIN BROTHERS INC,2019-07-02,1042640,Louisville Fire,Metro Government Operations,Contractual Services,Other Building Maintenance/Repair Services,,,,,General Fund,,,2162.05
568,2020,2019-06-11,2063783,18166.04,KOFI CONSULTING SERVICES INC,2019-07-18,1045115,Louisville Fire,Metro Government Operations,Contractual Services,Other Building Maintenance/Repair Services,,,,,General Fund,,,4025.45
569,2020,2019-06-26,2062917,385.34,KOORSEN FIRE & SECURITY,2019-07-09,1043637,Louisville Fire,Metro Government Operations,Contractual Services,Other Building Maintenance/Repair Services,,,,,General Fund,,,385.34
570,2020,2019-05-31,2062455,8606,QK4 INC,2019-07-11,1044141,Public Works & Assets Department,Metro Government Capital,Contractual Services,Engineering & Architectural Services,,,,,General Obligation Bonds 2009,,,1912.44
571,2020,2019-06-21,2061025,19.59,MIDWEST TAPE LLC,2019-07-02,1043161,Library,Metro Government Capital,Supplies,Books,,,,,Capital Project Fund,,,19.59
572,2020,2019-05-31,2062455,8606,QK4 INC,2019-07-11,1044141,Public Works & Assets Department,Metro Government Capital,Contractual Services,Engineering & Architectural Services,,,,,General Obligation Bonds 2009,,,5737.34
573,2020,2019-06-20,2061027,28.68,MIDWEST TAPE LLC,2019-07-02,1043161,Library,Metro Government Capital,Supplies,Books,,,,,Capital Project Fund,,,28.68
574,2020,2019-05-31,2062455,8606,QK4 INC,2019-07-11,1044141,Public Works & Assets Department,Metro Government Capital,Contractual Services,Engineering & Architectural Services,,,,,Metro GO Bonds 14D,,,328.62
575,2020,2019-05-31,2063817,544089.97,SULLIVAN & COZART INC,2019-07-18,1045152,Library,Metro Government Capital,Contractual Services,Payments to Contractors,,,,,FY19 Metro GO Bond - 20 yr,,,490731.81
576,2020,2019-03-08,2066637,6479.54,KONICA MINOLTA BUSINESS SOLUTIONS,2019-07-26,1046653,Department of Corrections,Metro Government Operations,Contractual Services,Equipment Rental,,,,,General Fund,,,719.82
577,2020,2019-06-30,2062850,1583,PALADIN INC,2019-07-18,1045132,Library,Metro Government Capital,Contractual Services,Payments to Contractors,,,,,Metro GO Bonds 17A,,,1583
578,2020,2019-06-24,2067303,1966.68,MUNSON BUSINESS INTERIORS INC,2019-07-30,1047046,Library,Metro Government Capital,Contractual Services,Payments to Contractors,,,,,Capital Project Fund,,,1966.68
579,2020,2019-03-08,2066637,6479.54,KONICA MINOLTA BUSINESS SOLUTIONS,2019-07-26,1046653,Department of Corrections,Metro Government Operations,Contractual Services,Equipment Rental,,,,,General Fund,,,635.14
580,2020,2019-06-04,2057138,3805,WHEATLEY ROOFING COMPANY INC,2019-07-02,1043263,Develop Louisville,Metro Government Capital,Contractual Services,Payments to Contractors,,,,,Federally Funded,,,3805
581,2020,2019-06-30,2069804,92544,EZ CONSTRUCTION COMPANY INC,2019-08-02,1047690,Public Works & Assets Department,Metro Government Capital,Contractual Services,Sidewalk Construction/ Repair Services,,,,,Capital Project Fund,,,27544
582,2020,2019-05-31,2061172,194.75,LEXISNEXIS RISK DATA MANAGEMENT INC,2019-07-26,1046771,Department of Corrections,Metro Government Operations,Contractual Services,Legal Services,,,,,General Fund,,,194.75
583,2020,2019-07-08,2068502,34702.76,GRESHAM SMITH,2019-08-01,1047420,Public Works & Assets Department,Metro Government Capital,Contractual Services,Sidewalk Construction/ Repair Services,,,,,Federally Funded,,,27762.21
584,2020,2019-06-30,2069804,92544,EZ CONSTRUCTION COMPANY INC,2019-08-02,1047690,Public Works & Assets Department,Metro Government Capital,Contractual Services,Sidewalk Construction/ Repair Services,,,,,Capital Project Fund,,,65000
585,2020,2019-06-24,2061875,43525.55,STANTEC CONSULTING SERVICES INC,2019-07-02,1043217,Parks & Recreation,Metro Government Capital,Contractual Services,Professional Services,,,,,Pass Thru Federal,,,34820.43
586,2020,2019-06-24,2061875,43525.55,STANTEC CONSULTING SERVICES INC,2019-07-02,1043217,Parks & Recreation,Metro Government Capital,Contractual Services,Professional Services,,,,,Pass Thru Federal,,,-34820.43
587,2020,2019-06-24,2061875,43525.55,STANTEC CONSULTING SERVICES INC,2019-07-02,1043217,Parks & Recreation,Metro Government Capital,Contractual Services,Professional Services,,,,,Pass Thru Federal,,,34820.44
588,2020,2019-06-11,2061219,1123.84,STANTEC CONSULTING SERVICES INC,2019-07-09,1043886,Parks & Recreation,Metro Government Capital,Contractual Services,Professional Services,,,,,Pass Thru Federal,,,899.07
589,2020,2019-05-16,2068599,642,MERRICK CONSTRUCTION COMPANIES INC,2019-07-30,1047039,Parks & Recreation,Metro Government Capital,Contractual Services,Payments to Contractors,,,,,State Funding,,,642
590,2020,2019-05-16,2068605,1980,MERRICK CONSTRUCTION COMPANIES INC,2019-07-30,1047039,Parks & Recreation,Metro Government Capital,Contractual Services,Payments to Contractors,,,,,State Funding,,,1980
591,2020,2019-02-21,2068628,1470,MERRICK CONSTRUCTION COMPANIES INC,2019-07-30,1047039,Parks & Recreation,Metro Government Capital,Contractual Services,Payments to Contractors,,,,,State Funding,,,1470
592,2020,2019-06-25,2064143,475000,KENTUCKY STATE TREASURER,2019-07-11,1044009,Public Works & Assets Department,Metro Government Capital,Contractual Services,Payments to Contractors,,,,,GO Bond 2009F-RZEDB,,,475000
593,2020,2019-07-15,2066962,1040,STRAND ASSOCIATES INC,2019-08-09,1048572,Public Works & Assets Department,Metro Government Capital,Contractual Services,Payments to Contractors,,,,,GO Bond 2009F-RZEDB,,,1040
594,2020,2019-06-12,2061045,410,STRAND ASSOCIATES INC,2019-07-09,1043889,Public Works & Assets Department,Metro Government Capital,Contractual Services,Payments to Contractors,,,,,GO Bond 2009F-RZEDB,,,410
595,2020,2019-06-11,2059950,8019,DAN CRISTIANI EXCAVATING CO INC,2019-07-02,1043064,Louisville Zoo,Metro Government Capital,Contractual Services,Payments to Contractors,,,,,Capital Project Fund,,,8019
596,2020,2019-05-23,2056570,185.06,VERIZON WIRELESS,2019-07-11,1044175,Public Health & Wellness,Metro Government Operations,Contractual Services,Air Cards,,,,,General Fund,,,182.96
597,2020,2019-06-01,2063819,13.14,VERIZON WIRELESS,2019-07-11,1044175,Public Health & Wellness,Metro Government Operations,Contractual Services,Air Cards,,,,,General Fund,,,12.99
598,2020,2019-05-13,2058045,58.5,CDW LLC,2019-07-12,1044363,Public Health & Wellness,Metro Government Operations,Contractual Services,Computer Software Licenses,,,,,General Fund,,,58.5
599,2020,2019-06-10,2058882,6528.97,KONICA MINOLTA BUSINESS SOLUTIONS,2019-07-11,1043974,Public Health & Wellness,Metro Government Operations,Contractual Services,Equipment Rental,,,,,General Fund,,,301.95
600,2020,2019-06-10,2058882,6528.97,KONICA MINOLTA BUSINESS SOLUTIONS,2019-07-11,1043974,Public Health & Wellness,Metro Government Operations,Contractual Services,Equipment Rental,,,,,General Fund,,,6227.02
601,2020,2019-07-15,2067002,7195.25,KONICA MINOLTA BUSINESS SOLUTIONS,2019-08-06,1047816,Public Health & Wellness,Metro Government Operations,Contractual Services,Equipment Rental,,,,,General Fund,,,7195.25
602,2020,2019-06-01,2063830,1440,DAROB INC,2019-07-12,1044370,Public Health & Wellness,Metro Government Operations,Contractual Services,Landfill/Sanitation Services,,,,,General Fund,,,1440
603,2020,2019-06-30,2064603,5988.19,VOIANCE LANGUAGE SERVICES LLC,2019-07-30,1047099,Public Health & Wellness,Metro Government Operations,Contractual Services,Language Services,,,,,General Fund,,,5988.19
604,2020,2018-08-03,2055661,10,OCCUPATIONAL HEALTH CENTERS OF THE SOUTHWEST PA PSC,2019-07-02,1043177,Public Health & Wellness,Metro Government Operations,Contractual Services,Medical Services,,,,,General Fund,,,10
605,2020,2018-12-04,2055026,1559.6,OCCUPATIONAL HEALTH CENTERS OF THE SOUTHWEST PA PSC,2019-07-02,1043177,Public Health & Wellness,Metro Government Operations,Contractual Services,Medical Services,,,,,General Fund,,,224.8
606,2020,2019-06-30,2066274,475.83,ALPHA MECHANICAL SERVICE INC,2019-07-19,1045302,Public Health & Wellness,Metro Government Operations,Contractual Services,Miscellaneous Services,,,,,General Fund,,,475.83
607,2020,2019-07-07,2067952,3950.1,US SECURITY ASSOCIATES INC,2019-08-01,1047543,Public Health & Wellness,Metro Government Operations,Contractual Services,Miscellaneous Services,,,,,General Fund,,,3950.1
608,2020,2019-06-06,2058938,4302.69,US SECURITY ASSOCIATES INC,2019-07-11,1044172,Public Health & Wellness,Metro Government Operations,Contractual Services,Miscellaneous Services,,,,,General Fund,,,4302.69
609,2020,2019-06-30,2064622,31519.41,UNIVERSITY OF LOUISVILLE,2019-07-30,1047095,Public Health & Wellness,Metro Government Operations,Contractual Services,Other Nursing Services,,,,,General Fund,,,-1041.8
610,2020,2019-06-30,2064622,31519.41,UNIVERSITY OF LOUISVILLE,2019-07-30,1047095,Public Health & Wellness,Metro Government Operations,Contractual Services,Other Nursing Services,,,,,General Fund,,,1041.8
611,2020,2019-06-30,2064622,31519.41,UNIVERSITY OF LOUISVILLE,2019-07-30,1047095,Public Health & Wellness,Metro Government Operations,Contractual Services,Other Nursing Services,,,,,General Fund,,,1041.8
612,2020,2019-06-21,2065500,3600,THE RAYNOSTIX GROUP LLC,2019-07-18,1045015,Public Health & Wellness,Metro Government Operations,Contractual Services,Payments to Contractors,,,,,General Fund,,,3600
613,2020,2019-04-20,2062636,877.25,MINIT PRINT IT INC,2019-07-11,1043977,Public Health & Wellness,Metro Government Operations,Contractual Services,Printing/Copying,,,,,General Fund,,,877.25
614,2020,2019-04-30,2049068,10256.42,UNIVERSITY OF LOUISVILLE,2019-07-26,1046813,Public Health & Wellness,Metro Government Operations,Contractual Services,Professional Services,,,,,General Fund,,,10256.42
615,2020,2019-06-30,2064616,10256.42,UNIVERSITY OF LOUISVILLE,2019-07-26,1046813,Public Health & Wellness,Metro Government Operations,Contractual Services,Professional Services,,,,,General Fund,,,10256.42
616,2020,2019-05-06,2068696,50.31,JOHN CONTI COFFEE CO INC,2019-08-01,1047193,Public Health & Wellness,Metro Government Operations,Supplies,Office Supplies,,,,,General Fund,,,50.31
617,2020,2019-06-22,2062529,5.99,UNITED PARCEL SERVICE,2019-07-05,1043590,Public Health & Wellness,Metro Government Operations,Contractual Services,Mail & Shipping,,,,,General Fund,,,5.99
618,2020,2019-06-29,2062532,30.1,UNITED PARCEL SERVICE,2019-07-05,1043590,Public Health & Wellness,Metro Government Operations,Contractual Services,Mail & Shipping,,,,,General Fund,,,5.99
619,2020,2019-06-29,2062532,30.1,UNITED PARCEL SERVICE,2019-07-05,1043590,Public Health & Wellness,Metro Government Operations,Contractual Services,Mail & Shipping,,,,,General Fund,,,-5.99
620,2020,2019-06-29,2062532,30.1,UNITED PARCEL SERVICE,2019-07-05,1043590,Public Health & Wellness,Metro Government Operations,Contractual Services,Mail & Shipping,,,,,General Fund,,,5.99
621,2020,2018-12-22,2060453,11.22,UNITED PARCEL SERVICE,2019-07-05,1043590,Public Health & Wellness,Metro Government Operations,Contractual Services,Mail & Shipping,,,,,General Fund,,,11.22
622,2020,2019-04-01,2064870,12769.62,UNIVERSITY OF LOUISVILLE,2019-07-16,1044885,Public Health & Wellness,Metro Government Operations,Contractual Services,Payments to Contractors,,,,,General Fund,,,12769.62
623,2020,2019-07-01,2069885,12769.62,UNIVERSITY OF LOUISVILLE,2019-08-02,1047775,Public Health & Wellness,Metro Government Operations,Contractual Services,Payments to Contractors,,,,,General Fund,,,12769.62
624,2020,2019-06-30,2064484,18.99,AMERICAN WELDING & GAS INC,2019-07-25,1046390,Public Health & Wellness,Metro Government Operations,Contractual Services,Pressurized Tank Services,,,,,General Fund,,,11.43
625,2020,2019-06-24,2064572,312.97,FUJIREBIO DIAGNOSTICS INC,2019-07-19,1045335,Public Health & Wellness,Metro Government Operations,Supplies,Lab Supplies,,,,,General Fund,,,312.97
626,2020,2019-06-24,2064224,625,HOLOGIC INC,2019-07-12,1044392,Public Health & Wellness,Metro Government Operations,Supplies,Lab Supplies,,,,,General Fund,,,625
627,2020,2019-06-06,2058055,330.98,MCKESSON MEDICAL SURGICAL INC,2019-07-02,1043155,Public Health & Wellness,Metro Government Operations,Supplies,Lab Supplies,,,,,General Fund,,,330.98
628,2020,2019-04-15,2059048,1299.99,MICROGENICS CORPORATION,2019-08-01,1047471,Public Health & Wellness,Metro Government Operations,Supplies,Lab Supplies,,,,,General Fund,,,1261.26
629,2020,2019-06-10,2058849,6805.03,KONICA MINOLTA BUSINESS SOLUTIONS,2019-07-02,1042642,Department of Corrections,Metro Government Operations,Contractual Services,Equipment Rental,,,,,General Fund,,,543.88
630,2020,2019-06-30,2064669,194.75,LEXISNEXIS RISK DATA MANAGEMENT INC,2019-07-26,1046771,Department of Corrections,Metro Government Operations,Contractual Services,Legal Services,,,,,General Fund,,,194.75
631,2020,2019-07-09,2065559,1620,PSYCHOLOGICAL ASSESSMENT RESOURCES INC,2019-08-06,1048074,Department of Corrections,Metro Government Operations,Contractual Services,Mental Health Services,,,,,General Fund,,,1620
632,2020,2019-05-25,2054969,4.59,UNITED PARCEL SERVICE,2019-07-25,1046585,Department of Corrections,Metro Government Operations,Contractual Services,Mail & Shipping,,,,,General Fund,,,4.59
633,2020,2019-06-08,2063865,8.4,UNITED PARCEL SERVICE,2019-07-30,1047092,Department of Corrections,Metro Government Operations,Contractual Services,Mail & Shipping,,,,,General Fund,,,8.4
634,2020,2019-07-08,2068502,34702.76,GRESHAM SMITH,2019-08-01,1047420,Public Works & Assets Department,Metro Government Capital,Contractual Services,Sidewalk Construction/ Repair Services,,,,,General Obligation Bonds 2009,,,6940.55
635,2020,2019-06-25,2067236,652.78,MATTHEW BENDER & COMPANY INC,2019-07-23,1046007,Louisville Metro Police Department,Metro Government Operations,Contractual Services,Dues,,,,,General Fund,,,652.78
636,2020,2019-06-22,2063884,-0.3,UNITED PARCEL SERVICE,2019-08-08,1048398,Department of Corrections,Metro Government Operations,Contractual Services,Mail & Shipping,,,,,General Fund,,,-0.3
637,2020,2019-05-14,2050647,2153,PREMIER GRAPHICS OF LOUISVILLE INC,2019-09-24,1053975,Office of Management & Budget,Metro Government Capital,Equipment/Capital Outlay,Ambulances,,,,,Metro GO Notes 16A,,,1727
638,2020,2019-07-01,2067007,925.79,THOMSON REUTERS SCIENTIFIC INC,2019-07-23,1046054,Louisville Metro Police Department,Metro Government Operations,Contractual Services,Dues,,,,,General Fund,,,925.79
639,2020,2019-06-22,2063884,-0.3,UNITED PARCEL SERVICE,2019-08-08,1048398,Department of Corrections,Metro Government Operations,Contractual Services,Mail & Shipping,,,,,General Fund,,,0.3
640,2020,2019-05-14,2050647,2153,PREMIER GRAPHICS OF LOUISVILLE INC,2019-09-24,1053975,Office of Management & Budget,Metro Government Capital,Equipment/Capital Outlay,Ambulances,,,,,Metro GO Notes 16A,,,-1727
641,2020,2019-07-15,2068796,16331.3,KONICA MINOLTA BUSINESS SOLUTIONS,2019-08-01,1047195,Louisville Metro Police Department,Metro Government Operations,Contractual Services,Equipment Rental,,,,,General Fund,,,139.89
642,2020,2019-06-11,2068518,4074.4,OCCUPATIONAL HEALTH CENTERS OF THE SOUTHWEST PA PSC,2019-08-01,1047480,Department of Corrections,Metro Government Operations,Contractual Services,Medical Lab Testing,,,,,General Fund,,,170
643,2020,2019-04-30,2061831,3797.62,ALL STATE FORD TRUCK SALES,2019-07-02,1043021,Office of Management & Budget,Metro Government Capital,Equipment/Capital Outlay,Fire Apparatus Trucks,,,,,Metro GO Notes 16A,,,3797.62
644,2020,2019-07-15,2068796,16331.3,KONICA MINOLTA BUSINESS SOLUTIONS,2019-08-01,1047195,Louisville Metro Police Department,Metro Government Operations,Contractual Services,Equipment Rental,,,,,General Fund,,,1191.87
645,2020,2019-05-01,2054487,179.95,CIVIC RESEARCH INSTITUTE INC,2019-07-16,1044761,Department of Corrections,Metro Government Operations,Contractual Services,Training & Educational Fees,,,,,General Fund,,,179.95
646,2020,2019-04-30,2054884,233,COAST TO COAST ADVERTISING INC,2019-07-26,1046649,Office of Management & Budget,Metro Government Capital,Equipment/Capital Outlay,Fire Apparatus Trucks,,,,,Metro GO Notes 16A,,,233
647,2020,2019-07-15,2068796,16331.3,KONICA MINOLTA BUSINESS SOLUTIONS,2019-08-01,1047195,Louisville Metro Police Department,Metro Government Operations,Contractual Services,Equipment Rental,,,,,General Fund,,,1029.03
648,2020,2019-03-08,2062116,28.2,KONICA MINOLTA BUSINESS SOLUTIONS,2019-07-05,1043409,Louisville Metro Council,Metro Government Operations,Contractual Services,Equipment Rental,,,,,General Fund,,,28.2
649,2020,2019-06-05,2062509,2450,ALASTAIR GROUP LLC,2019-07-09,1043730,Louisville Metro Council,Metro Government Operations,Contractual Services,Professional Services,,,,,General Fund,,,2450
650,2020,2019-06-27,2062512,800,ALASTAIR GROUP LLC,2019-07-18,1045052,Louisville Metro Council,Metro Government Operations,Contractual Services,Professional Services,,,,,General Fund,,,800
651,2020,2019-06-30,2066487,2999.85,LOUISVILLE FEDERATION OF MUSICIANS,2019-08-01,1047455,Louisville Metro Council,Metro Government Operations,Contractual Services,Professional Services,,,,,General Fund,,,2999.85
652,2020,2019-06-13,2062511,70.49,PATRICK MULVIHILL,2019-07-09,1043677,Louisville Metro Council,Metro Government Operations,Contractual Services,Public Meeting Expenses,,,,,General Fund,,,70.49
653,2020,2019-03-08,2068310,1500,NORTHERN KENTUCKY EMERGENCY MEDICAL SERVICE INC,2019-07-30,1047055,Louisville Metro Council,Metro Government Operations,Supplies,Office Equipment,,,,,General Fund,,,1500
654,2020,2019-06-28,2062414,67.46,FARLEY PRINTING COMPANY INC,2019-07-11,1044093,Louisville Metro Council,Metro Government Operations,Supplies,Office Supplies,,,,,General Fund,,,67.46
655,2020,2019-06-10,2060203,150.45,KONICA MINOLTA BUSINESS SOLUTIONS,2019-07-11,1043974,Criminal Justice Commission,Metro Government Operations,Contractual Services,Equipment Rental,,,,,General Fund,,,150.45
656,2020,2019-07-15,2067087,187.06,KONICA MINOLTA BUSINESS SOLUTIONS,2019-07-30,1046877,Criminal Justice Commission,Metro Government Operations,Contractual Services,Equipment Rental,,,,,General Fund,,,173.66
657,2020,2019-07-15,2067087,187.06,KONICA MINOLTA BUSINESS SOLUTIONS,2019-07-30,1046877,Criminal Justice Commission,Metro Government Operations,Contractual Services,Equipment Rental,,,,,General Fund,,,13.4
658,2020,2019-07-09,2065322,400,DEBORA F MCGILL,2019-07-30,1046985,Criminal Justice Commission,Metro Government Operations,Contractual Services,Professional Services,,,,,Federally Funded,,,400
659,2020,2019-06-18,2065372,2579.31,UNIVERSITY OF LOUISVILLE RESEARCH FOUNDATION INC,2019-07-18,1045173,Criminal Justice Commission,Metro Government Operations,Contractual Services,Professional Services,,,,,Federally Funded,,,2579.31
660,2020,2019-06-30,2068463,474.95,UNIVERSITY OF LOUISVILLE RESEARCH FOUNDATION INC,2019-07-30,1047096,Criminal Justice Commission,Metro Government Operations,Contractual Services,Professional Services,,,,,Federally Funded,,,474.95
661,2020,2019-02-28,2065357,12918.3,VOLUNTEERS OF AMERICA MID-STATES,2019-07-19,1045460,Criminal Justice Commission,Metro Government Operations,Contractual Services,Professional Services,,,,,Federally Funded,,,12918.3
662,2020,2019-01-31,2065363,14708.98,VOLUNTEERS OF AMERICA MID-STATES,2019-07-19,1045460,Criminal Justice Commission,Metro Government Operations,Contractual Services,Professional Services,,,,,Federally Funded,,,14708.98
663,2020,2019-04-30,2065364,16238.47,VOLUNTEERS OF AMERICA MID-STATES,2019-07-19,1045460,Criminal Justice Commission,Metro Government Operations,Contractual Services,Professional Services,,,,,Federally Funded,,,16238.47
664,2020,2019-06-30,2068486,15996,VOLUNTEERS OF AMERICA MID-STATES,2019-07-26,1046817,Criminal Justice Commission,Metro Government Operations,Contractual Services,Professional Services,,,,,Federally Funded,,,15996
665,2020,2019-05-31,2068456,16310.28,VOLUNTEERS OF AMERICA MID-STATES,2019-07-26,1046817,Criminal Justice Commission,Metro Government Operations,Contractual Services,Professional Services,,,,,Federally Funded,,,16310.28
666,2020,2019-03-31,2065350,12935.08,VOLUNTEERS OF AMERICA MID-STATES,2019-07-30,1047100,Criminal Justice Commission,Metro Government Operations,Contractual Services,Professional Services,,,,,Federally Funded,,,12935.08
667,2020,2019-05-22,2051747,190,LIZA CREEL,2019-09-04,1051578,Criminal Justice Commission,Metro Government Operations,Contractual Services,Travel, Out of Town,,,,,Federally Funded,,
668,2020,2019-05-29,2055823,302.82,OFFICE DEPOT INC,2019-07-02,1043178,Criminal Justice Commission,Metro Government Operations,Supplies,Office Supplies,,,,,General Fund,,,302.82
669,2020,2019-03-08,2066637,6479.54,KONICA MINOLTA BUSINESS SOLUTIONS,2019-07-26,1046653,Department of Corrections,Metro Government Operations,Contractual Services,Equipment Rental,,,,,General Fund,,,449.07
670,2020,2019-07-15,2067890,6646.77,KONICA MINOLTA BUSINESS SOLUTIONS,2019-08-01,1047195,Department of Corrections,Metro Government Operations,Contractual Services,Equipment Rental,,,,,General Fund,,,676.68
671,2020,2019-05-16,2060917,91528.61,HALL CONTRACTING OF KENTUCKY INC,2019-07-23,1045954,Public Works & Assets Department,Metro Government Capital,Contractual Services,D21 Paving Expense,,,,,Metro GO 2015A - Tax Exempt Bond,,,6842.18
672,2020,2019-06-27,2063587,27094,72 HOUR LLC,2019-08-29,1051035,Public Works & Assets Department,Metro Government Capital,Equipment/Capital Outlay,Cars, General Transportation Use,,,,,FY19 Metro GO Note,,
673,2020,2019-07-15,2068796,16331.3,KONICA MINOLTA BUSINESS SOLUTIONS,2019-08-01,1047195,Louisville Metro Police Department,Metro Government Operations,Contractual Services,Equipment Rental,,,,,General Fund,,,26.89
674,2020,2019-06-17,2064114,25242,72 HOUR LLC,2019-08-29,1051035,Public Works & Assets Department,Metro Government Capital,Equipment/Capital Outlay,Cars, General Transportation Use,,,,,FY19 Metro GO Note,,
675,2020,2019-04-04,2063117,21.75,TYLER MOUNTAIN WATER CO INC,2019-07-09,1043903,Louisville Metro Police Department,Metro Government Operations,Contractual Services,Other Building Maintenance/Repair Services,,,,,General Fund,,,21.75
676,2020,2019-06-27,2065002,26620.66,72 HOUR LLC,2019-07-23,1045861,Public Works & Assets Department,Metro Government Capital,Equipment/Capital Outlay,Cars, Police & Emergency Use,,,,,FY19 Metro GO Note,,
677,2020,2019-04-18,2063133,21.75,TYLER MOUNTAIN WATER CO INC,2019-07-09,1043903,Louisville Metro Police Department,Metro Government Operations,Contractual Services,Other Building Maintenance/Repair Services,,,,,General Fund,,,21.75
678,2020,2019-06-26,2062872,3580.67,GENUINE PARTS COMPANY,2019-07-11,1044099,Public Works & Assets Department,Metro Government Capital,Equipment/Capital Outlay,Cars, Police & Emergency Use,,,,,FY19 Metro GO Note,,
679,2020,2019-04-30,2063135,28.95,TYLER MOUNTAIN WATER CO INC,2019-07-09,1043903,Louisville Metro Police Department,Metro Government Operations,Contractual Services,Other Building Maintenance/Repair Services,,,,,General Fund,,,28.95
680,2020,2019-07-15,2067346,82971.03,L & W EMERGENCY EQUIPMENT,2019-07-30,1047027,Public Works & Assets Department,Metro Government Capital,Equipment/Capital Outlay,Cars, Police & Emergency Use,,,,,FY19 Metro GO Note,,
681,2020,2019-06-14,2063142,30.45,TYLER MOUNTAIN WATER CO INC,2019-07-09,1043903,Louisville Metro Police Department,Metro Government Operations,Contractual Services,Other Building Maintenance/Repair Services,,,,,General Fund,,,30.45
682,2020,2019-03-27,2051727,5544.75,FERNO WASHINGTON INC,2019-07-30,1046996,Public Works & Assets Department,Metro Government Capital,Equipment/Capital Outlay,Ambulances,,,,,Metro GO Notes 17A,,,5544.75
683,2020,2019-06-30,2066245,28.95,TYLER MOUNTAIN WATER CO INC,2019-07-25,1046583,Louisville Metro Police Department,Metro Government Operations,Contractual Services,Other Building Maintenance/Repair Services,,,,,General Fund,,,28.95
684,2020,2019-05-14,2050647,2153,PREMIER GRAPHICS OF LOUISVILLE INC,2019-09-24,1053975,Public Works & Assets Department,Metro Government Capital,Equipment/Capital Outlay,Ambulances,,,,,Metro GO Notes 17A,,,2153
685,2020,2019-06-28,2066231,21.75,TYLER MOUNTAIN WATER CO INC,2019-07-23,1046058,Louisville Metro Police Department,Metro Government Operations,Contractual Services,Other Building Maintenance/Repair Services,,,,,General Fund,,,21.75
686,2020,2019-05-14,2050647,2153,PREMIER GRAPHICS OF LOUISVILLE INC,2019-09-24,1053975,Public Works & Assets Department,Metro Government Capital,Equipment/Capital Outlay,Ambulances,,,,,Metro GO Notes 17A,,,426
687,2020,2019-06-26,2063234,11595,IMAGESOFT INC,2019-07-23,1045963,Louisville Metro Police Department,Metro Government Operations,Contractual Services,Payments to Contractors,,,,,General Fund,,,11595
688,2020,2019-05-14,2050647,2153,PREMIER GRAPHICS OF LOUISVILLE INC,2019-09-24,1053975,Public Works & Assets Department,Metro Government Capital,Equipment/Capital Outlay,Ambulances,,,,,Metro GO Notes 17A,,,2153
689,2020,2019-05-14,2050647,2153,PREMIER GRAPHICS OF LOUISVILLE INC,2019-09-24,1053975,Public Works & Assets Department,Metro Government Capital,Equipment/Capital Outlay,Ambulances,,,,,Metro GO Notes 17A,,,-2153
690,2020,2019-05-14,2050647,2153,PREMIER GRAPHICS OF LOUISVILLE INC,2019-09-24,1053975,Public Works & Assets Department,Metro Government Capital,Equipment/Capital Outlay,Ambulances,,,,,Metro GO Notes 17A,,,-426
691,2020,2019-06-02,2057634,1896,PREMIER GRAPHICS OF LOUISVILLE INC,2019-08-01,1047492,Public Works & Assets Department,Metro Government Capital,Equipment/Capital Outlay,Ambulances,,,,,Metro GO Notes 17A,,,1896
692,2020,2019-06-02,2057634,1896,PREMIER GRAPHICS OF LOUISVILLE INC,2019-08-01,1047492,Public Works & Assets Department,Metro Government Capital,Equipment/Capital Outlay,Ambulances,,,,,Metro GO Notes 17A,,,1896
693,2020,2019-06-02,2057634,1896,PREMIER GRAPHICS OF LOUISVILLE INC,2019-08-01,1047492,Public Works & Assets Department,Metro Government Capital,Equipment/Capital Outlay,Ambulances,,,,,Metro GO Notes 17A,,,-1896
694,2020,2019-07-09,2067045,12420,A THRU Z CONSULTING & DISTRIBUTING,2019-07-25,1046379,Louisville Zoo,Metro Government Capital,Contractual Services,Payments to Contractors,,,,,Capital Project Fund,,,12420
695,2020,2019-07-09,2067047,18615,A THRU Z CONSULTING & DISTRIBUTING,2019-07-25,1046379,Louisville Zoo,Metro Government Capital,Contractual Services,Payments to Contractors,,,,,Capital Project Fund,,,18615
696,2020,2019-07-08,2066258,7466,GRESHAM SMITH,2019-08-02,1047699,Public Works & Assets Department,Metro Government Capital,Contractual Services,Engineering & Architectural Services,,,,,State Funding,,,6366.05
697,2020,2019-07-08,2066258,7466,GRESHAM SMITH,2019-08-02,1047699,Public Works & Assets Department,Metro Government Capital,Contractual Services,Engineering & Architectural Services,,,,,State Funding,,,1099.95
698,2020,2019-05-07,2059066,1200,COOPER PROPERTY MAINTENANCE AND DEVELOPMENT,2019-07-05,1043496,Housing & Family Services,Metro Government Capital,Contractual Services,Rehab Renovation/Improvements,,,,,CDBG Year 2010,,,590.56
699,2020,2019-05-07,2059066,1200,COOPER PROPERTY MAINTENANCE AND DEVELOPMENT,2019-07-05,1043496,Housing & Family Services,Metro Government Capital,Contractual Services,Rehab Renovation/Improvements,,,,,CDBG Year 2010,,,-590.56
700,2020,2019-05-07,2059066,1200,COOPER PROPERTY MAINTENANCE AND DEVELOPMENT,2019-07-05,1043496,Housing & Family Services,Metro Government Capital,Contractual Services,Rehab Renovation/Improvements,,,,,CDBG Year 2010,,,590.56
701,2020,2019-06-08,2066255,7200,GRESHAM SMITH,2019-07-25,1046454,Public Works & Assets Department,Metro Government Capital,Contractual Services,Engineering & Architectural Services,,,,,Federally Funded,,,5760
702,2020,2019-07-08,2066779,21602.72,GRESHAM SMITH,2019-07-25,1046454,Public Works & Assets Department,Metro Government Capital,Contractual Services,Engineering & Architectural Services,,,,,Federally Funded,,,17282.18
703,2020,2019-06-08,2066255,7200,GRESHAM SMITH,2019-07-25,1046454,Public Works & Assets Department,Metro Government Capital,Contractual Services,Engineering & Architectural Services,,,,,FY19 Metro GO Bond - 10 yr,,,1440
704,2020,2019-07-08,2066779,21602.72,GRESHAM SMITH,2019-07-25,1046454,Public Works & Assets Department,Metro Government Capital,Contractual Services,Engineering & Architectural Services,,,,,FY19 Metro GO Bond - 10 yr,,,4320.54
705,2020,2019-06-20,2063255,54400,MEADOWBROOK HOMES INC,2019-07-16,1044628,Parks & Recreation,Metro Government Capital,Contractual Services,Payments to Contractors,,,,,CDBG 2014,,,3673.92
706,2020,2019-06-20,2063255,54400,MEADOWBROOK HOMES INC,2019-07-16,1044628,Parks & Recreation,Metro Government Capital,Contractual Services,Payments to Contractors,,,,,Metro GO Bonds 14D,,,12826.08
707,2020,2019-06-20,2063255,54400,MEADOWBROOK HOMES INC,2019-07-16,1044628,Parks & Recreation,Metro Government Capital,Contractual Services,Payments to Contractors,,,,,Metro GO Bonds 14D,,,37900
708,2020,2019-03-31,2064206,10566,CLR DESIGN INC,2019-07-11,1044083,Louisville Zoo,Metro Government Capital,Contractual Services,Payments to Contractors,,,,,Capital Project Fund,,,10566
709,2020,2019-04-30,2064213,6830.26,CLR DESIGN INC,2019-07-18,1045073,Louisville Zoo,Metro Government Capital,Contractual Services,Payments to Contractors,,,,,Capital Project Fund,,,-2579
710,2020,2019-04-30,2064213,6830.26,CLR DESIGN INC,2019-07-18,1045073,Louisville Zoo,Metro Government Capital,Contractual Services,Payments to Contractors,,,,,Capital Project Fund,,,2579
711,2020,2019-04-30,2064213,6830.26,CLR DESIGN INC,2019-07-18,1045073,Louisville Zoo,Metro Government Capital,Contractual Services,Payments to Contractors,,,,,Capital Project Fund,,,-2579
712,2020,2019-04-30,2064213,6830.26,CLR DESIGN INC,2019-07-18,1045073,Louisville Zoo,Metro Government Capital,Contractual Services,Payments to Contractors,,,,,Capital Project Fund,,,2579
713,2020,2019-06-10,2067607,22912.46,KORFHAGE LANDSCAPE & DESIGNS INC,2019-07-25,1046120,Louisville Zoo,Metro Government Capital,Contractual Services,Payments to Contractors,,,,,Capital Project Fund,,,12945
714,2020,2019-06-10,2067607,22912.46,KORFHAGE LANDSCAPE & DESIGNS INC,2019-07-25,1046120,Louisville Zoo,Metro Government Capital,Contractual Services,Payments to Contractors,,,,,Capital Project Fund,,,3495.46
715,2020,2019-05-31,2062455,8606,QK4 INC,2019-07-11,1044141,Public Works & Assets Department,Metro Government Capital,Contractual Services,Engineering & Architectural Services,,,,,General Obligation Bonds 2009,,,627.6
716,2020,2019-06-19,2060912,330,FREEDOM COUNSELING SERVICES LLC,2019-07-16,1044788,Louisville Metro Police Department,Metro Government Operations,Contractual Services,Professional Services,,,,,General Fund,,,330
717,2020,2019-07-09,2068143,372.77,FISHER SCIENTIFIC COMPANY LLC,2019-08-01,1047414,Louisville Metro Police Department,Metro Government Operations,Equipment/Capital Outlay,Law Enforcement Equipment,,,,,General Fund,,,242.66
718,2020,2019-07-09,2068143,372.77,FISHER SCIENTIFIC COMPANY LLC,2019-08-01,1047414,Louisville Metro Police Department,Metro Government Operations,Equipment/Capital Outlay,Law Enforcement Equipment,,,,,General Fund,,,130.11
719,2020,2019-07-09,2068143,372.77,FISHER SCIENTIFIC COMPANY LLC,2019-08-01,1047414,Louisville Metro Police Department,Metro Government Operations,Equipment/Capital Outlay,Law Enforcement Equipment,,,,,General Fund,,,130.11
720,2020,2019-07-09,2068143,372.77,FISHER SCIENTIFIC COMPANY LLC,2019-08-01,1047414,Louisville Metro Police Department,Metro Government Operations,Equipment/Capital Outlay,Law Enforcement Equipment,,,,,General Fund,,,242.66
721,2020,2019-07-09,2068143,372.77,FISHER SCIENTIFIC COMPANY LLC,2019-08-01,1047414,Louisville Metro Police Department,Metro Government Operations,Equipment/Capital Outlay,Law Enforcement Equipment,,,,,General Fund,,,-130.11
722,2020,2019-07-09,2068143,372.77,FISHER SCIENTIFIC COMPANY LLC,2019-08-01,1047414,Louisville Metro Police Department,Metro Government Operations,Equipment/Capital Outlay,Law Enforcement Equipment,,,,,General Fund,,,-242.66
723,2020,2019-06-26,2062148,493.84,BEST STAMP & SEAL CO INC,2019-07-23,1045887,Louisville Metro Police Department,Metro Government Operations,Supplies,Clothing/Uniform supplies,,,,,General Fund,,,493.84
724,2020,2019-06-13,2058169,721.5,BEST STAMP & SEAL CO INC,2019-07-09,1043749,Louisville Metro Police Department,Metro Government Operations,Supplies,Clothing/Uniform supplies,,,,,General Fund,,,721.5
725,2020,2019-06-11,2061283,359.99,SAFETY SHOE DISTRIBUTORS OF OKI INC,2019-07-02,1043205,Louisville Metro Police Department,Metro Government Operations,Supplies,Clothing/Uniform supplies,,,,,General Fund,,,359.99
726,2020,2019-06-11,2061284,448.98,SAFETY SHOE DISTRIBUTORS OF OKI INC,2019-07-02,1043205,Louisville Metro Police Department,Metro Government Operations,Supplies,Clothing/Uniform supplies,,,,,General Fund,,,448.98
727,2020,2019-06-11,2061260,452.69,SAFETY SHOE DISTRIBUTORS OF OKI INC,2019-07-02,1043205,Louisville Metro Police Department,Metro Government Operations,Supplies,Clothing/Uniform supplies,,,,,General Fund,,,452.69
728,2020,2019-01-15,2004664,28.09,KIERSTIN HOLMAN,2019-08-29,1050989,Louisville Metro Police Department,Metro Government Operations,Supplies,Public & Community Relations Supplies,,,,,General Fund,,,28.09
729,2020,2019-02-05,2063015,79.41,KROGER CO,2019-07-05,1043533,Louisville Metro Police Department,Metro Government Operations,Supplies,Public & Community Relations Supplies,,,,,General Fund,,,79.41
730,2020,2019-07-10,2067171,190.7,POSITIVE PROMOTIONS INC,2019-08-06,1048071,Louisville Metro Police Department,Metro Government Operations,Supplies,Public & Community Relations Supplies,,,,,General Fund,,,20.95
731,2020,2019-07-10,2067171,190.7,POSITIVE PROMOTIONS INC,2019-08-06,1048071,Louisville Metro Police Department,Metro Government Operations,Supplies,Public & Community Relations Supplies,,,,,General Fund,,,169.75
732,2020,2019-07-15,2068796,16331.3,KONICA MINOLTA BUSINESS SOLUTIONS,2019-08-01,1047195,Louisville Metro Police Department,Metro Government Operations,Contractual Services,Equipment Rental,,,,,General Fund,,,316.13
733,2020,2019-07-01,2064400,6150,MICHAEL E FREVILLE,2019-07-26,1046785,Louisville Metro Police Department,Metro Government Operations,Contractual Services,Professional Services,,,,,General Fund,,,6150
734,2020,2019-06-04,2056527,75,ROCKY MOUNTAIN LOGISTICS INC,2019-07-02,1043200,Louisville Metro Police Department,Metro Government Operations,Contractual Services,Professional Services,,,,,General Fund,,,75
735,2020,2019-02-24,2028551,69.04,TIME WARNER CABLE ENTERPRISES LLC,2019-07-09,1043897,Louisville Metro Police Department,Metro Government Operations,Contractual Services,Data Communication Services,,,,,General Fund,,,69.04
736,2020,2019-02-18,2028558,74.98,TIME WARNER CABLE ENTERPRISES LLC,2019-07-09,1043897,Louisville Metro Police Department,Metro Government Operations,Contractual Services,Data Communication Services,,,,,General Fund,,,74.98
737,2020,2019-02-24,2028567,69.04,TIME WARNER CABLE ENTERPRISES LLC,2019-07-09,1043897,Louisville Metro Police Department,Metro Government Operations,Contractual Services,Data Communication Services,,,,,General Fund,,,69.04
738,2020,2019-07-15,2068796,16331.3,KONICA MINOLTA BUSINESS SOLUTIONS,2019-08-01,1047195,Louisville Metro Police Department,Metro Government Operations,Contractual Services,Equipment Rental,,,,,General Fund,,,226.66
739,2020,2019-07-15,2068796,16331.3,KONICA MINOLTA BUSINESS SOLUTIONS,2019-08-01,1047195,Louisville Metro Police Department,Metro Government Operations,Contractual Services,Equipment Rental,,,,,General Fund,,,347.32
740,2020,2019-06-06,2070083,93.6,US BANK EQUIPMENT FINANCE,2019-08-02,1047778,Louisville Metro Police Department,Metro Government Operations,Contractual Services,Equipment Rental,,,,,General Fund,,,24.8
741,2020,2019-06-06,2070083,93.6,US BANK EQUIPMENT FINANCE,2019-08-02,1047778,Louisville Metro Police Department,Metro Government Operations,Contractual Services,Equipment Rental,,,,,General Fund,,,68.8
742,2020,2019-05-23,2055182,14.84,OFFICE DEPOT INC,2019-07-25,1046519,Louisville Metro Police Department,Metro Government Operations,Supplies,Office Supplies,,,,,General Fund,,,14.84
743,2020,2019-07-02,2064543,863.82,LOUISVILLE GAS & ELECTRIC COMPANY,2019-07-12,1044417,Louisville Metro Police Department,Metro Government Operations,Utility Services,Gas/Electric Utility Services,,,,,General Fund,,,863.82
744,2020,2019-07-15,2068796,16331.3,KONICA MINOLTA BUSINESS SOLUTIONS,2019-08-01,1047195,Louisville Metro Police Department,Metro Government Operations,Contractual Services,Equipment Rental,,,,,General Fund,,,1048.89
745,2020,2019-06-25,2061290,90,ROCKY MOUNTAIN LOGISTICS INC,2019-07-05,1043573,Louisville Metro Police Department,Metro Government Operations,Contractual Services,Equipment Rental,,,,,General Fund,,,90
746,2020,2019-06-30,2064387,706.5,VOIANCE LANGUAGE SERVICES LLC,2019-07-25,1046607,Louisville Metro Police Department,Metro Government Operations,Contractual Services,Language Services,,,,,General Fund,,,706.5
747,2020,2019-06-14,2060717,36.38,SCOT MAILING AND SHIPPING SYSTEMS INC,2019-07-12,1044457,Louisville Metro Police Department,Metro Government Operations,Contractual Services,Mail & Shipping,,,,,General Fund,,,36.38
748,2020,2019-06-25,2064522,38.81,OFFICE DEPOT INC,2019-07-16,1044831,Louisville Metro Police Department,Metro Government Operations,Supplies,Office Supplies,,,,,General Fund,,,38.81
749,2020,2019-06-24,2064530,9.02,OFFICE DEPOT INC,2019-07-16,1044831,Louisville Metro Police Department,Metro Government Operations,Supplies,Office Supplies,,,,,General Fund,,,9.02
750,2020,2019-06-24,2064243,174.51,OFFICE DEPOT INC,2019-07-12,1044438,Louisville Metro Police Department,Metro Government Operations,Supplies,Office Supplies,,,,,General Fund,,,174.51
751,2020,2019-07-08,2063597,2160,G-FIT INC,2019-08-02,1047698,Louisville Metro Police Department,Metro Government Operations,Contractual Services,Professional Services,,,,,General Fund,,,2160
752,2020,2019-06-08,2058177,1680,G-FIT INC,2019-07-05,1043517,Louisville Metro Police Department,Metro Government Operations,Contractual Services,Professional Services,,,,,General Fund,,,1680
753,2020,2019-06-07,2058306,880,MARIYA LEYDERMAN TARSHISH,2019-07-02,1043149,Louisville Metro Police Department,Metro Government Operations,Contractual Services,Professional Services,,,,,General Fund,,,880
754,2020,2019-04-19,2065881,1645.72,GALLS INC,2019-07-23,1045765,Louisville Metro Police Department,Metro Government Operations,Supplies,Clothing/Uniform supplies,,,,,General Fund,,,1645.72
755,2020,2019-04-15,2065882,48,GALLS INC,2019-07-23,1045765,Louisville Metro Police Department,Metro Government Operations,Supplies,Clothing/Uniform supplies,,,,,General Fund,,,48
756,2020,2019-04-04,2063304,11454,GALLS INC,2019-07-09,1043630,Louisville Metro Police Department,Metro Government Operations,Supplies,Clothing/Uniform supplies,,,,,General Fund,,,11454
757,2020,2019-04-30,2063305,31560,GALLS INC,2019-07-09,1043630,Louisville Metro Police Department,Metro Government Operations,Supplies,Clothing/Uniform supplies,,,,,General Fund,,,31560
758,2020,2019-06-21,2066840,881,GALLS PARENT HOLDINGS LLC,2019-07-23,1045944,Louisville Metro Police Department,Metro Government Operations,Supplies,Clothing/Uniform supplies,,,,,General Fund,,,881
759,2020,2019-06-10,2062801,189.38,LOWES COMPANIES INC,2019-07-05,1043546,Louisville Metro Police Department,Metro Government Operations,Supplies,Educational/Training Supplies,,,,,General Fund,,,189.38
760,2020,2019-06-07,2062807,439.27,LOWES COMPANIES INC,2019-07-05,1043546,Louisville Metro Police Department,Metro Government Operations,Supplies,Educational/Training Supplies,,,,,General Fund,,,439.27
761,2020,2019-06-14,2058745,2295,WCR COMMERCE LLC,2019-07-09,1043926,Louisville Metro Police Department,Metro Government Operations,Supplies,Educational/Training Supplies,,,,,General Fund,,,2295
762,2020,2019-06-25,2062476,151.39,BOUND TREE MEDICAL LLC,2019-07-25,1046405,Louisville Metro Police Department,Metro Government Operations,Supplies,First Aid Supplies,,,,,General Fund,,,151.39
763,2020,2019-06-26,2063250,13373.24,BOUND TREE MEDICAL LLC,2019-07-23,1045894,Louisville Metro Police Department,Metro Government Operations,Supplies,First Aid Supplies,,,,,General Fund,,,13373.24
764,2020,2019-06-26,2063116,61.16,OFFICE DEPOT INC,2019-07-12,1044438,Louisville Metro Police Department,Metro Government Operations,Supplies,Office Supplies,,,,,General Fund,,,61.16
765,2020,2019-05-07,2067672,292.55,ACTION TARGET INC,2019-07-25,1046381,Louisville Metro Police Department,Metro Government Operations,Supplies,Police Supplies,,,,,General Fund,,,263.75
766,2020,2019-06-28,2063239,192879.42,ALL SAFE INDUSTRIES INC,2019-07-12,1044351,Louisville Metro Police Department,Metro Government Operations,Supplies,Safety Supplies,,,,,General Fund,,,192879.42
767,2020,2019-06-30,2063958,30700,DJ LEASING LLC,2019-07-18,1045079,Louisville Metro Police Department,Metro Government Operations,Contractual Services,Automotive Rent,,,,,General Fund,,,2191.16
768,2020,2019-06-30,2063958,30700,DJ LEASING LLC,2019-07-18,1045079,Louisville Metro Police Department,Metro Government Operations,Contractual Services,Automotive Rent,,,,,General Fund,,,28508.84
769,2020,2019-06-28,2066486,1870.4,DJ LEASING LLC,2019-07-25,1046432,Louisville Metro Police Department,Metro Government Operations,Contractual Services,Automotive Repair Services,,,,,General Fund,,,1870.4
770,2020,2019-06-28,2066459,5519.12,DJ LEASING LLC,2019-07-25,1046432,Louisville Metro Police Department,Metro Government Operations,Contractual Services,Automotive Repair Services,,,,,General Fund,,,5519.12
771,2020,2019-06-11,2062331,2020.72,DJ LEASING LLC,2019-07-02,1043071,Louisville Metro Police Department,Metro Government Operations,Contractual Services,Automotive Repair Services,,,,,General Fund,,,2020.72
772,2020,2019-05-24,2062473,1487.2,DJ LEASING LLC,2019-07-02,1043071,Louisville Metro Police Department,Metro Government Operations,Contractual Services,Automotive Repair Services,,,,,General Fund,,,1487.2
773,2020,2019-05-24,2062836,1690.77,DJ LEASING LLC,2019-07-05,1043503,Louisville Metro Police Department,Metro Government Operations,Contractual Services,Automotive Repair Services,,,,,General Fund,,,1690.77
774,2020,2019-05-24,2060909,11027.5,SUBURBAN TOWING INC,2019-07-02,1043224,Louisville Metro Police Department,Metro Government Operations,Contractual Services,Automotive Wrecker Services,,,,,General Fund,,,11027.5
775,2020,2019-07-15,2068796,16331.3,KONICA MINOLTA BUSINESS SOLUTIONS,2019-08-01,1047195,Louisville Metro Police Department,Metro Government Operations,Contractual Services,Equipment Rental,,,,,General Fund,,,210.06
776,2020,2019-04-25,2046701,53.79,RUMPKE OF KENTUCKY INC,2019-07-02,1043201,Louisville Metro Police Department,Metro Government Operations,Contractual Services,Equipment Rental,,,,,General Fund,,,53.79
777,2020,2019-06-19,2061835,1131.5,MCGINNIS AUCTION & APPRAISAL SERVICE,2019-07-09,1043832,Louisville Metro Police Department,Metro Government Operations,Contractual Services,Professional Services,,,,,General Fund,,,1131.5
778,2020,2019-06-27,2065682,233.83,UNIFIRST CORPORATION,2019-07-26,1046661,Louisville Metro Police Department,Metro Government Operations,Contractual Services,Uniform Services,,,,,General Fund,,,233.83
779,2020,2019-07-04,2066219,233.83,UNIFIRST CORPORATION,2019-07-30,1046895,Louisville Metro Police Department,Metro Government Operations,Contractual Services,Uniform Services,,,,,General Fund,,,233.83
780,2020,2019-06-20,2063520,233.83,UNIFIRST CORPORATION,2019-07-18,1044982,Louisville Metro Police Department,Metro Government Operations,Contractual Services,Uniform Services,,,,,General Fund,,,233.83
781,2020,2019-06-13,2060746,233.83,UNIFIRST CORPORATION,2019-07-02,1042663,Louisville Metro Police Department,Metro Government Operations,Contractual Services,Uniform Services,,,,,General Fund,,,233.83
782,2020,2019-06-17,2063274,277.74,GRAINGER INDUSTRIAL SUPPLY,2019-07-12,1044385,Louisville Metro Police Department,Metro Government Operations,Supplies,Office Supplies,,,,,General Fund,,,60.8
783,2020,2019-06-17,2063274,277.74,GRAINGER INDUSTRIAL SUPPLY,2019-07-12,1044385,Louisville Metro Police Department,Metro Government Operations,Supplies,Safety Supplies,,,,,General Fund,,,63.9
784,2020,2019-06-17,2063274,277.74,GRAINGER INDUSTRIAL SUPPLY,2019-07-12,1044385,Louisville Metro Police Department,Metro Government Operations,Supplies,Safety Supplies,,,,,General Fund,,,71.44
785,2020,2019-06-17,2063274,277.74,GRAINGER INDUSTRIAL SUPPLY,2019-07-12,1044385,Louisville Metro Police Department,Metro Government Operations,Supplies,Safety Supplies,,,,,General Fund,,,81.6
786,2020,2019-06-12,2063207,114.77,VERIZON WIRELESS,2019-07-12,1044497,Louisville Zoo,Metro Government Operations,Contractual Services,Cellular Telephone Services,,,,,General Fund,,,-240.06
787,2020,2019-06-12,2063207,114.77,VERIZON WIRELESS,2019-07-12,1044497,Louisville Zoo,Metro Government Operations,Contractual Services,Cellular Telephone Services,,,,,General Fund,,,114.77
788,2020,2019-06-12,2063207,114.77,VERIZON WIRELESS,2019-07-12,1044497,Louisville Zoo,Metro Government Operations,Contractual Services,Cellular Telephone Services,,,,,General Fund,,,240.06
789,2020,2019-07-12,2068649,240.06,VERIZON WIRELESS,2019-08-02,1047780,Louisville Zoo,Metro Government Operations,Contractual Services,Cellular Telephone Services,,,,,General Fund,,,240.06
790,2020,2019-07-15,2066873,1754.36,KONICA MINOLTA BUSINESS SOLUTIONS,2019-07-26,1046653,Louisville Zoo,Metro Government Operations,Contractual Services,Equipment Rental,,,,,General Fund,,,1313.99
791,2020,2019-07-15,2066873,1754.36,KONICA MINOLTA BUSINESS SOLUTIONS,2019-07-26,1046653,Louisville Zoo,Metro Government Operations,Contractual Services,Equipment Rental,,,,,General Fund,,,98.94
792,2020,2019-06-10,2058481,1523.3,KONICA MINOLTA BUSINESS SOLUTIONS,2019-07-26,1046653,Louisville Zoo,Metro Government Operations,Contractual Services,Equipment Rental,,,,,General Fund,,,106.11
793,2020,2019-06-10,2058481,1523.3,KONICA MINOLTA BUSINESS SOLUTIONS,2019-07-26,1046653,Louisville Zoo,Metro Government Operations,Contractual Services,Equipment Rental,,,,,General Fund,,,1070.24
794,2020,2019-06-30,2062798,1401.65,LOUISVILLE ZOO FOUNDATION,2019-07-05,1043433,Louisville Zoo,Metro Government Operations,Contractual Services,Professional Services,,,,,General Fund,,,1401.65
795,2020,2019-07-19,2067815,489.2,CENTAMAN INC,2019-07-26,1046717,Louisville Zoo,Metro Government Operations,Equipment/Capital Outlay,Computer Software,,,,,General Fund,,,489.2
796,2020,2019-06-17,2068384,489.2,CENTAMAN INC,2019-07-30,1046975,Louisville Zoo,Metro Government Operations,Equipment/Capital Outlay,Computer Software,,,,,General Fund,,,489.2
797,2020,2019-06-30,2065635,656.73,WINDCAVE INC,2019-07-19,1045404,Louisville Zoo,Metro Government Operations,Equipment/Capital Outlay,Computer Software,,,,,General Fund,,,656.73
798,2020,2019-06-30,2062942,414,MPC PROMOTIONS,2019-07-11,1043978,Louisville Zoo,Metro Government Operations,Supplies,Clothing/Uniform supplies,,,,,General Fund,,,414
799,2020,2019-07-03,2066721,574.23,FARLEY PRINTING COMPANY INC,2019-07-23,1045936,Louisville Zoo,Metro Government Operations,Supplies,Office Supplies,,,,,General Fund,,,574.23
800,2020,2019-06-30,2066800,5087.74,LSC COMMUNICATIONS INC,2019-07-23,1045995,Louisville Zoo,Metro Government Operations,Supplies,Printing/Copier/Reproduction Supplies,,,,,General Fund,,,52.37
801,2020,2019-06-27,2062918,593.09,KOORSEN FIRE & SECURITY,2019-07-09,1043637,Louisville Fire,Metro Government Operations,Contractual Services,Other Building Maintenance/Repair Services,,,,,General Fund,,,593.09
802,2020,2019-06-13,2064879,177.5,GALLS PARENT HOLDINGS LLC,2019-07-16,1044789,Metro Animal Services,Metro Government Operations,Supplies,Clothing/Uniform supplies,,,,,General Fund,,,177.5
803,2020,2019-06-27,2062437,450,KOORSEN FIRE & SECURITY,2019-07-05,1043410,Louisville Fire,Metro Government Operations,Contractual Services,Other Building Maintenance/Repair Services,,,,,General Fund,,,450
804,2020,2019-06-27,2064100,35,BLUE CROSS ANIMAL HOSPITAL,2019-07-11,1044075,Metro Animal Services,Metro Government Operations,Contractual Services,Spay/Neuter,,,,,General Fund,,,35
805,2020,2019-07-03,2064533,852.06,KOORSEN FIRE & SECURITY,2019-07-18,1044975,Louisville Fire,Metro Government Operations,Contractual Services,Other Building Maintenance/Repair Services,,,,,General Fund,,,852.06
806,2020,2019-06-13,2064882,71,GALLS PARENT HOLDINGS LLC,2019-07-16,1044789,Metro Animal Services,Metro Government Operations,Supplies,Clothing/Uniform supplies,,,,,General Fund,,,71
807,2020,2019-06-14,2062220,280,TYCO FIRE & SECURITY MANAGEMENT INC,2019-07-18,1045166,Louisville Fire,Metro Government Operations,Contractual Services,Other Building Maintenance/Repair Services,,,,,General Fund,,,280
808,2020,2019-06-30,2068798,17104.46,KENTUCKY COMMUNITY & TECHNICAL COLLEGE SYSTEM,2019-08-01,1047439,Louisville Zoo,Metro Government Operations,Contractual Services,Professional Services,,,,,General Fund,,,17104.46
809,2020,2019-06-07,2058893,179.75,JOHNSON ANIMAL CLINIC INC,2019-07-02,1043122,Metro Animal Services,Metro Government Operations,Contractual Services,Spay/Neuter,,,,,General Fund,,,179.75
810,2020,2019-06-13,2064877,35.5,GALLS PARENT HOLDINGS LLC,2019-07-16,1044789,Metro Animal Services,Metro Government Operations,Supplies,Clothing/Uniform supplies,,,,,General Fund,,,35.5
811,2020,2019-06-24,2061771,650,MELVYN LITTLE JR,2019-07-02,1043157,Louisville Fire,Metro Government Operations,Contractual Services,Professional Services,,,,,General Fund,,,650
812,2020,2019-06-27,2062960,270,NIXON POWER SERVICES LLC,2019-07-09,1043850,Louisville Zoo,Metro Government Operations,Contractual Services,Other Building Maintenance/Repair Services,,,,,General Fund,,,270
813,2020,2019-06-06,2063155,164.06,DENVER ZOOLOGICAL FOUNDATION,2019-07-09,1043775,Louisville Zoo,Metro Government Operations,Equipment/Capital Outlay,Animals,,,,,General Fund,,,164.06
814,2020,2019-07-02,2063836,875,KENTUCKY HUMANE SOCIETY,2019-07-11,1043971,Metro Animal Services,Metro Government Operations,Contractual Services,Spay/Neuter,,,,,General Fund,,,875
815,2020,2019-05-28,2063099,149.96,SANDY'S PET SUPPLIES INC,2019-07-09,1043875,Louisville Zoo,Metro Government Operations,Supplies,Animal Food,,,,,General Fund,,,149.96
816,2020,2019-06-13,2064793,1612,GALLS PARENT HOLDINGS LLC,2019-07-16,1044789,Metro Animal Services,Metro Government Operations,Supplies,Clothing/Uniform supplies,,,,,General Fund,,,0.5
817,2020,2019-06-26,2063809,650,MURPHY G BELDING JR,2019-07-11,1044127,Louisville Fire,Metro Government Operations,Contractual Services,Professional Services,,,,,General Fund,,,650
818,2020,2019-06-30,2064214,4250,UNIVERSITY OF LOUISVILLE,2019-07-12,1044479,Louisville Fire,Metro Government Operations,Contractual Services,Professional Services,,,,,General Fund,,,4250
819,2020,2019-06-30,2064216,4250,UNIVERSITY OF LOUISVILLE,2019-07-12,1044479,Louisville Fire,Metro Government Operations,Contractual Services,Professional Services,,,,,General Fund,,,4250
820,2020,2019-06-17,2062937,1962,CHANNING BETE CO INC,2019-07-12,1044364,Louisville Fire,Metro Government Operations,Supplies,CPR Supplies,,,,,General Fund,,,1962
821,2020,2019-06-04,2067758,48559.5,PHYSIO CONTROL INC,2019-08-01,1047489,Louisville Fire,Metro Government Operations,Supplies,CPR Supplies,,,,,General Fund,,,8800
822,2020,2019-06-04,2067758,48559.5,PHYSIO CONTROL INC,2019-08-01,1047489,Louisville Fire,Metro Government Operations,Supplies,CPR Supplies,,,,,General Fund,,,39759.5
823,2020,2019-06-28,2067774,-8800,PHYSIO CONTROL INC,2019-08-01,1047489,Louisville Fire,Metro Government Operations,Supplies,CPR Supplies,,,,,General Fund,,,-8800
824,2020,2019-06-12,2061732,30525.18,LOUISVILLE GAS & ELECTRIC COMPANY,2019-07-11,1044118,Louisville Fire,Metro Government Operations,Utility Services,Gas/Electric Utility Services,,,,,General Fund,,,30525.18
825,2020,2019-07-15,2067208,31317.4,LOUISVILLE GAS & ELECTRIC COMPANY,2019-07-25,1046496,Louisville Fire,Metro Government Operations,Utility Services,Gas/Electric Utility Services,,,,,General Fund,,,31317
826,2020,2019-07-15,2067208,31317.4,LOUISVILLE GAS & ELECTRIC COMPANY,2019-07-25,1046496,Louisville Fire,Metro Government Operations,Utility Services,Gas/Electric Utility Services,,,,,General Fund,,,0.4
827,2020,2019-07-15,2067208,31317.4,LOUISVILLE GAS & ELECTRIC COMPANY,2019-07-25,1046496,Louisville Fire,Metro Government Operations,Utility Services,Gas/Electric Utility Services,,,,,General Fund,,,0.4
828,2020,2019-07-15,2067208,31317.4,LOUISVILLE GAS & ELECTRIC COMPANY,2019-07-25,1046496,Louisville Fire,Metro Government Operations,Utility Services,Gas/Electric Utility Services,,,,,General Fund,,,-0.4
829,2020,2019-07-15,2067208,31317.4,LOUISVILLE GAS & ELECTRIC COMPANY,2019-07-25,1046496,Louisville Fire,Metro Government Operations,Utility Services,Gas/Electric Utility Services,,,,,General Fund,,,-31317
830,2020,2019-07-15,2067208,31317.4,LOUISVILLE GAS & ELECTRIC COMPANY,2019-07-25,1046496,Louisville Fire,Metro Government Operations,Utility Services,Gas/Electric Utility Services,,,,,General Fund,,,31317
831,2020,2019-06-18,2060530,265.58,2 HOUNDS DESIGN,2019-07-16,1044718,Metro Animal Services,Metro Government Operations,Supplies,Animal Care Supplies,,,,,General Fund,,,248.58
832,2020,2019-06-18,2060530,265.58,2 HOUNDS DESIGN,2019-07-16,1044718,Metro Animal Services,Metro Government Operations,Supplies,Animal Care Supplies,,,,,General Fund,,,15.58
833,2020,2019-06-30,2062804,800,WILLIAM R CASE,2019-07-25,1046616,Louisville Free Public Library,Metro Government Operations,Contractual Services,Contractual Non Professional Service Agreements,,,,,Gen Council NDF,,,800
834,2020,2019-06-07,2064368,53.85,LOWES COMPANIES INC,2019-07-12,1044420,Louisville Free Public Library,Metro Government Operations,Supplies,Educational/Training Supplies,,,,,Gen Council NDF,,,53.85
835,2020,2019-07-01,2062523,3777.6,SECRET SAFARI,2019-07-05,1043439,Louisville Zoo,Metro Government Operations,Contractual Services,Payments to Contractors,,,,,General Fund,,,3775.6
836,2020,2019-07-01,2062523,3777.6,SECRET SAFARI,2019-07-05,1043439,Louisville Zoo,Metro Government Operations,Contractual Services,Payments to Contractors,,,,,General Fund,,,2
837,2020,2019-07-01,2062524,606.6,SECRET SAFARI,2019-07-05,1043439,Louisville Zoo,Metro Government Operations,Contractual Services,Payments to Contractors,,,,,General Fund,,,606.6
838,2020,2019-07-01,2062526,127.8,SECRET SAFARI,2019-07-05,1043439,Louisville Zoo,Metro Government Operations,Contractual Services,Payments to Contractors,,,,,General Fund,,,127.8
839,2020,2019-04-30,2063118,55.11,SERVICE SYSTEMS ASSOCIATES INC,2019-09-12,1052822,Louisville Zoo,Metro Government Operations,Contractual Services,Payments to Contractors,,,,,General Fund,,,15.07
840,2020,2019-04-30,2063118,55.11,SERVICE SYSTEMS ASSOCIATES INC,2019-09-12,1052822,Louisville Zoo,Metro Government Operations,Contractual Services,Payments to Contractors,,,,,General Fund,,,40.04
841,2020,2019-04-30,2063118,55.11,SERVICE SYSTEMS ASSOCIATES INC,2019-09-12,1052822,Louisville Zoo,Metro Government Operations,Contractual Services,Payments to Contractors,,,,,General Fund,,,55.11
842,2020,2019-04-30,2063118,55.11,SERVICE SYSTEMS ASSOCIATES INC,2019-09-12,1052822,Louisville Zoo,Metro Government Operations,Contractual Services,Payments to Contractors,,,,,General Fund,,,-40.04
843,2020,2019-04-30,2063118,55.11,SERVICE SYSTEMS ASSOCIATES INC,2019-09-12,1052822,Louisville Zoo,Metro Government Operations,Contractual Services,Payments to Contractors,,,,,General Fund,,,-15.07
844,2020,2019-05-06,2050085,1209.75,LUKING GREENHOUSE INC,2019-09-12,1052783,Louisville Zoo,Metro Government Operations,Contractual Services,Professional Services,,,,,General Fund,,,1209.75
845,2020,2019-05-06,2050085,1209.75,LUKING GREENHOUSE INC,2019-09-12,1052783,Louisville Zoo,Metro Government Operations,Contractual Services,Professional Services,,,,,General Fund,,,1209.75
846,2020,2019-05-06,2050085,1209.75,LUKING GREENHOUSE INC,2019-09-12,1052783,Louisville Zoo,Metro Government Operations,Contractual Services,Professional Services,,,,,General Fund,,,-1209.75
847,2020,2019-05-06,2049955,127,SANDY ABRAMS LANDSCAPING COMPANY INC,2019-07-09,1043874,Louisville Zoo,Metro Government Operations,Contractual Services,Professional Services,,,,,General Fund,,,127
848,2020,2019-05-31,2066661,5179.1,SCOOTERBUG INC,2019-07-23,1046042,Louisville Zoo,Metro Government Operations,Contractual Services,Professional Services,,,,,General Fund,,,5179.1
849,2020,2019-04-30,2066666,5424,SCOOTERBUG INC,2019-07-23,1046042,Louisville Zoo,Metro Government Operations,Contractual Services,Professional Services,,,,,General Fund,,,5424
850,2020,2019-06-30,2066667,5274.45,SCOOTERBUG INC,2019-07-23,1046042,Louisville Zoo,Metro Government Operations,Contractual Services,Professional Services,,,,,General Fund,,,5274.45
851,2020,2019-06-12,2064050,212.12,VERIZON WIRELESS,2019-07-16,1044901,Develop Louisville,Metro Government Operations,Contractual Services,Air Cards,,,,,General Fund,,,42.4
852,2020,2018-11-01,2063881,1200,KENTUCKIANS FOR BETTER TRANSPORTATION,2019-07-11,1044109,Develop Louisville,Metro Government Operations,Contractual Services,Dues,,,,,General Fund,,,1200
853,2020,2019-05-13,2051293,713.36,KONICA MINOLTA BUSINESS SOLUTIONS,2019-07-11,1043974,Develop Louisville,Metro Government Operations,Contractual Services,Equipment Rental,,,,,General Fund,,,-356.93
854,2020,2019-05-13,2051293,713.36,KONICA MINOLTA BUSINESS SOLUTIONS,2019-07-11,1043974,Develop Louisville,Metro Government Operations,Contractual Services,Equipment Rental,,,,,General Fund,,,356.68
855,2020,2019-05-13,2051293,713.36,KONICA MINOLTA BUSINESS SOLUTIONS,2019-07-11,1043974,Develop Louisville,Metro Government Operations,Contractual Services,Equipment Rental,,,,,General Fund,,,356.93
856,2020,2019-07-15,2068363,725.02,KONICA MINOLTA BUSINESS SOLUTIONS,2019-07-26,1046653,Develop Louisville,Metro Government Operations,Contractual Services,Equipment Rental,,,,,General Fund,,,362.51
857,2020,2019-07-25,2068521,5000,HODGSON & DOUGLAS LLC,2019-08-22,1049791,Develop Louisville,Metro Government Operations,Contractual Services,External Agency Contractual Services,,,,,General Fund,,,5000
858,2020,2019-06-21,2062450,9000,RUNDELL ERNSTBERGER ASSOCIATES INC,2019-07-23,1046040,Develop Louisville,Metro Government Operations,Contractual Services,Professional Services,,,,,Gen Council NDF,,,5550
859,2020,2019-07-15,2066605,1800,RUNDELL ERNSTBERGER ASSOCIATES INC,2019-08-09,1048567,Develop Louisville,Metro Government Operations,Contractual Services,Professional Services,,,,,Gen Council NDF,,,1110
860,2020,2019-03-08,2062916,750,GRESHAM SMITH,2019-07-16,1044795,Develop Louisville,Metro Government Operations,Contractual Services,Professional Services,,,,,General Fund,,,750
861,2020,2019-06-03,2065589,655,MARY JULIA PACE,2019-07-19,1045385,Develop Louisville,Metro Government Operations,Contractual Services,Professional Services,,,,,State Fund,,,655
862,2020,2019-06-30,2062939,1.35,AMERICAN WELDING & GAS INC,2019-07-25,1046390,Metro Animal Services,Metro Government Operations,Contractual Services,Environmental Services,,,,,General Fund,,,1.35
863,2020,2019-06-27,2062684,1275.6,JEFFERSON VETERINARY MANAGEMENT GROUP INC,2019-07-05,1043526,Metro Animal Services,Metro Government Operations,Contractual Services,Veterinarian Services,,,,,General Fund,,,1275.6
864,2020,2019-05-31,2061378,1697.59,ANTECH DIAGNOSTICS INC,2019-07-09,1043738,Louisville Zoo,Metro Government Operations,Contractual Services,Laboratory Services,,,,,General Fund,,,1697.59
865,2020,2019-06-13,2064793,1612,GALLS PARENT HOLDINGS LLC,2019-07-16,1044789,Metro Animal Services,Metro Government Operations,Supplies,Clothing/Uniform supplies,,,,,General Fund,,,1611.5
866,2020,2019-06-27,2062950,270,NIXON POWER SERVICES LLC,2019-07-09,1043850,Louisville Zoo,Metro Government Operations,Contractual Services,Other Building Maintenance/Repair Services,,,,,General Fund,,,270
867,2020,2019-05-17,2063100,67.98,SANDY'S PET SUPPLIES INC,2019-07-09,1043875,Louisville Zoo,Metro Government Operations,Supplies,Animal Food,,,,,General Fund,,,67.98
868,2020,2019-06-27,2062952,270,NIXON POWER SERVICES LLC,2019-07-09,1043850,Louisville Zoo,Metro Government Operations,Contractual Services,Other Building Maintenance/Repair Services,,,,,General Fund,,,270
869,2020,2019-06-28,2062640,1716,RACHEL A BROWN DVM,2019-07-05,1043568,Metro Animal Services,Metro Government Operations,Contractual Services,Veterinarian Services,,,,,General Fund,,,483
870,2020,2019-07-12,2066789,1507.19,ANTECH DIAGNOSTICS INC,2019-07-23,1045878,Louisville Zoo,Metro Government Operations,Contractual Services,Laboratory Services,,,,,General Fund,,,1507.19
871,2020,2019-06-21,2063813,22,GALLS PARENT HOLDINGS LLC,2019-07-16,1044789,Metro Animal Services,Metro Government Operations,Supplies,Clothing/Uniform supplies,,,,,General Fund,,,11
872,2020,2019-06-27,2062953,270,NIXON POWER SERVICES LLC,2019-07-09,1043850,Louisville Zoo,Metro Government Operations,Contractual Services,Other Building Maintenance/Repair Services,,,,,General Fund,,,270
873,2020,2019-06-18,2063101,149.96,SANDY'S PET SUPPLIES INC,2019-07-09,1043875,Louisville Zoo,Metro Government Operations,Supplies,Animal Food,,,,,General Fund,,,149.96
874,2020,2019-06-28,2062640,1716,RACHEL A BROWN DVM,2019-07-05,1043568,Metro Animal Services,Metro Government Operations,Contractual Services,Veterinarian Services,,,,,General Fund,,,1233
875,2020,2019-06-25,2064088,248,BOARD OF TRUSTEES OF MICHIGAN STATE UNIVERSITY,2019-07-16,1044748,Louisville Zoo,Metro Government Operations,Contractual Services,Laboratory Services,,,,,General Fund,,,248
876,2020,2019-07-03,2067816,-195,GALLS PARENT HOLDINGS LLC,2019-07-26,1046743,Metro Animal Services,Metro Government Operations,Supplies,Clothing/Uniform supplies,,,,,General Fund,,,-97.5
877,2020,2019-06-30,2063130,225,NIXON POWER SERVICES LLC,2019-07-09,1043850,Louisville Zoo,Metro Government Operations,Contractual Services,Other Building Maintenance/Repair Services,,,,,General Fund,,,225
878,2020,2019-05-22,2063102,40,SANDY'S PET SUPPLIES INC,2019-07-09,1043875,Louisville Zoo,Metro Government Operations,Supplies,Animal Food,,,,,General Fund,,,40
879,2020,2019-06-20,2061964,3234,WOODFORD ANIMAL HEALTH SERVICES PSC,2019-07-02,1043264,Metro Animal Services,Metro Government Operations,Contractual Services,Veterinarian Services,,,,,General Fund,,,3234
880,2020,2019-05-31,2061375,53,HAGYARD DAVIDSON MCGEE ASSOCIATES PLLC,2019-07-02,1043106,Louisville Zoo,Metro Government Operations,Contractual Services,Laboratory Services,,,,,General Fund,,,53
881,2020,2019-06-13,2063890,124,GALLS PARENT HOLDINGS LLC,2019-07-12,1044381,Metro Animal Services,Metro Government Operations,Supplies,Clothing/Uniform supplies,,,,,General Fund,,,62
882,2020,2019-06-30,2063131,225,NIXON POWER SERVICES LLC,2019-07-09,1043850,Louisville Zoo,Metro Government Operations,Contractual Services,Other Building Maintenance/Repair Services,,,,,General Fund,,,225
883,2020,2019-06-23,2063088,21,SANDY'S PET SUPPLIES INC,2019-07-09,1043875,Louisville Zoo,Metro Government Operations,Supplies,Animal Food,,,,,General Fund,,,21
884,2020,2019-06-13,2065660,3.3,TYLER MOUNTAIN WATER CO INC,2019-07-18,1045167,Metro Animal Services,Metro Government Operations,Supplies,Animal Care Supplies,,,,,General Fund,,,3.3
885,2020,2019-05-31,2061173,85.59,IDEXX DISTRIBUTION INC,2019-07-02,1043112,Louisville Zoo,Metro Government Operations,Contractual Services,Laboratory Services,,,,,General Fund,,,85.59
886,2020,2019-07-02,2067728,-354.5,GALLS PARENT HOLDINGS LLC,2019-07-26,1046743,Metro Animal Services,Metro Government Operations,Supplies,Clothing/Uniform supplies,,,,,General Fund,,,-177.25
887,2020,2019-03-21,2060894,225,NIXON POWER SERVICES LLC,2019-07-02,1043174,Louisville Zoo,Metro Government Operations,Contractual Services,Other Building Maintenance/Repair Services,,,,,General Fund,,,225
888,2020,2019-03-25,2060896,270,NIXON POWER SERVICES LLC,2019-07-02,1043174,Louisville Zoo,Metro Government Operations,Contractual Services,Other Building Maintenance/Repair Services,,,,,General Fund,,,270
889,2020,2019-03-22,2060897,270,NIXON POWER SERVICES LLC,2019-07-02,1043174,Louisville Zoo,Metro Government Operations,Contractual Services,Other Building Maintenance/Repair Services,,,,,General Fund,,,270
890,2020,2019-03-20,2060898,225,NIXON POWER SERVICES LLC,2019-07-02,1043174,Louisville Zoo,Metro Government Operations,Contractual Services,Other Building Maintenance/Repair Services,,,,,General Fund,,,225
891,2020,2019-03-20,2060900,270,NIXON POWER SERVICES LLC,2019-07-02,1043174,Louisville Zoo,Metro Government Operations,Contractual Services,Other Building Maintenance/Repair Services,,,,,General Fund,,,270
892,2020,2019-03-25,2060906,270,NIXON POWER SERVICES LLC,2019-07-02,1043174,Louisville Zoo,Metro Government Operations,Contractual Services,Other Building Maintenance/Repair Services,,,,,General Fund,,,270
893,2020,2019-03-25,2060891,270,NIXON POWER SERVICES LLC,2019-07-02,1043174,Louisville Zoo,Metro Government Operations,Contractual Services,Other Building Maintenance/Repair Services,,,,,General Fund,,,270
894,2020,2019-03-21,2060823,225,NIXON POWER SERVICES LLC,2019-07-02,1043174,Louisville Zoo,Metro Government Operations,Contractual Services,Other Building Maintenance/Repair Services,,,,,General Fund,,,225
895,2020,2019-06-28,2063141,400,PRECISION CONCRETE CUTTING OF KY,2019-07-09,1043860,Louisville Zoo,Metro Government Operations,Contractual Services,Other Building Maintenance/Repair Services,,,,,General Fund,,,400
896,2020,2019-05-25,2057376,1624.38,REPUBLIC SERVICES OF KENTUCKY LLC,2019-07-02,1043191,Louisville Zoo,Metro Government Operations,Contractual Services,Other Building Maintenance/Repair Services,,,,,General Fund,,,498.97
897,2020,2019-06-25,2063544,1682.46,REPUBLIC SERVICES OF KENTUCKY LLC,2019-07-19,1045412,Louisville Zoo,Metro Government Operations,Contractual Services,Other Building Maintenance/Repair Services,,,,,General Fund,,,420.1
898,2020,2019-06-25,2063544,1682.46,REPUBLIC SERVICES OF KENTUCKY LLC,2019-07-19,1045412,Louisville Zoo,Metro Government Operations,Contractual Services,Other Building Maintenance/Repair Services,,,,,General Fund,,,387.77
899,2020,2019-06-27,2062943,938.2,STANLEY SCHULTZE & CO INC,2019-07-09,1043648,Louisville Zoo,Metro Government Operations,Contractual Services,Other Building Maintenance/Repair Services,,,,,General Fund,,,938.2
900,2020,2019-06-25,2062428,338.12,TECTA AMERICA ZERO COMPANY,2019-07-09,1043892,Louisville Zoo,Metro Government Operations,Contractual Services,Other Building Maintenance/Repair Services,,,,,General Fund,,,338.12
901,2020,2019-06-25,2062430,275.78,TECTA AMERICA ZERO COMPANY,2019-07-09,1043892,Louisville Zoo,Metro Government Operations,Contractual Services,Other Building Maintenance/Repair Services,,,,,General Fund,,,275.78
902,2020,2019-06-25,2065917,268,TRUGREEN LIMITED PARTNERSHIP,2019-07-19,1045449,Louisville Zoo,Metro Government Operations,Contractual Services,Professional Services,,,,,General Fund,,,268
903,2020,2019-06-11,2065926,268,TRUGREEN LIMITED PARTNERSHIP,2019-07-19,1045449,Louisville Zoo,Metro Government Operations,Contractual Services,Professional Services,,,,,General Fund,,,268
904,2020,2019-06-19,2065930,268,TRUGREEN LIMITED PARTNERSHIP,2019-07-19,1045449,Louisville Zoo,Metro Government Operations,Contractual Services,Professional Services,,,,,General Fund,,,268
905,2020,2019-06-04,2065670,268,TRUGREEN LIMITED PARTNERSHIP,2019-07-19,1045449,Louisville Zoo,Metro Government Operations,Contractual Services,Professional Services,,,,,General Fund,,,268
906,2020,2019-06-25,2063546,169,TRUGREEN LIMITED PARTNERSHIP,2019-07-16,1044878,Louisville Zoo,Metro Government Operations,Contractual Services,Professional Services,,,,,General Fund,,,169
907,2020,2019-06-25,2063548,350,TRUGREEN LIMITED PARTNERSHIP,2019-07-16,1044878,Louisville Zoo,Metro Government Operations,Contractual Services,Professional Services,,,,,General Fund,,,350
908,2020,2019-06-14,2063210,200,TRUGREEN LIMITED PARTNERSHIP,2019-07-12,1044471,Louisville Zoo,Metro Government Operations,Contractual Services,Professional Services,,,,,General Fund,,,200
909,2020,2019-06-14,2063471,889,TRUGREEN LIMITED PARTNERSHIP,2019-07-12,1044471,Louisville Zoo,Metro Government Operations,Contractual Services,Professional Services,,,,,General Fund,,,889
910,2020,2019-07-18,2066933,10320.62,WEBER GROUP INC,2019-08-01,1047549,Louisville Zoo,Metro Government Operations,Contractual Services,Splash Park Maintenance and Repair,,,,,General Fund,,,10320.62
911,2020,2019-07-05,2067104,3720,BOB RAY CO INC,2019-07-30,1046968,Louisville Zoo,Metro Government Operations,Contractual Services,Tree Removal Services,,,,,General Fund,,,3720
912,2020,2019-06-28,2065625,1703.5,BOB RAY CO INC,2019-07-19,1045310,Louisville Zoo,Metro Government Operations,Contractual Services,Tree Removal Services,,,,,General Fund,,,1703.5
913,2020,2019-07-05,2065157,2070.45,BOB RAY CO INC,2019-07-19,1045310,Louisville Zoo,Metro Government Operations,Contractual Services,Tree Removal Services,,,,,General Fund,,,2070.45
914,2020,2019-06-12,2060075,105,COMSTOCK BROTHERS ELECTRIC CO LLC,2019-07-12,1044367,Louisville Zoo,Metro Government Operations,Supplies,Animal Services Department Maintenance and Supplies,,,,,General Fund,,,105
915,2020,2019-06-25,2061870,4272.5,AVANT GARDE SYSTEMS INC,2019-07-23,1045883,Louisville Zoo,Metro Government Operations,Supplies,Audio/Visual Supplies,,,,,General Fund,,,4272.5
916,2020,2019-06-17,2060486,721.37,ANDERSONS SALES & SERVICE INC,2019-07-02,1043031,Louisville Zoo,Metro Government Operations,Supplies,Automotive Parts & Accessories,,,,,General Fund,,,721.37
917,2020,2019-06-17,2064121,52.02,CUNNINGHAM GOLF CAR CO INC,2019-07-16,1044553,Louisville Zoo,Metro Government Operations,Supplies,Automotive Parts & Accessories,,,,,General Fund,,,52.02
918,2020,2019-06-24,2063137,84,GENERAL RUBBER & PLASTIC OF LOUISVILLE INC,2019-07-09,1043631,Louisville Zoo,Metro Government Operations,Supplies,Building Maintenance Supplies,,,,,General Fund,,,84
919,2020,2019-06-24,2063122,91.42,GRAINGER INDUSTRIAL SUPPLY,2019-07-09,1043793,Louisville Zoo,Metro Government Operations,Supplies,Building Maintenance Supplies,,,,,General Fund,,,91.42
920,2020,2019-06-26,2063107,25,GRAINGER INDUSTRIAL SUPPLY,2019-07-09,1043793,Louisville Zoo,Metro Government Operations,Supplies,Building Maintenance Supplies,,,,,General Fund,,,25
921,2020,2019-06-17,2060533,636.36,GRAINGER INDUSTRIAL SUPPLY,2019-07-12,1044384,Louisville Zoo,Metro Government Operations,Supplies,Building Maintenance Supplies,,,,,General Fund,,,636.36
922,2020,2019-07-15,2066657,168.57,L&W SUPPLY CORPORATION,2019-07-23,1045986,Louisville Zoo,Metro Government Operations,Supplies,Building Maintenance Supplies,,,,,General Fund,,,168.57
923,2020,2019-06-23,2065027,517.7,LOWES COMPANIES INC,2019-07-18,1045121,Louisville Zoo,Metro Government Operations,Supplies,Building Maintenance Supplies,,,,,General Fund,,,441.42
924,2020,2019-06-23,2065027,517.7,LOWES COMPANIES INC,2019-07-18,1045121,Louisville Zoo,Metro Government Operations,Supplies,Building Maintenance Supplies,,,,,General Fund,,,76.28
925,2020,2019-04-26,2068233,185.48,MASTERS SUPPLY INC,2019-07-30,1047037,Louisville Zoo,Metro Government Operations,Supplies,Building Maintenance Supplies,,,,,General Fund,,,185.48
926,2020,2019-05-07,2068199,146.73,SOUTHERN TOOL SUPPLY,2019-07-30,1047074,Louisville Zoo,Metro Government Operations,Supplies,Building Maintenance Supplies,,,,,General Fund,,,146.73
927,2020,2019-06-17,2063121,4662.45,BRENNTAG MID-SOUTH INC,2019-07-11,1044078,Louisville Zoo,Metro Government Operations,Supplies,Chemical Supplies,,,,,General Fund,,,4662.45
928,2020,2018-06-01,2054630,221.13,MPC PROMOTIONS,2019-07-30,1046885,Louisville Zoo,Metro Government Operations,Supplies,Clothing/Uniform supplies,,,,,General Fund,,,221.13
929,2020,2019-06-19,2061386,131.14,GRAINGER INDUSTRIAL SUPPLY,2019-07-02,1043105,Louisville Zoo,Metro Government Operations,Supplies,Electrical supplies,,,,,General Fund,,,131.14
930,2020,2019-06-11,2058315,115.66,GRAINGER INDUSTRIAL SUPPLY,2019-07-09,1043793,Louisville Zoo,Metro Government Operations,Supplies,Electrical supplies,,,,,General Fund,,,115.66
931,2020,2019-07-12,2066217,94.5,METTS COMPANY INC,2019-07-30,1047041,Louisville Free Public Library,Metro Government Operations,Contractual Services,Lease/Repair Costs,,,,,General Fund,,,94.5
932,2020,2019-06-30,2067477,121.64,IDEXX REFERENCE LABORATORIES INC,2019-07-25,1046463,Louisville Zoo,Metro Government Operations,Contractual Services,Laboratory Services,,,,,General Fund,,,121.64
933,2020,2019-05-08,2062920,26119,ACTION LANDSCAPE INC,2019-07-25,1046380,Develop Louisville,Metro Government Operations,Contractual Services,Professional Services,,,,,Gen Brightside,,,18960
934,2020,2019-06-30,2065664,28.95,TYLER MOUNTAIN WATER CO INC,2019-07-18,1045167,Metro Animal Services,Metro Government Operations,Supplies,Animal Care Supplies,,,,,General Fund,,,28.95
935,2020,2019-07-03,2067732,-620,GALLS PARENT HOLDINGS LLC,2019-07-26,1046743,Metro Animal Services,Metro Government Operations,Supplies,Clothing/Uniform supplies,,,,,General Fund,,,-310
936,2020,2018-12-08,2063089,143.96,SANDY'S PET SUPPLIES INC,2019-07-09,1043875,Louisville Zoo,Metro Government Operations,Supplies,Animal Food,,,,,General Fund,,,143.96
937,2020,2019-06-24,2062686,268.54,LEONARD BRUSH & CHEMICAL CO INC,2019-07-11,1043975,Metro Animal Services,Metro Government Operations,Supplies,Custodial Supplies,,,,,General Fund,,,268.54
938,2020,2019-05-08,2062920,26119,ACTION LANDSCAPE INC,2019-07-25,1046380,Develop Louisville,Metro Government Operations,Contractual Services,Professional Services,,,,,Gen Brightside,,,7159
939,2020,2019-06-24,2061968,-3475,INTERVET INC,2019-08-08,1048331,Metro Animal Services,Metro Government Operations,Supplies,Drugs/Medicine Supplies,,,,,General Fund,,,-3475
940,2020,2019-07-01,2065631,830,UNIVERSITY OF GEORGIA,2019-07-19,1045452,Louisville Zoo,Metro Government Operations,Contractual Services,Laboratory Services,,,,,General Fund,,,830
941,2020,2019-06-28,2062991,1838.3,BUTLER ANIMAL HEALTH HOLDING COMPANY LLC,2019-07-11,1043965,Metro Animal Services,Metro Government Operations,Supplies,Drugs/Medicine Supplies,,,,,General Fund,,,1838.3
942,2020,2019-04-10,2063090,125,SANDY'S PET SUPPLIES INC,2019-07-09,1043875,Louisville Zoo,Metro Government Operations,Supplies,Animal Food,,,,,General Fund,,,125
943,2020,2019-03-31,2055835,570,JIMMY WATKINS,2019-07-05,1043528,Develop Louisville,Metro Government Operations,Contractual Services,Professional Services,,,,,Gen Brightside,,,570
944,2020,2019-06-21,2061435,130,ORKIN PEST CONTROL,2019-07-02,1042651,Metro Animal Services,Metro Government Operations,Contractual Services,Environmental Services,,,,,General Fund,,,130
945,2020,2019-06-04,2065611,638,UNIVERSITY OF GEORGIA,2019-07-19,1045452,Louisville Zoo,Metro Government Operations,Contractual Services,Laboratory Services,,,,,General Fund,,,638
946,2020,2019-04-16,2061969,57.26,BUTLER ANIMAL HEALTH HOLDING COMPANY LLC,2019-07-02,1042631,Metro Animal Services,Metro Government Operations,Supplies,Drugs/Medicine Supplies,,,,,General Fund,,,57.26
947,2020,2019-05-15,2057024,405.85,STANLEY BROS LLC,2019-07-02,1043216,Louisville Zoo,Metro Government Operations,Supplies,Animal Food,,,,,General Fund,,,405.85
948,2020,2019-06-30,2066602,570,JIMMY WATKINS,2019-07-25,1046472,Develop Louisville,Metro Government Operations,Contractual Services,Professional Services,,,,,Gen Brightside,,,570
949,2020,2019-06-19,2063856,285,TIMOTHY R BORDEN ENTERPRISES INC DBA T.I.E.S.,2019-07-11,1044161,Metro Animal Services,Metro Government Operations,Contractual Services,Environmental Services,,,,,General Fund,,,285
950,2020,2019-06-01,2057162,235,UNIVERSITY OF MIAMI,2019-07-02,1043250,Louisville Zoo,Metro Government Operations,Contractual Services,Laboratory Services,,,,,General Fund,,,235
951,2020,2019-04-16,2061970,756.2,BUTLER ANIMAL HEALTH HOLDING COMPANY LLC,2019-07-02,1042631,Metro Animal Services,Metro Government Operations,Supplies,Drugs/Medicine Supplies,,,,,General Fund,,,756.2
952,2020,2019-06-02,2062903,624.6,STANLEY BROS LLC,2019-07-09,1043885,Louisville Zoo,Metro Government Operations,Supplies,Animal Food,,,,,General Fund,,,624.6
953,2020,2019-06-28,2066608,1958,JIMMY WATKINS,2019-07-25,1046472,Develop Louisville,Metro Government Operations,Contractual Services,Professional Services,,,,,Gen Brightside,,,1958
954,2020,2019-06-11,2063851,330,TIMOTHY R BORDEN ENTERPRISES INC DBA T.I.E.S.,2019-07-11,1044161,Metro Animal Services,Metro Government Operations,Contractual Services,Environmental Services,,,,,General Fund,,,330
955,2020,2019-06-28,2064324,160,UNIVERSITY OF MIAMI,2019-07-23,1046067,Louisville Zoo,Metro Government Operations,Contractual Services,Laboratory Services,,,,,General Fund,,,160
956,2020,2019-07-02,2063861,940.19,BUTLER ANIMAL HEALTH HOLDING COMPANY LLC,2019-07-11,1043965,Metro Animal Services,Metro Government Operations,Supplies,Drugs/Medicine Supplies,,,,,General Fund,,,940.19
957,2020,2019-06-05,2064073,1091.13,IDEXX DISTRIBUTION INC,2019-07-11,1044105,Metro Animal Services,Metro Government Operations,Supplies,Drugs/Medicine Supplies,,,,,General Fund,,,1091.13
958,2020,2019-06-17,2064075,953.23,IDEXX DISTRIBUTION INC,2019-07-11,1044105,Metro Animal Services,Metro Government Operations,Supplies,Drugs/Medicine Supplies,,,,,General Fund,,,953.23
959,2020,2019-06-24,2064078,81.16,IDEXX DISTRIBUTION INC,2019-07-11,1044105,Metro Animal Services,Metro Government Operations,Supplies,Drugs/Medicine Supplies,,,,,General Fund,,,81.16
960,2020,2019-06-25,2064080,639.86,IDEXX DISTRIBUTION INC,2019-07-11,1044105,Metro Animal Services,Metro Government Operations,Supplies,Drugs/Medicine Supplies,,,,,General Fund,,,639.86
961,2020,2019-06-27,2063875,6240.35,BUTLER ANIMAL HEALTH HOLDING COMPANY LLC,2019-07-11,1043965,Metro Animal Services,Metro Government Operations,Supplies,Office Supplies,,,,,General Fund,,,4680.26
962,2020,2019-06-24,2062185,38.3,BUTLER ANIMAL HEALTH HOLDING COMPANY LLC,2019-07-02,1042631,Metro Animal Services,Metro Government Operations,Supplies,Office Supplies,,,,,General Fund,,,28.72
963,2020,2019-07-18,2066712,870.64,DELL MARKETING LP,2019-07-30,1046986,Metro Animal Services,Metro Government Operations,Supplies,Office Supplies,,,,,General Fund,,,457.85
964,2020,2019-07-18,2066712,870.64,DELL MARKETING LP,2019-07-30,1046986,Metro Animal Services,Metro Government Operations,Supplies,Office Supplies,,,,,General Fund,,,412.79
965,2020,2019-07-11,2065651,1485.54,DELL MARKETING LP,2019-07-23,1045925,Metro Animal Services,Metro Government Operations,Supplies,Office Supplies,,,,,General Fund,,,1485.54
966,2020,2019-06-24,2061966,453.02,L & W EMERGENCY EQUIPMENT,2019-07-02,1043134,Metro Animal Services,Metro Government Operations,Equipment/Capital Outlay,Radio/Communications Equipment,,,,,General Fund,,,453.02
967,2020,2019-07-03,2067732,-620,GALLS PARENT HOLDINGS LLC,2019-07-26,1046743,Metro Animal Services,Metro Government Operations,Supplies,Clothing/Uniform supplies,,,,,General Fund,,,-310
968,2020,2019-07-02,2067728,-354.5,GALLS PARENT HOLDINGS LLC,2019-07-26,1046743,Metro Animal Services,Metro Government Operations,Supplies,Clothing/Uniform supplies,,,,,General Fund,,,-177.25
969,2020,2019-06-13,2063890,124,GALLS PARENT HOLDINGS LLC,2019-07-12,1044381,Metro Animal Services,Metro Government Operations,Supplies,Clothing/Uniform supplies,,,,,General Fund,,,62
970,2020,2019-07-03,2067816,-195,GALLS PARENT HOLDINGS LLC,2019-07-26,1046743,Metro Animal Services,Metro Government Operations,Supplies,Clothing/Uniform supplies,,,,,General Fund,,,-97.5
971,2020,2019-06-21,2063813,22,GALLS PARENT HOLDINGS LLC,2019-07-16,1044789,Metro Animal Services,Metro Government Operations,Supplies,Clothing/Uniform supplies,,,,,General Fund,,,11
972,2020,2019-06-20,2061425,1562,GALLS PARENT HOLDINGS LLC,2019-07-16,1044789,Metro Animal Services,Metro Government Operations,Supplies,Clothing/Uniform supplies,,,,,General Fund,,,781
973,2020,2019-06-19,2061422,35.5,GALLS PARENT HOLDINGS LLC,2019-07-16,1044789,Metro Animal Services,Metro Government Operations,Supplies,Clothing/Uniform supplies,,,,,General Fund,,,17.75
974,2020,2019-06-26,2063434,769.89,GALLS PARENT HOLDINGS LLC,2019-07-23,1045944,Metro Animal Services,Metro Government Operations,Supplies,Clothing/Uniform supplies,,,,,General Fund,,,384.95
975,2020,2019-06-26,2063433,229.5,GALLS PARENT HOLDINGS LLC,2019-07-23,1045944,Metro Animal Services,Metro Government Operations,Supplies,Clothing/Uniform supplies,,,,,General Fund,,,114.75
976,2020,2019-06-26,2063432,840,GALLS PARENT HOLDINGS LLC,2019-07-23,1045944,Metro Animal Services,Metro Government Operations,Supplies,Clothing/Uniform supplies,,,,,General Fund,,,420
977,2020,2019-06-25,2063431,35,GALLS PARENT HOLDINGS LLC,2019-07-23,1045944,Metro Animal Services,Metro Government Operations,Supplies,Clothing/Uniform supplies,,,,,General Fund,,,17.5
978,2020,2019-06-25,2063430,307,GALLS PARENT HOLDINGS LLC,2019-07-23,1045944,Metro Animal Services,Metro Government Operations,Supplies,Clothing/Uniform supplies,,,,,General Fund,,,153.5
979,2020,2019-07-01,2063823,1314,GALLS PARENT HOLDINGS LLC,2019-07-26,1046743,Metro Animal Services,Metro Government Operations,Supplies,Clothing/Uniform supplies,,,,,General Fund,,,169.6
980,2020,2019-07-01,2063822,70,GALLS PARENT HOLDINGS LLC,2019-07-26,1046743,Metro Animal Services,Metro Government Operations,Supplies,Clothing/Uniform supplies,,,,,General Fund,,,35
981,2020,2019-07-01,2063820,217,GALLS PARENT HOLDINGS LLC,2019-07-26,1046743,Metro Animal Services,Metro Government Operations,Supplies,Clothing/Uniform supplies,,,,,General Fund,,,108.5
982,2020,2019-06-28,2063818,125,GALLS PARENT HOLDINGS LLC,2019-07-23,1045944,Metro Animal Services,Metro Government Operations,Supplies,Clothing/Uniform supplies,,,,,General Fund,,,62.5
983,2020,2019-06-27,2063816,595.42,GALLS PARENT HOLDINGS LLC,2019-07-23,1045944,Metro Animal Services,Metro Government Operations,Supplies,Clothing/Uniform supplies,,,,,General Fund,,,297.71
984,2020,2019-06-17,2061418,59.5,GALLS PARENT HOLDINGS LLC,2019-07-12,1044381,Metro Animal Services,Metro Government Operations,Supplies,Clothing/Uniform supplies,,,,,General Fund,,,29.75
985,2020,2019-06-17,2061419,106.5,GALLS PARENT HOLDINGS LLC,2019-07-12,1044381,Metro Animal Services,Metro Government Operations,Supplies,Clothing/Uniform supplies,,,,,General Fund,,,53.25
986,2020,2019-06-15,2061413,124,GALLS PARENT HOLDINGS LLC,2019-07-11,1044098,Metro Animal Services,Metro Government Operations,Supplies,Clothing/Uniform supplies,,,,,General Fund,,,62
